date,department/service,beneficiary,amount,summary of purpose,category,transaction number,SAP vendor number
01.08.2022,ASSET MANAGEMENT,ASHFORDS LLP OFFICE ACCOUNT,"1,325.00",DISREPAIR,PAYMENTS FOR LEGAL SERVICES,5902535742,1000082695
01.08.2022,CENTRAL FUNCTIONS,KENT COUNTY COUNCIL - LASER,-962.56,HEATING ACCOUNT,ELECTRICITY,2103527797,1000012926
01.08.2022,CENTRAL FUNCTIONS,KENT COUNTY COUNCIL - LASER,-926.75,HEATING ACCOUNT,ELECTRICITY,2103527801,1000012926
01.08.2022,CENTRAL FUNCTIONS,KENT COUNTY COUNCIL - LASER,-906.69,HEATING ACCOUNT,ELECTRICITY,2103527800,1000012926
01.08.2022,CENTRAL FUNCTIONS,KENT COUNTY COUNCIL - LASER,"115,353.31",HEATING ACCOUNT,ELECTRICITY,5902535394,1000012926
01.08.2022,CENTRAL FUNCTIONS,KENT COUNTY COUNCIL - LASER,"813,162.81",HEATING ACCOUNT,GAS,5902535400,1000012926
01.08.2022,CHIEF EXECUTIVE'S OFFICE,BRANDON 1 TRA,"10,000.00",BUSINESS SUPPORT,GRANTS,5902535228,1000051013
01.08.2022,CHILDREN AND FAMILIES,REDACTED PERSONAL DATA,"1,350.00",ADOPTION SUPP FUND,EXTERNAL AGENCIES AND BODIES,REDACTED,REDACTED
01.08.2022,CHILDREN AND FAMILIES,REDACTED PERSONAL DATA,285,ADOPTION SUPP FUND,EXTERNAL AGENCIES AND BODIES,REDACTED,REDACTED
01.08.2022,CHILDREN AND FAMILIES,DARIT PUCHKOV PLAY THERAPY,360,NEW ASF,EXTERNAL AGENCIES AND BODIES,5902535135,1000087958
01.08.2022,CHILDREN AND FAMILIES,ROADWORKS MEDIA,"2,250.00",YJS MGMT & SUPPORT,EXTERNAL AGENCIES AND BODIES,5902535169,1000081375
01.08.2022,COMMUNITIES,CANADA WATER FC,"5,000.00",NORTH EAST,GRANTS,5902535185,1000088606
01.08.2022,CUSTOMER EXPERIENCE HGF,QUEEN MARY UNIVERSITY OF LONDON,703,CORONER'S,PROFESSIONAL FEES,5902535782,1000088391
01.08.2022,CUSTOMER EXPERIENCE HGF,FREQUENCY PRECISION LTD,"1,310.00",LAMBETH RESPONSE,EQUIPMENT PURCHASE & REPAIR,5902535350,1000066513
01.08.2022,CUSTOMER EXPERIENCE HGF,EASYLINK UK,291.45,SMART MOBILE RESPONSE TEAM,EQUIPMENT PURCHASE & REPAIR,5902535187,1000066550
01.08.2022,EDUCATION,NICHOLAS ASSOCIATES GROUP LTD,"6,046.10",EDU BUSINESS ALLIANCE,SOFTWARE,5902535485,1000072913
01.08.2022,EDUCATION,LONDON BOROUGH OF BEXLEY,300,GOVERNOR SUPPORT,CONSULTANTS SERVICES,5902535470,1000015275
01.08.2022,ENV & LEIS,AGENTIS WORKWEAR LTD,"1,032.00",MANAGEMENT TEAM,"CLOTHING, UNIFORMS & LAUNDRY",5902535206,1000065561
01.08.2022,ENVIRONMENT DIRECTORATE,DRAIN SCAN (LONDON) LIMITED,260,GULLY MAINT NON PINC RD,OTHER CONTRACTORS,5902535295,1908746
01.08.2022,ENVIRONMENT DIRECTORATE,DRAIN SCAN (LONDON) LIMITED,280,GULLY MAINT NON PINC RD,OTHER CONTRACTORS,5902535294,1908746
01.08.2022,ENVIRONMENT DIRECTORATE,DRAIN SCAN (LONDON) LIMITED,360,GULLY MAINT NON PINC RD,OTHER CONTRACTORS,5902535292,1908746
01.08.2022,ENVIRONMENT DIRECTORATE,DRAIN SCAN (LONDON) LIMITED,380,GULLY MAINT NON PINC RD,OTHER CONTRACTORS,5902535293,1908746
01.08.2022,HOUSING HRA,HUNTER & PARTNERS LTD,"7,200.00",CAPITAL PS (HRA),CONSTRUCTION FEES,5902532420,1000055088
01.08.2022,HOUSING HRA,CALFORD SEADEN LLP,"2,646.00",CAPITAL PS (HRA),CONSTRUCTION FEES  - EXTERNAL,5902535188,1061592
01.08.2022,HOUSING HRA,SILVER DCC LTD,"1,315.18",CAPITAL PS (HRA),CONSTRUCTION FEES  - EXTERNAL,5902535261,1000087546
01.08.2022,HOUSING HRA,SILVER DCC LTD,"2,445.94",CAPITAL PS (HRA),CONSTRUCTION FEES  - EXTERNAL,5902535221,1000087546
01.08.2022,HOUSING HRA,CALFORD SEADEN LLP,588,CAPITAL PS (HRA),CONSTRUCTION FEES - EMPLOYERS AGENT,5902535189,1061592
01.08.2022,HOUSING HRA,CALFORD SEADEN LLP,"2,058.00",CAPITAL PS (HRA),CONSTRUCTION FEES - EMPLOYERS AGENT,5902535956,1061592
01.08.2022,HOUSING HRA,GUIDELINE LIFT SERVICES LTD,"2,850.10",CAPITAL PS (HRA),UTILITIES INSTALLATION,5902535219,1000064176
01.08.2022,HOUSING HRA,AJM ADAPTIONS LTD,"7,810.00",CAPITAL PS (HRA),UTILITIES INSTALLATION,5902535300,1000080297
01.08.2022,LEISURE,WATERMAN INFRASTRUCTURE & ENVIRONMENT LTD,"15,803.00",CAPITAL PS (LEISURE),CONSTR'N SUB CONTRACT - NON CERTIFICATED,5902535270,1000060529
01.08.2022,LEISURE,F M CONWAY LTD,"102,373.39",CAPITAL PS (LEISURE),CONSTRUCTION,2103529425,4001384
01.08.2022,LEISURE DIRECTORATE,NPOWER LTD,363.54,CEMETERIES,ELECTRICITY,5902535733,1000078994
01.08.2022,LEISURE DIRECTORATE,QUADRON SERVICES LIMITED,423.04,DULWICH AREA TEAM,OTHER R&M,5902535241,1000066528
01.08.2022,LEISURE DIRECTORATE,F R JONES & SON LTD,260,TREES � IN-HOUSE TEAM,EQUIPMENT PURCHASE & REPAIR,5902535537,1000037178
01.08.2022,LEISURE DIRECTORATE,F R JONES & SON LTD,600,TREES � IN-HOUSE TEAM,EQUIPMENT PURCHASE & REPAIR,5902535538,1000037178
01.08.2022,LEISURE DIRECTORATE,CHERRY PICKER HIRE LTD,500,TREES � IN-HOUSE TEAM,EQUIPMENT PURCHASE & REPAIR,5902535163,1000077442
01.08.2022,REGENERATION,WATERMAN INFRASTRUCTURE & ENVIRONMENT LTD,"1,706.94",CAPITAL PS (REGEN),CONSTR'N SUB CONTRACT - NON CERTIFICATED,5902535273,1000060529
01.08.2022,REGENERATION,BOON EDAM LTD,"2,841.08",CAPITAL PS (REGEN),CONSTRUCTION MAIN CONTRACT,5902535260,1000021458
01.08.2022,REGENERATION,PIPE SCAFFOLDING LTD,"1,844.00",MISC INDUSTRIAL PROPERTIES,BUILDING R&M,5902535365,1000083894
01.08.2022,RESIDENT SERVICES,KENT COUNTY COUNCIL - LASER,521.82,PECKHAM,ELECTRICITY,5902535311,1000012926
02.08.2022,ADULT SOCIAL CARE,ACCESS MOBILITY TRANSPORT LTD,"3,082.80",LD LTS 18-64,CLIENT TRANSPORT,2103535002,1000074637
02.08.2022,ADULT SOCIAL CARE,SWK DISABLEMENT ASSN,"2,194.80",LD LTS 18-64,HOMECARE - C&V,2103535016,1000011698
02.08.2022,ADULT SOCIAL CARE,SWK DISABLEMENT ASSN,304,LD LTS 18-64,SUPPORTED LIVING,2103535026,1000011698
02.08.2022,ADULT SOCIAL CARE,SWK DISABLEMENT ASSN,304,LD LTS 18-64,SUPPORTED LIVING,2103535081,1000011698
02.08.2022,ADULT SOCIAL CARE,SWK DISABLEMENT ASSN,323.05,LD LTS 18-64,SUPPORTED LIVING,2103535034,1000011698
02.08.2022,ADULT SOCIAL CARE,SWK DISABLEMENT ASSN,332.28,LD LTS 18-64,SUPPORTED LIVING,2103535083,1000011698
02.08.2022,ADULT SOCIAL CARE,SWK DISABLEMENT ASSN,350.74,LD LTS 18-64,SUPPORTED LIVING,2103535068,1000011698
02.08.2022,ADULT SOCIAL CARE,SWK DISABLEMENT ASSN,369.2,LD LTS 18-64,SUPPORTED LIVING,2103535047,1000011698
02.08.2022,ADULT SOCIAL CARE,SWK DISABLEMENT ASSN,443.04,LD LTS 18-64,SUPPORTED LIVING,2103535030,1000011698
02.08.2022,ADULT SOCIAL CARE,SWK DISABLEMENT ASSN,443.04,LD LTS 18-64,SUPPORTED LIVING,2103535048,1000011698
02.08.2022,ADULT SOCIAL CARE,SWK DISABLEMENT ASSN,553.8,LD LTS 18-64,SUPPORTED LIVING,2103535004,1000011698
02.08.2022,ADULT SOCIAL CARE,SWK DISABLEMENT ASSN,664.56,LD LTS 18-64,SUPPORTED LIVING,2103535028,1000011698
02.08.2022,ADULT SOCIAL CARE,SWK DISABLEMENT ASSN,760,LD LTS 18-64,SUPPORTED LIVING,2103535067,1000011698
02.08.2022,ADULT SOCIAL CARE,SWK DISABLEMENT ASSN,"1,144.52",LD LTS 18-64,SUPPORTED LIVING,2103535065,1000011698
02.08.2022,ADULT SOCIAL CARE,REESON CARE HOMES LTD,"7,626.00",LD LTS 18-64,SUPPORTED LIVING,2103534915,1000084007
02.08.2022,ADULT SOCIAL CARE,REESON CARE HOMES LTD,"9,608.40",LD LTS 18-64,SUPPORTED LIVING,2103534913,1000084007
02.08.2022,ADULT SOCIAL CARE,REESON CARE HOMES LTD,"11,674.08",LD LTS 18-64,SUPPORTED LIVING,2103534914,1000084007
02.08.2022,ADULT SOCIAL CARE,SWK DISABLEMENT ASSN,"1,218.36",LD LTS 65+,HOMECARE - SPOT,2103535027,1000011698
02.08.2022,ADULT SOCIAL CARE,SWK DISABLEMENT ASSN,"2,052.00",LD LTS 65+,SUPPORTED LIVING,2103535031,1000011698
02.08.2022,ADULT SOCIAL CARE,SWK DISABLEMENT ASSN,"1,282.50",MH LTS 18-64,HOMECARE - SPOT,2103535070,1000011698
02.08.2022,ADULT SOCIAL CARE,SWK DISABLEMENT ASSN,258.44,MH LTS 18-64,SUPPORTED LIVING,2103535005,1000011698
02.08.2022,ADULT SOCIAL CARE,SWK DISABLEMENT ASSN,295.36,MH LTS 18-64,SUPPORTED LIVING,2103535037,1000011698
02.08.2022,ADULT SOCIAL CARE,SWK DISABLEMENT ASSN,295.36,MH LTS 18-64,SUPPORTED LIVING,2103535055,1000011698
02.08.2022,ADULT SOCIAL CARE,SWK DISABLEMENT ASSN,304,MH LTS 18-64,SUPPORTED LIVING,2103535054,1000011698
02.08.2022,ADULT SOCIAL CARE,SWK DISABLEMENT ASSN,380,MH LTS 18-64,SUPPORTED LIVING,2103535091,1000011698
02.08.2022,ADULT SOCIAL CARE,SWK DISABLEMENT ASSN,396.8,MH LTS 18-64,SUPPORTED LIVING,2103535022,1000011698
02.08.2022,ADULT SOCIAL CARE,SWK DISABLEMENT ASSN,479.96,MH LTS 18-64,SUPPORTED LIVING,2103535087,1000011698
02.08.2022,ADULT SOCIAL CARE,SWK DISABLEMENT ASSN,590.72,MH LTS 18-64,SUPPORTED LIVING,2103535086,1000011698
02.08.2022,ADULT SOCIAL CARE,SWK DISABLEMENT ASSN,634.88,MH LTS 18-64,SUPPORTED LIVING,2103535017,1000011698
02.08.2022,ADULT SOCIAL CARE,SWK DISABLEMENT ASSN,836,MH LTS 18-64,SUPPORTED LIVING,2103535051,1000011698
02.08.2022,ADULT SOCIAL CARE,SWK DISABLEMENT ASSN,399,MH LTS 65+,HOMECARE - SPOT,2103535012,1000011698
02.08.2022,ADULT SOCIAL CARE,SWK DISABLEMENT ASSN,295.36,MH LTS 65+,SUPPORTED LIVING,2103535013,1000011698
02.08.2022,ADULT SOCIAL CARE,SWK DISABLEMENT ASSN,332.28,MH LTS 65+,SUPPORTED LIVING,2103535036,1000011698
02.08.2022,ADULT SOCIAL CARE,SWK DISABLEMENT ASSN,833.28,MH LTS 65+,SUPPORTED LIVING,2103535082,1000011698
02.08.2022,ADULT SOCIAL CARE,KENT COUNTY COUNCIL - LASER,506.09,ORIENT ST � RESPITE,OFFICE EXPENSES,5902536090,1000012926
02.08.2022,ADULT SOCIAL CARE,SWK DISABLEMENT ASSN,"1,987.07",PHY LTS 18-64,HOMECARE - C&V,2103535059,1000011698
02.08.2022,ADULT SOCIAL CARE,SWK DISABLEMENT ASSN,512.12,PHY LTS 18-64,HOMECARE - SPOT,2103535078,1000011698
02.08.2022,ADULT SOCIAL CARE,SWK DISABLEMENT ASSN,841.34,PHY LTS 18-64,HOMECARE - SPOT,2103535061,1000011698
02.08.2022,ADULT SOCIAL CARE,SWK DISABLEMENT ASSN,"1,499.78",PHY LTS 18-64,HOMECARE - SPOT,2103535043,1000011698
02.08.2022,ADULT SOCIAL CARE,SWK DISABLEMENT ASSN,"1,847.29",PHY LTS 18-64,HOMECARE - SPOT,2103535063,1000011698
02.08.2022,ADULT SOCIAL CARE,SWK DISABLEMENT ASSN,"2,414.28",PHY LTS 18-64,HOMECARE - SPOT,2103535079,1000011698
02.08.2022,ADULT SOCIAL CARE,SWK DISABLEMENT ASSN,"2,839.52",PHY LTS 18-64,HOMECARE - SPOT,2103535057,1000011698
02.08.2022,ADULT SOCIAL CARE,SWK DISABLEMENT ASSN,"3,401.94",PHY LTS 18-64,HOMECARE - SPOT,2103535062,1000011698
02.08.2022,ADULT SOCIAL CARE,SWK DISABLEMENT ASSN,"3,667.15",PHY LTS 18-64,HOMECARE - SPOT,2103535058,1000011698
02.08.2022,ADULT SOCIAL CARE,SWK DISABLEMENT ASSN,516.88,PHY LTS 18-64,SUPPORTED LIVING,2103535073,1000011698
02.08.2022,ADULT SOCIAL CARE,LONDON CARE LTD,"11,405.42",PHY LTS 65+,HOMECARE - C&V,2103534909,1000003398
02.08.2022,ADULT SOCIAL CARE,LONDON CARE LTD,"13,240.92",PHY LTS 65+,HOMECARE - C&V,2103534908,1000003398
02.08.2022,ADULT SOCIAL CARE,SWK DISABLEMENT ASSN,437.65,PHY LTS 65+,HOMECARE - C&V,2103535074,1000011698
02.08.2022,ADULT SOCIAL CARE,SWK DISABLEMENT ASSN,"2,450.86",PHY LTS 65+,HOMECARE - C&V,2103535056,1000011698
02.08.2022,ADULT SOCIAL CARE,SAGECARE LTD,"10,967.64",PHY LTS 65+,HOMECARE - C&V,2103534910,1000080924
02.08.2022,ADULT SOCIAL CARE,SWK DISABLEMENT ASSN,251.49,PHY LTS 65+,HOMECARE - SPOT,2103535014,1000011698
02.08.2022,ADULT SOCIAL CARE,SWK DISABLEMENT ASSN,365.8,PHY LTS 65+,HOMECARE - SPOT,2103535033,1000011698
02.08.2022,ADULT SOCIAL CARE,SWK DISABLEMENT ASSN,434.39,PHY LTS 65+,HOMECARE - SPOT,2103535040,1000011698
02.08.2022,ADULT SOCIAL CARE,SWK DISABLEMENT ASSN,458.56,PHY LTS 65+,HOMECARE - SPOT,2103535075,1000011698
02.08.2022,ADULT SOCIAL CARE,SWK DISABLEMENT ASSN,621.86,PHY LTS 65+,HOMECARE - SPOT,2103535077,1000011698
02.08.2022,ADULT SOCIAL CARE,SWK DISABLEMENT ASSN,914.5,PHY LTS 65+,HOMECARE - SPOT,2103535032,1000011698
02.08.2022,ADULT SOCIAL CARE,SWK DISABLEMENT ASSN,"1,024.24",PHY LTS 65+,HOMECARE - SPOT,2103535025,1000011698
02.08.2022,ADULT SOCIAL CARE,SWK DISABLEMENT ASSN,"1,106.55",PHY LTS 65+,HOMECARE - SPOT,2103535045,1000011698
02.08.2022,ADULT SOCIAL CARE,SWK DISABLEMENT ASSN,"1,170.56",PHY LTS 65+,HOMECARE - SPOT,2103535015,1000011698
02.08.2022,ADULT SOCIAL CARE,SWK DISABLEMENT ASSN,"1,298.59",PHY LTS 65+,HOMECARE - SPOT,2103535035,1000011698
02.08.2022,ADULT SOCIAL CARE,SWK DISABLEMENT ASSN,"1,572.94",PHY LTS 65+,HOMECARE - SPOT,2103535064,1000011698
02.08.2022,ADULT SOCIAL CARE,SWK DISABLEMENT ASSN,"1,591.23",PHY LTS 65+,HOMECARE - SPOT,2103535044,1000011698
02.08.2022,ADULT SOCIAL CARE,SWK DISABLEMENT ASSN,"2,510.30",PHY LTS 65+,HOMECARE - SPOT,2103535042,1000011698
02.08.2022,ADULT SOCIAL CARE,SWK DISABLEMENT ASSN,"2,816.66",PHY LTS 65+,HOMECARE - SPOT,2103535076,1000011698
02.08.2022,ADULT SOCIAL CARE,SWK DISABLEMENT ASSN,"3,325.00",PHY LTS 65+,HOMECARE - SPOT,2103535071,1000011698
02.08.2022,ADULT SOCIAL CARE,SWK DISABLEMENT ASSN,329.22,SOCIAL ISOLATION,HOMECARE - SPOT,2103535080,1000011698
02.08.2022,ADULT SOCIAL CARE,SWK DISABLEMENT ASSN,"1,298.59",SOCIAL ISOLATION,HOMECARE - SPOT,2103535041,1000011698
02.08.2022,ADULT SOCIAL CARE,BLACK STOCK MEDIA LTD,"3,000.00",SPECIALIST CARE,EXTERNAL AGENCIES AND BODIES,5902536061,1000088666
02.08.2022,ASSET MANAGEMENT,SIMON L TAYLOR LTD,401.25,DISREPAIR,BUILDING R&M,5902535220,1000056151
02.08.2022,ASSET MANAGEMENT,PROPERTY FACILITIES GROUP LTD,"6,679.23",DISREPAIR,BUILDING R&M,5902536097,1000063713
02.08.2022,ASSET MANAGEMENT,CHESHIRE ESTATE AND LEGAL LTD,"1,402.07",DISREPAIR,PAYMENTS FOR LEGAL SERVICES,2103535119,1000081908
02.08.2022,ASSET MANAGEMENT,NNE LAW LIMITED,"5,333.33",DISREPAIR,PAYMENTS FOR LEGAL SERVICES,2103535111,1000087730
02.08.2022,ASSET MANAGEMENT,COYNE LEARMONTH (CROSBY) LIMITED,833.33,DISREPAIR,PAYMENTS FOR LEGAL SERVICES,2103535133,1000088221
02.08.2022,ASSET MANAGEMENT,CLARKE & CO LIMITED,"1,250.00",DISREPAIR,PAYMENTS FOR LEGAL SERVICES,2103535104,1000088371
02.08.2022,ASSET MANAGEMENT,CLARKE & CO LIMITED,"12,500.00",DISREPAIR,PAYMENTS FOR LEGAL SERVICES,2103535105,1000088371
02.08.2022,ASSET MANAGEMENT,MCDERMOTT SMITH  LAW LTD,"5,416.67",DISREPAIR,PAYMENTS FOR LEGAL SERVICES,2103535126,1000088449
02.08.2022,ASSET MANAGEMENT,KLS LAW  LTD,"1,366.36",DISREPAIR,PAYMENTS FOR LEGAL SERVICES,2103535110,1000088658
02.08.2022,ASSET MANAGEMENT,NICHOLSON JONES  SUTTON LIMITED,416.67,DISREPAIR,PAYMENTS FOR LEGAL SERVICES,2103535116,1000088667
02.08.2022,ASSET MANAGEMENT,NICHOLSON JONES  SUTTON LIMITED,"1,250.00",DISREPAIR,PAYMENTS FOR LEGAL SERVICES,2103535114,1000088667
02.08.2022,ASSET MANAGEMENT,NICHOLSON JONES  SUTTON LIMITED,"2,916.67",DISREPAIR,PAYMENTS FOR LEGAL SERVICES,2103535115,1000088667
02.08.2022,ASSET MANAGEMENT,ANTONY HODARI  SOLICITORS,416.67,DISREPAIR,PAYMENTS FOR LEGAL SERVICES,2103535106,1000031040
02.08.2022,ASSET MANAGEMENT,ANTONY HODARI  SOLICITORS,"1,666.67",DISREPAIR,PAYMENTS FOR LEGAL SERVICES,2103535107,1000031040
02.08.2022,ASSET MANAGEMENT,ANTHONY GOLD SOLICITORS,875,DISREPAIR,PAYMENTS FOR LEGAL SERVICES,2103535125,1000050198
02.08.2022,ASSET MANAGEMENT,DRISCOLL KINGSTON SOLICITORS,"5,625.00",DISREPAIR,PAYMENTS FOR LEGAL SERVICES,2103535113,1000082357
02.08.2022,ASSET MANAGEMENT,BARNES SOLICITORS LLP,"1,666.67",DISREPAIR,PAYMENTS FOR LEGAL SERVICES,2103535118,1000083820
02.08.2022,ASSET MANAGEMENT,SBW  LAW,"1,083.33",DISREPAIR,PAYMENTS FOR LEGAL SERVICES,2103535130,1000085191
02.08.2022,ASSET MANAGEMENT,BOND TURNER  SOLICITORS,416.67,DISREPAIR,PAYMENTS FOR LEGAL SERVICES,2103535131,1000085362
02.08.2022,ASSET MANAGEMENT,BOND TURNER  SOLICITORS,958.33,DISREPAIR,PAYMENTS FOR LEGAL SERVICES,2103535117,1000085362
02.08.2022,ASSET MANAGEMENT,BOND TURNER  SOLICITORS,958.33,DISREPAIR,PAYMENTS FOR LEGAL SERVICES,2103535129,1000085362
02.08.2022,ASSET MANAGEMENT,BOND TURNER  SOLICITORS,"1,041.67",DISREPAIR,PAYMENTS FOR LEGAL SERVICES,2103535124,1000085362
02.08.2022,ASSET MANAGEMENT,BOND TURNER  SOLICITORS,"1,500.00",DISREPAIR,PAYMENTS FOR LEGAL SERVICES,2103535120,1000085362
02.08.2022,ASSET MANAGEMENT,BOND TURNER  SOLICITORS,"2,916.67",DISREPAIR,PAYMENTS FOR LEGAL SERVICES,2103535103,1000085362
02.08.2022,ASSET MANAGEMENT,BOND TURNER  SOLICITORS,"5,290.83",DISREPAIR,PAYMENTS FOR LEGAL SERVICES,2103535128,1000085362
02.08.2022,ASSET MANAGEMENT,MJV & CO  SOLICITORS LTD,"2,500.00",DISREPAIR,PAYMENTS FOR LEGAL SERVICES,2103535108,1000086326
02.08.2022,ASSET MANAGEMENT,MJV & CO  SOLICITORS LTD,"2,833.33",DISREPAIR,PAYMENTS FOR LEGAL SERVICES,2103535112,1000086326
02.08.2022,ASSET MANAGEMENT,REED & CO SOLICITORS LIMITED,"1,666.67",DISREPAIR,PAYMENTS FOR LEGAL SERVICES,2103535132,1000088238
02.08.2022,ASSET MANAGEMENT,VERITAS  SOLICITORS,"1,666.67",DISREPAIR,PAYMENTS FOR LEGAL SERVICES,2103535127,1000088269
02.08.2022,ASSET MANAGEMENT,FRANKHAM CONSULTANCY GROUP LTD,"3,613.00",REPAIRS OPERATIONS,BUILDING R&M,5902536076,1000043952
02.08.2022,CENTRAL FUNCTIONS,KENT COUNTY COUNCIL - LASER,879.24,HEATING ACCOUNT,ELECTRICITY,2103534956,1000012926
02.08.2022,CENTRAL FUNCTIONS,KENT COUNTY COUNCIL - LASER,"1,079.53",HEATING ACCOUNT,ELECTRICITY,2103534958,1000012926
02.08.2022,CENTRAL FUNCTIONS,KENT COUNTY COUNCIL - LASER,"1,105.23",HEATING ACCOUNT,ELECTRICITY,2103534959,1000012926
02.08.2022,CENTRAL FUNCTIONS,KENT COUNTY COUNCIL - LASER,"1,348.01",HEATING ACCOUNT,ELECTRICITY,2103534953,1000012926
02.08.2022,CENTRAL FUNCTIONS,KENT COUNTY COUNCIL - LASER,"1,375.62",HEATING ACCOUNT,ELECTRICITY,2103534960,1000012926
02.08.2022,CENTRAL FUNCTIONS,KENT COUNTY COUNCIL - LASER,"1,541.15",HEATING ACCOUNT,ELECTRICITY,2103534954,1000012926
02.08.2022,CENTRAL FUNCTIONS,KENT COUNTY COUNCIL - LASER,"1,791.89",HEATING ACCOUNT,ELECTRICITY,2103534961,1000012926
02.08.2022,CENTRAL FUNCTIONS,KENT COUNTY COUNCIL - LASER,"1,067.74",HEATING ACCOUNT,GAS,2103534957,1000012926
02.08.2022,CENTRAL FUNCTIONS,OPEN COMMUNITIES LTD,"3,758.75",LEDBURY ESTATE,PROFESSIONAL FEES,5902536089,1000065800
02.08.2022,CHILDREN AND FAMILIES,REDACTED PERSONAL DATA,682,ADOPTION ALLOWANCES,PAYMENTS TO CARERS,REDACTED,REDACTED
02.08.2022,CHILDREN AND FAMILIES,NEGOTIATORS FAMILY CENTRE LIMITED,370,CONTACT SERVICE,OTHER PAYMENTS FOR CLIENTS,5902536070,1000075672
02.08.2022,CHILDREN AND FAMILIES,NEGOTIATORS FAMILY CENTRE LIMITED,740,CONTACT SERVICE,OTHER PAYMENTS FOR CLIENTS,5902536068,1000075672
02.08.2022,CHILDREN AND FAMILIES,REDACTED PERSONAL DATA,831.14,FAMILY GROUP CONF�S,PROFESSIONAL FEES,REDACTED,REDACTED
02.08.2022,CHILDREN AND FAMILIES,REDACTED PERSONAL DATA,478.83,FAMILY GROUP CONF�S,PROFESSIONAL FEES,REDACTED,REDACTED
02.08.2022,CHILDREN AND FAMILIES,CHERYL PRISCOTT,"1,073.75",P & R CARE TEAM,EXTERNAL AGENCIES AND BODIES,5902536034,1000088503
02.08.2022,CHILDREN AND FAMILIES,WYF VENTURES LTD,"2,170.00",UASC CARELEAVERS,EXTERNAL AGENCIES AND BODIES,5902536013,1000087022
02.08.2022,CHILDREN AND FAMILIES,WYF VENTURES LTD,"1,080.00",UASC CARELEAVERS,OTHER PAYMENTS FOR CLIENTS,5902536013,1000087022
02.08.2022,CHILDREN'S,PHOENIX PRIMARY SCHOOL,"17,649.69",CAPITAL PS (EDUCATION),CONSTRUCTION FEES - INTERNAL,5902536091,5001000032
02.08.2022,COMMUNITIES,METROPOLITAN HOUSING TRUST LTD,895.32,NO RECOURSE TO PUBLIC FUNDS,ACCOMMODATION CHARGES,5902535971,1000047547
02.08.2022,COMMUNITIES,METROPOLITAN HOUSING TRUST LTD,"1,035.96",NO RECOURSE TO PUBLIC FUNDS,ACCOMMODATION CHARGES,5902535972,1000047547
02.08.2022,COMMUNITIES,METROPOLITAN HOUSING TRUST LTD,"2,294.00",NO RECOURSE TO PUBLIC FUNDS,ACCOMMODATION CHARGES,5902535974,1000047547
02.08.2022,COMMUNITIES,METROPOLITAN HOUSING TRUST LTD,"3,592.32",NO RECOURSE TO PUBLIC FUNDS,ACCOMMODATION CHARGES,5902535973,1000047547
02.08.2022,COMMUNITIES,KINDLY PROPERTIES LTD,"30,179.00",NO RECOURSE TO PUBLIC FUNDS,ACCOMMODATION CHARGES,5902535994,1000060734
02.08.2022,COMMUNITIES,REDACTED PERSONAL DATA,"1,050.00",UKRAINIAN PROGRAMME,GRANTS,REDACTED,REDACTED
02.08.2022,COMMUNITIES,REDACTED PERSONAL DATA,"1,050.00",UKRAINIAN PROGRAMME,GRANTS,REDACTED,REDACTED
02.08.2022,COMMUNITIES,REDACTED PERSONAL DATA,350,UKRAINIAN PROGRAMME,GRANTS,REDACTED,REDACTED
02.08.2022,COMMUNITIES,REDACTED PERSONAL DATA,"1,050.00",UKRAINIAN PROGRAMME,GRANTS,REDACTED,REDACTED
02.08.2022,COMMUNITIES,REDACTED PERSONAL DATA,700,UKRAINIAN PROGRAMME,GRANTS,REDACTED,REDACTED
02.08.2022,COMMUNITIES,PAUL CROOKS,300,VCS GRANTS,OTHER CONTRACTORS,5902535988,1000035464
02.08.2022,COMMUNITIES,FORMA ARTS & MEDIA LTD,500,VCS GRANTS,OTHER CONTRACTORS,5902535981,1000084887
02.08.2022,COMMUNITIES HRA,WEBBER AND QUENTIN LTD,"1,320.21",WEBBER & QUENTIN TMO,M&M ALLOWANCE CO-OPS,5902536152,1000077088
02.08.2022,COMMUNITIES HRA,WEBBER AND QUENTIN LTD,"42,411.25",WEBBER & QUENTIN TMO,M&M ALLOWANCE CO-OPS,5902536154,1000077088
02.08.2022,CUSTOMER EXPERIENCE HGF,LOCAL REGISTRATION SVCS ASSN,400,CITIZENSHIP,TRAINING,5902535980,1000064033
02.08.2022,DSG,HIGHSHORE SCHOOL,"3,142.80",TRUST FUND DRAW DOWN,SCHOOLS CAPITATION,2103534990,5001000046
02.08.2022,DSG,FLEET TUTORS,"1,170.00",VIRTUAL SCHOOL PP,EXTERNAL AGENCIES AND BODIES,5902536083,1000044820
02.08.2022,DSG,FLEET TUTORS,"2,205.00",VIRTUAL SCHOOL PP,EXTERNAL AGENCIES AND BODIES,5902536087,1000044820
02.08.2022,DSG,BARNARDOS SERVICES LTD,400,VIRTUAL SCHOOL PP,SCHOOLS CAPITATION,5902536063,1000063730
02.08.2022,DSG,ULT TRADING COMPANY LIMITED,"1,500.00",VIRTUAL SCHOOL PP,SCHOOLS CAPITATION,2103534963,1000088648
02.08.2022,DSG,THE KEMNAL ACADEMIES TRUST,"1,500.00",VIRTUAL SCHOOL PP,SCHOOLS CAPITATION,2103534962,1000088661
02.08.2022,EDUCATION,BLACKFRIARS SETTLEMENT,"2,000.00",ALC COMMUNITY LEARNING,GRANTS,5902536134,1013178
02.08.2022,ENV & LEIS,BELL BRUSH COMPANY,447.7,MANAGEMENT TEAM,MATERIALS,5902536131,1259776
02.08.2022,ENV&LEIS,BONAMY PHARMACY (MILDCARE LIMITED),"1,120.00",STOP SMOKING,EXTERNAL AGENCIES AND BODIES,5902536141,1000063072
02.08.2022,ENV&LEIS,BONAMY PHARMACY (MILDCARE LIMITED),"2,231.20",STOP SMOKING,MATERIALS,5902536141,1000063072
02.08.2022,ENVIRONMENT DIRECTORATE,GREENHAM TRADING LTD,356.3,ESTATE CLEANING-GENERAL,MATERIALS,5902536109,1000006610
02.08.2022,ENVIRONMENT DIRECTORATE,THE ART OF WORK LTD,"2,400.00",FLEET SERVICES MANAGEMENT,PROFESSIONAL FEES,5902536102,1000080974
02.08.2022,ENVIRONMENT DIRECTORATE,MHC TRAFFIC LTD,320,PROJECT SUPPORT,OFFICE EXPENSES,5902536143,1000081233
02.08.2022,HOUSING,A & E ELKINS LTD,"201,226.20",A&E ELKINS,I-WORLD CONTRACTORS HOLDING ACCOUNT,2103534927,4012501
02.08.2022,HOUSING,BRIDGEWATER ROOFING CONTRACTORS LTD,"156,351.88",BRC,I-WORLD CONTRACTORS HOLDING ACCOUNT,2103534930,3000001482
02.08.2022,HOUSING,LIFTEC LIFTS LTD,"81,947.32",PAYMENTS CONTROL ACCOUNT - LIFTEC,I-WORLD CONTRACTORS HOLDING ACCOUNT,5902536094,1000057278
02.08.2022,HOUSING,OCO LIMITED,"152,061.75",PAYMENTS CONTROL ACCOUNT - OCO,I-WORLD CONTRACTORS HOLDING ACCOUNT,5902536029,1006066
02.08.2022,HOUSING,PRB ESTATES LTD,"6,989.93",PRBE,I-WORLD CONTRACTORS HOLDING ACCOUNT,2103534929,3000001691
02.08.2022,HOUSING,PRB ESTATES LTD,"93,352.11",PRBE,I-WORLD CONTRACTORS HOLDING ACCOUNT,2103534928,3000001691
02.08.2022,HOUSING,SMITH & BYFORD LTD,"130,701.25",SMITH AND BYFORD,I-WORLD CONTRACTORS HOLDING ACCOUNT,5902536030,11212119
02.08.2022,HOUSING GF,RICOH UK LTD,570,CAPITAL PS (HOUSING GF),ICT ACQUISITION,5902536146,1000001712
02.08.2022,HOUSING HRA,PRB ESTATES LTD,"1,852.88",CAPITAL PS (HRA),CONSTRUCTION,2103534925,3000001691
02.08.2022,HOUSING HRA,PRB ESTATES LTD,"1,852.88",CAPITAL PS (HRA),CONSTRUCTION,2103534926,3000001691
02.08.2022,HOUSING HRA,PRB ESTATES LTD,"3,705.75",CAPITAL PS (HRA),CONSTRUCTION,2103534924,3000001691
02.08.2022,HOUSING HRA,SILVER DCC LTD,"1,260.00",CAPITAL PS (HRA),CONSTRUCTION FEES  - EXTERNAL,5902536002,1000087546
02.08.2022,HOUSING HRA,SILVER DCC LTD,"1,342.65",CAPITAL PS (HRA),CONSTRUCTION FEES  - EXTERNAL,5902536052,1000087546
02.08.2022,HOUSING HRA,SILVER DCC LTD,"1,850.00",CAPITAL PS (HRA),CONSTRUCTION FEES  - EXTERNAL,5902536005,1000087546
02.08.2022,HOUSING HRA,DJJH CONSULTING LTD,"4,497.00",CAPITAL PS (HRA),CONSTRUCTION FEES - EMPLOYERS AGENT,5902536155,1000085261
02.08.2022,HSG & MOD,PANORAMA SOFTWARE (ISRAEL 2002) LTD,"11,000.00",APPLICATIONS,SOFTWARE,6102040526,INTERNATIONAL PAYMENT
02.08.2022,LEISURE,DRAIN SCAN (LONDON) LIMITED,"2,640.00",CAPITAL PS (LEISURE),CONSTRUCTION FEES  - EXTERNAL,5902536138,1908746
02.08.2022,LEISURE,MOSAIC ART LTD,"10,200.00",CAPITAL PS (LEISURE),CONSTRUCTION FEES  - EXTERNAL,5902536144,1000080350
02.08.2022,LEISURE,DRD PROPERTY SERVICES LTD,"3,743.69",CAPITAL PS (LEISURE),CONSTRUCTION FEES  - EXTERNAL,5902536157,1000088343
02.08.2022,LEISURE DIRECTORATE,KENT COUNTY COUNCIL - LASER,"2,286.44",DULWICH AREA TEAM,ELECTRICITY,5902536078,1000012926
02.08.2022,LEISURE DIRECTORATE,THE ALBANY 2001 COMPANY,"1,050.00",LIBRARIES DEVELOPMENT,FREELANCE SPECIALISTS,5902536150,1000052402
02.08.2022,LEISURE DIRECTORATE,KENT COUNTY COUNCIL - LASER,505.8,PLAY SOUTH,ELECTRICITY,5902536084,1000012926
02.08.2022,PUBLIC HEALTH,BLUE ELEPHANT THEATRE LTD,"3,826.50",COVID-19 CONTROL OUTBREAK MGMNT.FUND,EXTERNAL AGENCIES AND BODIES,5902535999,1000015417
02.08.2022,REGENERATION,BL CW HOLDINGS LTD,"25,336.48",CAPITAL PS (REGEN),CONSTRUCTION FEES  - EXTERNAL,5902535977,1000086680
02.08.2022,REGENERATION,BL CW HOLDINGS LTD,"844,549.44",CAPITAL PS (REGEN),CONSTRUCTION FEES  - EXTERNAL,5902535976,1000086680
02.08.2022,REGENERATION,SHARPE PRITCHARD LLP,297,CAPITAL PS (REGEN),CONSTRUCTION FEES - LEGAL,5902536137,1790085
02.08.2022,RESIDENT SERVICES,BRITISH GAS TRADING LTD,"1,643.74",OPERATIONS/OFFICES ACCOMMODATION,ELECTRICITY,5902536133,1000055977
02.08.2022,RESIDENT SERVICES,EXTREME ENVIRONMENTAL SERVICES LTD,295,TA ESTATE VOIDS,PREMISES CLEANING,5902535984,1000023922
02.08.2022,RESIDENT SERVICES,EXTREME ENVIRONMENTAL SERVICES LTD,295,TA ESTATE VOIDS,PREMISES CLEANING,5902535985,1000023922
02.08.2022,RESIDENT SERVICES,EXTREME ENVIRONMENTAL SERVICES LTD,295,TA ESTATE VOIDS,PREMISES CLEANING,5902536067,1000023922
02.08.2022,RESIDENT SERVICES,EXTREME ENVIRONMENTAL SERVICES LTD,895,TA ESTATE VOIDS,PREMISES CLEANING,5902536011,1000023922
02.08.2022,RESIDENT SERVICES,EXTREME ENVIRONMENTAL SERVICES LTD,895,TA ESTATE VOIDS,PREMISES CLEANING,5902536064,1000023922
02.08.2022,RESIDENT SERVICES,EXTREME ENVIRONMENTAL SERVICES LTD,"1,100.00",TA ESTATE VOIDS,PREMISES CLEANING,5902536012,1000023922
02.08.2022,RESIDENT SERVICES,EXTREME ENVIRONMENTAL SERVICES LTD,"2,600.00",TA ESTATE VOIDS,PREMISES CLEANING,5902535996,1000023922
02.08.2022,RESIDENT SERVICES HGF,REDACTED PERSONAL DATA,"2,796.12",HOMELESS PROJECTS,GRANTS,REDACTED,REDACTED
02.08.2022,RESIDENT SERVICES HGF,SMARTLET ESTATES LTD,"1,050.00",HOMELESS PROJECTS,GRANTS,5902536145,1000086913
02.08.2022,RESIDENT SERVICES HGF,SMARTLET ESTATES LTD,"1,585.44",HOMELESS PROJECTS,GRANTS,5902536135,1000086913
02.08.2022,SOUTHWARK BUILDING SERVICES,ONSITE SUPPORT LTD,316.8,STORES/LOGISTICS,CREDITORS -GR/IR CLEARING ACCOUNT,5902536120,1000043198
03.08.2022,ADULT SOCIAL CARE,3 SPIRIT ENTERPRISE UK LTD,375,ADULTS MULTI-AGENCY SAFEGUARDING TRNG,TRAINING,5902536203,1000085339
03.08.2022,ADULT SOCIAL CARE,REDACTED PERSONAL DATA,395.2,APPOINTEESHIPS,OTHER PAYMENTS FOR CLIENTS,REDACTED,REDACTED
03.08.2022,ADULT SOCIAL CARE,UNIQUE PERSONNEL (UK) LTD,336.68,DISCHARGE TO ACCESS,HOMECARE - C&V,2103536399,1000075451
03.08.2022,ADULT SOCIAL CARE,UNIQUE PERSONNEL (UK) LTD,682.22,DISCHARGE TO ACCESS,HOMECARE - C&V,2103536400,1000075451
03.08.2022,ADULT SOCIAL CARE,UNIQUE PERSONNEL (UK) LTD,682.22,DISCHARGE TO ACCESS,HOMECARE - C&V,2103536401,1000075451
03.08.2022,ADULT SOCIAL CARE,UNIQUE PERSONNEL (UK) LTD,699.94,DISCHARGE TO ACCESS,HOMECARE - C&V,2103536398,1000075451
03.08.2022,ADULT SOCIAL CARE,PEOPLEPLUS ILS,300.37,DISCHARGE TO ACCESS,PAYMENTS TO CLIENTS (DIRECT PAYMENTS),2103536539,1000061886
03.08.2022,ADULT SOCIAL CARE,ACCESS MOBILITY TRANSPORT LTD,390,LD LTS 18-64,CLIENT TRANSPORT,2103536782,1000074637
03.08.2022,ADULT SOCIAL CARE,PEOPLEPLUS ILS,-467.38,LD LTS 18-64,DISCRETIONARY FLEXIBLE FEES & INCOME,2103536215,1000061886
03.08.2022,ADULT SOCIAL CARE,PEOPLEPLUS ILS,-279.97,LD LTS 18-64,DISCRETIONARY FLEXIBLE FEES & INCOME,2103536224,1000061886
03.08.2022,ADULT SOCIAL CARE,REDACTED PERSONAL DATA,-277.2,LD LTS 18-64,DISCRETIONARY FLEXIBLE FEES & INCOME,REDACTED,REDACTED
03.08.2022,ADULT SOCIAL CARE,PEOPLEPLUS ILS,"-10,000.33",LD LTS 18-64,PAYMENTS TO CLIENTS (DIRECT PAYMENTS),2103535768,1000061886
03.08.2022,ADULT SOCIAL CARE,PEOPLEPLUS ILS,254.41,LD LTS 18-64,PAYMENTS TO CLIENTS (DIRECT PAYMENTS),2103536019,1000061886
03.08.2022,ADULT SOCIAL CARE,PEOPLEPLUS ILS,254.41,LD LTS 18-64,PAYMENTS TO CLIENTS (DIRECT PAYMENTS),2103536371,1000061886
03.08.2022,ADULT SOCIAL CARE,PEOPLEPLUS ILS,262.82,LD LTS 18-64,PAYMENTS TO CLIENTS (DIRECT PAYMENTS),2103535952,1000061886
03.08.2022,ADULT SOCIAL CARE,PEOPLEPLUS ILS,271.75,LD LTS 18-64,PAYMENTS TO CLIENTS (DIRECT PAYMENTS),2103535803,1000061886
03.08.2022,ADULT SOCIAL CARE,PEOPLEPLUS ILS,281.71,LD LTS 18-64,PAYMENTS TO CLIENTS (DIRECT PAYMENTS),2103536017,1000061886
03.08.2022,ADULT SOCIAL CARE,PEOPLEPLUS ILS,286.62,LD LTS 18-64,PAYMENTS TO CLIENTS (DIRECT PAYMENTS),2103535900,1000061886
03.08.2022,ADULT SOCIAL CARE,PEOPLEPLUS ILS,300.37,LD LTS 18-64,PAYMENTS TO CLIENTS (DIRECT PAYMENTS),2103536100,1000061886
03.08.2022,ADULT SOCIAL CARE,PEOPLEPLUS ILS,300.37,LD LTS 18-64,PAYMENTS TO CLIENTS (DIRECT PAYMENTS),2103536368,1000061886
03.08.2022,ADULT SOCIAL CARE,PEOPLEPLUS ILS,300.37,LD LTS 18-64,PAYMENTS TO CLIENTS (DIRECT PAYMENTS),2103536377,1000061886
03.08.2022,ADULT SOCIAL CARE,PEOPLEPLUS ILS,329.51,LD LTS 18-64,PAYMENTS TO CLIENTS (DIRECT PAYMENTS),2103535871,1000061886
03.08.2022,ADULT SOCIAL CARE,PEOPLEPLUS ILS,329.51,LD LTS 18-64,PAYMENTS TO CLIENTS (DIRECT PAYMENTS),2103536326,1000061886
03.08.2022,ADULT SOCIAL CARE,PEOPLEPLUS ILS,366.08,LD LTS 18-64,PAYMENTS TO CLIENTS (DIRECT PAYMENTS),2103536041,1000061886
03.08.2022,ADULT SOCIAL CARE,PEOPLEPLUS ILS,367.05,LD LTS 18-64,PAYMENTS TO CLIENTS (DIRECT PAYMENTS),2103535685,1000061886
03.08.2022,ADULT SOCIAL CARE,PEOPLEPLUS ILS,375.46,LD LTS 18-64,PAYMENTS TO CLIENTS (DIRECT PAYMENTS),2103536007,1000061886
03.08.2022,ADULT SOCIAL CARE,PEOPLEPLUS ILS,404.6,LD LTS 18-64,PAYMENTS TO CLIENTS (DIRECT PAYMENTS),2103536069,1000061886
03.08.2022,ADULT SOCIAL CARE,PEOPLEPLUS ILS,412.86,LD LTS 18-64,PAYMENTS TO CLIENTS (DIRECT PAYMENTS),2103536127,1000061886
03.08.2022,ADULT SOCIAL CARE,PEOPLEPLUS ILS,427.43,LD LTS 18-64,PAYMENTS TO CLIENTS (DIRECT PAYMENTS),2103535793,1000061886
03.08.2022,ADULT SOCIAL CARE,PEOPLEPLUS ILS,450.55,LD LTS 18-64,PAYMENTS TO CLIENTS (DIRECT PAYMENTS),2103535725,1000061886
03.08.2022,ADULT SOCIAL CARE,PEOPLEPLUS ILS,450.55,LD LTS 18-64,PAYMENTS TO CLIENTS (DIRECT PAYMENTS),2103536375,1000061886
03.08.2022,ADULT SOCIAL CARE,PEOPLEPLUS ILS,479.4,LD LTS 18-64,PAYMENTS TO CLIENTS (DIRECT PAYMENTS),2103535894,1000061886
03.08.2022,ADULT SOCIAL CARE,PEOPLEPLUS ILS,479.69,LD LTS 18-64,PAYMENTS TO CLIENTS (DIRECT PAYMENTS),2103535704,1000061886
03.08.2022,ADULT SOCIAL CARE,PEOPLEPLUS ILS,485.47,LD LTS 18-64,PAYMENTS TO CLIENTS (DIRECT PAYMENTS),2103536068,1000061886
03.08.2022,ADULT SOCIAL CARE,PEOPLEPLUS ILS,488.14,LD LTS 18-64,PAYMENTS TO CLIENTS (DIRECT PAYMENTS),2103536294,1000061886
03.08.2022,ADULT SOCIAL CARE,PEOPLEPLUS ILS,490.43,LD LTS 18-64,PAYMENTS TO CLIENTS (DIRECT PAYMENTS),2103536275,1000061886
03.08.2022,ADULT SOCIAL CARE,PEOPLEPLUS ILS,495.03,LD LTS 18-64,PAYMENTS TO CLIENTS (DIRECT PAYMENTS),2103536344,1000061886
03.08.2022,ADULT SOCIAL CARE,PEOPLEPLUS ILS,500.28,LD LTS 18-64,PAYMENTS TO CLIENTS (DIRECT PAYMENTS),2103536125,1000061886
03.08.2022,ADULT SOCIAL CARE,PEOPLEPLUS ILS,563.19,LD LTS 18-64,PAYMENTS TO CLIENTS (DIRECT PAYMENTS),2103535934,1000061886
03.08.2022,ADULT SOCIAL CARE,PEOPLEPLUS ILS,586.35,LD LTS 18-64,PAYMENTS TO CLIENTS (DIRECT PAYMENTS),2103535855,1000061886
03.08.2022,ADULT SOCIAL CARE,PEOPLEPLUS ILS,592.33,LD LTS 18-64,PAYMENTS TO CLIENTS (DIRECT PAYMENTS),2103536079,1000061886
03.08.2022,ADULT SOCIAL CARE,PEOPLEPLUS ILS,593.78,LD LTS 18-64,PAYMENTS TO CLIENTS (DIRECT PAYMENTS),2103536216,1000061886
03.08.2022,ADULT SOCIAL CARE,PEOPLEPLUS ILS,593.98,LD LTS 18-64,PAYMENTS TO CLIENTS (DIRECT PAYMENTS),2103535995,1000061886
03.08.2022,ADULT SOCIAL CARE,PEOPLEPLUS ILS,611.1,LD LTS 18-64,PAYMENTS TO CLIENTS (DIRECT PAYMENTS),2103535711,1000061886
03.08.2022,ADULT SOCIAL CARE,PEOPLEPLUS ILS,621.1,LD LTS 18-64,PAYMENTS TO CLIENTS (DIRECT PAYMENTS),2103535908,1000061886
03.08.2022,ADULT SOCIAL CARE,PEOPLEPLUS ILS,639.27,LD LTS 18-64,PAYMENTS TO CLIENTS (DIRECT PAYMENTS),2103536250,1000061886
03.08.2022,ADULT SOCIAL CARE,PEOPLEPLUS ILS,686.19,LD LTS 18-64,PAYMENTS TO CLIENTS (DIRECT PAYMENTS),2103536352,1000061886
03.08.2022,ADULT SOCIAL CARE,PEOPLEPLUS ILS,687.34,LD LTS 18-64,PAYMENTS TO CLIENTS (DIRECT PAYMENTS),2103536272,1000061886
03.08.2022,ADULT SOCIAL CARE,PEOPLEPLUS ILS,693.94,LD LTS 18-64,PAYMENTS TO CLIENTS (DIRECT PAYMENTS),2103535800,1000061886
03.08.2022,ADULT SOCIAL CARE,PEOPLEPLUS ILS,702.53,LD LTS 18-64,PAYMENTS TO CLIENTS (DIRECT PAYMENTS),2103535703,1000061886
03.08.2022,ADULT SOCIAL CARE,PEOPLEPLUS ILS,710.36,LD LTS 18-64,PAYMENTS TO CLIENTS (DIRECT PAYMENTS),2103535805,1000061886
03.08.2022,ADULT SOCIAL CARE,PEOPLEPLUS ILS,742.51,LD LTS 18-64,PAYMENTS TO CLIENTS (DIRECT PAYMENTS),2103536247,1000061886
03.08.2022,ADULT SOCIAL CARE,PEOPLEPLUS ILS,744.96,LD LTS 18-64,PAYMENTS TO CLIENTS (DIRECT PAYMENTS),2103535917,1000061886
03.08.2022,ADULT SOCIAL CARE,PEOPLEPLUS ILS,765.48,LD LTS 18-64,PAYMENTS TO CLIENTS (DIRECT PAYMENTS),2103536267,1000061886
03.08.2022,ADULT SOCIAL CARE,PEOPLEPLUS ILS,772.09,LD LTS 18-64,PAYMENTS TO CLIENTS (DIRECT PAYMENTS),2103535812,1000061886
03.08.2022,ADULT SOCIAL CARE,PEOPLEPLUS ILS,772.09,LD LTS 18-64,PAYMENTS TO CLIENTS (DIRECT PAYMENTS),2103536157,1000061886
03.08.2022,ADULT SOCIAL CARE,PEOPLEPLUS ILS,773.55,LD LTS 18-64,PAYMENTS TO CLIENTS (DIRECT PAYMENTS),2103535940,1000061886
03.08.2022,ADULT SOCIAL CARE,PEOPLEPLUS ILS,873.46,LD LTS 18-64,PAYMENTS TO CLIENTS (DIRECT PAYMENTS),2103535851,1000061886
03.08.2022,ADULT SOCIAL CARE,PEOPLEPLUS ILS,953.99,LD LTS 18-64,PAYMENTS TO CLIENTS (DIRECT PAYMENTS),2103535867,1000061886
03.08.2022,ADULT SOCIAL CARE,PEOPLEPLUS ILS,"1,025.44",LD LTS 18-64,PAYMENTS TO CLIENTS (DIRECT PAYMENTS),2103536392,1000061886
03.08.2022,ADULT SOCIAL CARE,PEOPLEPLUS ILS,"1,055.84",LD LTS 18-64,PAYMENTS TO CLIENTS (DIRECT PAYMENTS),2103535979,1000061886
03.08.2022,ADULT SOCIAL CARE,PEOPLEPLUS ILS,"1,079.95",LD LTS 18-64,PAYMENTS TO CLIENTS (DIRECT PAYMENTS),2103535740,1000061886
03.08.2022,ADULT SOCIAL CARE,PEOPLEPLUS ILS,"1,119.33",LD LTS 18-64,PAYMENTS TO CLIENTS (DIRECT PAYMENTS),2103536301,1000061886
03.08.2022,ADULT SOCIAL CARE,PEOPLEPLUS ILS,"1,126.37",LD LTS 18-64,PAYMENTS TO CLIENTS (DIRECT PAYMENTS),2103535723,1000061886
03.08.2022,ADULT SOCIAL CARE,PEOPLEPLUS ILS,"1,126.37",LD LTS 18-64,PAYMENTS TO CLIENTS (DIRECT PAYMENTS),2103536036,1000061886
03.08.2022,ADULT SOCIAL CARE,PEOPLEPLUS ILS,"1,155.13",LD LTS 18-64,PAYMENTS TO CLIENTS (DIRECT PAYMENTS),2103535781,1000061886
03.08.2022,ADULT SOCIAL CARE,PEOPLEPLUS ILS,"1,179.80",LD LTS 18-64,PAYMENTS TO CLIENTS (DIRECT PAYMENTS),2103535707,1000061886
03.08.2022,ADULT SOCIAL CARE,PEOPLEPLUS ILS,"1,186.43",LD LTS 18-64,PAYMENTS TO CLIENTS (DIRECT PAYMENTS),2103536322,1000061886
03.08.2022,ADULT SOCIAL CARE,PEOPLEPLUS ILS,"1,187.46",LD LTS 18-64,PAYMENTS TO CLIENTS (DIRECT PAYMENTS),2103536260,1000061886
03.08.2022,ADULT SOCIAL CARE,PEOPLEPLUS ILS,"1,236.43",LD LTS 18-64,PAYMENTS TO CLIENTS (DIRECT PAYMENTS),2103536351,1000061886
03.08.2022,ADULT SOCIAL CARE,PEOPLEPLUS ILS,"1,242.50",LD LTS 18-64,PAYMENTS TO CLIENTS (DIRECT PAYMENTS),2103535715,1000061886
03.08.2022,ADULT SOCIAL CARE,PEOPLEPLUS ILS,"1,279.59",LD LTS 18-64,PAYMENTS TO CLIENTS (DIRECT PAYMENTS),2103536205,1000061886
03.08.2022,ADULT SOCIAL CARE,PEOPLEPLUS ILS,"1,314.10",LD LTS 18-64,PAYMENTS TO CLIENTS (DIRECT PAYMENTS),2103536188,1000061886
03.08.2022,ADULT SOCIAL CARE,PEOPLEPLUS ILS,"1,330.37",LD LTS 18-64,PAYMENTS TO CLIENTS (DIRECT PAYMENTS),2103536023,1000061886
03.08.2022,ADULT SOCIAL CARE,PEOPLEPLUS ILS,"1,343.24",LD LTS 18-64,PAYMENTS TO CLIENTS (DIRECT PAYMENTS),2103536145,1000061886
03.08.2022,ADULT SOCIAL CARE,PEOPLEPLUS ILS,"1,576.92",LD LTS 18-64,PAYMENTS TO CLIENTS (DIRECT PAYMENTS),2103536102,1000061886
03.08.2022,ADULT SOCIAL CARE,PEOPLEPLUS ILS,"1,597.94",LD LTS 18-64,PAYMENTS TO CLIENTS (DIRECT PAYMENTS),2103535767,1000061886
03.08.2022,ADULT SOCIAL CARE,PEOPLEPLUS ILS,"1,655.55",LD LTS 18-64,PAYMENTS TO CLIENTS (DIRECT PAYMENTS),2103536158,1000061886
03.08.2022,ADULT SOCIAL CARE,PEOPLEPLUS ILS,"1,680.57",LD LTS 18-64,PAYMENTS TO CLIENTS (DIRECT PAYMENTS),2103535752,1000061886
03.08.2022,ADULT SOCIAL CARE,PEOPLEPLUS ILS,"1,797.99",LD LTS 18-64,PAYMENTS TO CLIENTS (DIRECT PAYMENTS),2103536358,1000061886
03.08.2022,ADULT SOCIAL CARE,PEOPLEPLUS ILS,"1,848.73",LD LTS 18-64,PAYMENTS TO CLIENTS (DIRECT PAYMENTS),2103535815,1000061886
03.08.2022,ADULT SOCIAL CARE,PEOPLEPLUS ILS,"1,886.51",LD LTS 18-64,PAYMENTS TO CLIENTS (DIRECT PAYMENTS),2103536234,1000061886
03.08.2022,ADULT SOCIAL CARE,PEOPLEPLUS ILS,"2,583.03",LD LTS 18-64,PAYMENTS TO CLIENTS (DIRECT PAYMENTS),2103535705,1000061886
03.08.2022,ADULT SOCIAL CARE,PEOPLEPLUS ILS,"2,830.50",LD LTS 18-64,PAYMENTS TO CLIENTS (DIRECT PAYMENTS),2103535938,1000061886
03.08.2022,ADULT SOCIAL CARE,PEOPLEPLUS ILS,"3,032.80",LD LTS 18-64,PAYMENTS TO CLIENTS (DIRECT PAYMENTS),2103535912,1000061886
03.08.2022,ADULT SOCIAL CARE,PEOPLEPLUS ILS,"3,294.11",LD LTS 18-64,PAYMENTS TO CLIENTS (DIRECT PAYMENTS),2103535868,1000061886
03.08.2022,ADULT SOCIAL CARE,PEOPLEPLUS ILS,"7,178.37",LD LTS 18-64,PAYMENTS TO CLIENTS (DIRECT PAYMENTS),2103535895,1000061886
03.08.2022,ADULT SOCIAL CARE,PEOPLEPLUS ILS,"7,676.23",LD LTS 18-64,PAYMENTS TO CLIENTS (DIRECT PAYMENTS),2103535787,1000061886
03.08.2022,ADULT SOCIAL CARE,PEOPLEPLUS ILS,"7,705.37",LD LTS 18-64,PAYMENTS TO CLIENTS (DIRECT PAYMENTS),2103535786,1000061886
03.08.2022,ADULT SOCIAL CARE,PEOPLEPLUS ILS,"12,537.26",LD LTS 18-64,PAYMENTS TO CLIENTS (DIRECT PAYMENTS),2103536198,1000061886
03.08.2022,ADULT SOCIAL CARE,FRESH IDEAS & SOLUTIONS SERVICES CIC,282.71,LD LTS 18-64,PAYMENTS TO CLIENTS (DIRECT PAYMENTS),2103536006,1000070832
03.08.2022,ADULT SOCIAL CARE,FRESH IDEAS & SOLUTIONS SERVICES CIC,449.28,LD LTS 18-64,PAYMENTS TO CLIENTS (DIRECT PAYMENTS),2103536005,1000070832
03.08.2022,ADULT SOCIAL CARE,FRESH IDEAS & SOLUTIONS SERVICES CIC,537.78,LD LTS 18-64,PAYMENTS TO CLIENTS (DIRECT PAYMENTS),2103535745,1000070832
03.08.2022,ADULT SOCIAL CARE,FRESH IDEAS & SOLUTIONS SERVICES CIC,565.71,LD LTS 18-64,PAYMENTS TO CLIENTS (DIRECT PAYMENTS),2103535789,1000070832
03.08.2022,ADULT SOCIAL CARE,FRESH IDEAS & SOLUTIONS SERVICES CIC,635.99,LD LTS 18-64,PAYMENTS TO CLIENTS (DIRECT PAYMENTS),2103535896,1000070832
03.08.2022,ADULT SOCIAL CARE,FRESH IDEAS & SOLUTIONS SERVICES CIC,"1,066.87",LD LTS 18-64,PAYMENTS TO CLIENTS (DIRECT PAYMENTS),2103535743,1000070832
03.08.2022,ADULT SOCIAL CARE,REDACTED PERSONAL DATA,"1,501.83",LD LTS 18-64,PAYMENTS TO CLIENTS (DIRECT PAYMENTS),REDACTED,REDACTED
03.08.2022,ADULT SOCIAL CARE,REDACTED PERSONAL DATA,462.69,LD LTS 18-64,PAYMENTS TO CLIENTS (DIRECT PAYMENTS),REDACTED,REDACTED
03.08.2022,ADULT SOCIAL CARE,REDACTED PERSONAL DATA,"3,817.67",LD LTS 18-64,PAYMENTS TO CLIENTS (DIRECT PAYMENTS),REDACTED,REDACTED
03.08.2022,ADULT SOCIAL CARE,REDACTED PERSONAL DATA,"1,727.10",LD LTS 18-64,PAYMENTS TO CLIENTS (DIRECT PAYMENTS),REDACTED,REDACTED
03.08.2022,ADULT SOCIAL CARE,REDACTED PERSONAL DATA,"1,314.10",LD LTS 18-64,PAYMENTS TO CLIENTS (DIRECT PAYMENTS),REDACTED,REDACTED
03.08.2022,ADULT SOCIAL CARE,REDACTED PERSONAL DATA,"5,151.36",LD LTS 18-64,PAYMENTS TO CLIENTS (DIRECT PAYMENTS),REDACTED,REDACTED
03.08.2022,ADULT SOCIAL CARE,REDACTED PERSONAL DATA,"1,160.23",LD LTS 18-64,PAYMENTS TO CLIENTS (DIRECT PAYMENTS),REDACTED,REDACTED
03.08.2022,ADULT SOCIAL CARE,REDACTED PERSONAL DATA,"1,310.58",LD LTS 18-64,PAYMENTS TO CLIENTS (DIRECT PAYMENTS),REDACTED,REDACTED
03.08.2022,ADULT SOCIAL CARE,REDACTED PERSONAL DATA,"2,346.39",LD LTS 18-64,PAYMENTS TO CLIENTS (DIRECT PAYMENTS),REDACTED,REDACTED
03.08.2022,ADULT SOCIAL CARE,REDACTED PERSONAL DATA,"1,755.85",LD LTS 18-64,PAYMENTS TO CLIENTS (DIRECT PAYMENTS),REDACTED,REDACTED
03.08.2022,ADULT SOCIAL CARE,REDACTED PERSONAL DATA,251.84,LD LTS 18-64,PAYMENTS TO CLIENTS (DIRECT PAYMENTS),REDACTED,REDACTED
03.08.2022,ADULT SOCIAL CARE,REDACTED PERSONAL DATA,337.18,LD LTS 18-64,PAYMENTS TO CLIENTS (DIRECT PAYMENTS),REDACTED,REDACTED
03.08.2022,ADULT SOCIAL CARE,REDACTED PERSONAL DATA,591.11,LD LTS 18-64,PAYMENTS TO CLIENTS (DIRECT PAYMENTS),REDACTED,REDACTED
03.08.2022,ADULT SOCIAL CARE,REDACTED PERSONAL DATA,836.89,LD LTS 18-64,PAYMENTS TO CLIENTS (DIRECT PAYMENTS),REDACTED,REDACTED
03.08.2022,ADULT SOCIAL CARE,REDACTED PERSONAL DATA,"1,407.11",LD LTS 18-64,PAYMENTS TO CLIENTS (DIRECT PAYMENTS),REDACTED,REDACTED
03.08.2022,ADULT SOCIAL CARE,REDACTED PERSONAL DATA,"1,251.15",LD LTS 18-64,PAYMENTS TO CLIENTS (DIRECT PAYMENTS),REDACTED,REDACTED
03.08.2022,ADULT SOCIAL CARE,REDACTED PERSONAL DATA,339.61,LD LTS 18-64,PAYMENTS TO CLIENTS (DIRECT PAYMENTS),REDACTED,REDACTED
03.08.2022,ADULT SOCIAL CARE,REDACTED PERSONAL DATA,"4,034.10",LD LTS 18-64,PAYMENTS TO CLIENTS (DIRECT PAYMENTS),REDACTED,REDACTED
03.08.2022,ADULT SOCIAL CARE,REDACTED PERSONAL DATA,622.44,LD LTS 18-64,PAYMENTS TO CLIENTS (DIRECT PAYMENTS),REDACTED,REDACTED
03.08.2022,ADULT SOCIAL CARE,REDACTED PERSONAL DATA,"1,255.67",LD LTS 18-64,PAYMENTS TO CLIENTS (DIRECT PAYMENTS),REDACTED,REDACTED
03.08.2022,ADULT SOCIAL CARE,REDACTED PERSONAL DATA,750.91,LD LTS 18-64,PAYMENTS TO CLIENTS (DIRECT PAYMENTS),REDACTED,REDACTED
03.08.2022,ADULT SOCIAL CARE,REDACTED PERSONAL DATA,488.09,LD LTS 18-64,PAYMENTS TO CLIENTS (DIRECT PAYMENTS),REDACTED,REDACTED
03.08.2022,ADULT SOCIAL CARE,REDACTED PERSONAL DATA,"1,284.71",LD LTS 18-64,PAYMENTS TO CLIENTS (DIRECT PAYMENTS),REDACTED,REDACTED
03.08.2022,ADULT SOCIAL CARE,REDACTED PERSONAL DATA,450.55,LD LTS 18-64,PAYMENTS TO CLIENTS (DIRECT PAYMENTS),REDACTED,REDACTED
03.08.2022,ADULT SOCIAL CARE,REDACTED PERSONAL DATA,544.41,LD LTS 18-64,PAYMENTS TO CLIENTS (DIRECT PAYMENTS),REDACTED,REDACTED
03.08.2022,ADULT SOCIAL CARE,REDACTED PERSONAL DATA,292.35,LD LTS 18-64,PAYMENTS TO CLIENTS (DIRECT PAYMENTS),REDACTED,REDACTED
03.08.2022,ADULT SOCIAL CARE,REDACTED PERSONAL DATA,"1,625.20",LD LTS 18-64,PAYMENTS TO CLIENTS (DIRECT PAYMENTS),REDACTED,REDACTED
03.08.2022,ADULT SOCIAL CARE,REDACTED PERSONAL DATA,930.7,LD LTS 18-64,PAYMENTS TO CLIENTS (DIRECT PAYMENTS),REDACTED,REDACTED
03.08.2022,ADULT SOCIAL CARE,REDACTED PERSONAL DATA,"3,908.64",LD LTS 18-64,PAYMENTS TO CLIENTS (DIRECT PAYMENTS),REDACTED,REDACTED
03.08.2022,ADULT SOCIAL CARE,REDACTED PERSONAL DATA,"4,021.13",LD LTS 18-64,PAYMENTS TO CLIENTS (DIRECT PAYMENTS),REDACTED,REDACTED
03.08.2022,ADULT SOCIAL CARE,REDACTED PERSONAL DATA,646.56,LD LTS 18-64,PAYMENTS TO CLIENTS (DIRECT PAYMENTS),REDACTED,REDACTED
03.08.2022,ADULT SOCIAL CARE,REDACTED PERSONAL DATA,"1,526.92",LD LTS 18-64,PAYMENTS TO CLIENTS (DIRECT PAYMENTS),REDACTED,REDACTED
03.08.2022,ADULT SOCIAL CARE,REDACTED PERSONAL DATA,"1,025.90",LD LTS 18-64,PAYMENTS TO CLIENTS (DIRECT PAYMENTS),REDACTED,REDACTED
03.08.2022,ADULT SOCIAL CARE,REDACTED PERSONAL DATA,328.22,LD LTS 18-64,PAYMENTS TO CLIENTS (DIRECT PAYMENTS),REDACTED,REDACTED
03.08.2022,ADULT SOCIAL CARE,REDACTED PERSONAL DATA,785.3,LD LTS 18-64,PAYMENTS TO CLIENTS (DIRECT PAYMENTS),REDACTED,REDACTED
03.08.2022,ADULT SOCIAL CARE,REDACTED PERSONAL DATA,685.83,LD LTS 18-64,PAYMENTS TO CLIENTS (DIRECT PAYMENTS),REDACTED,REDACTED
03.08.2022,ADULT SOCIAL CARE,REDACTED PERSONAL DATA,"1,205.10",LD LTS 18-64,PAYMENTS TO CLIENTS (DIRECT PAYMENTS),REDACTED,REDACTED
03.08.2022,ADULT SOCIAL CARE,REDACTED PERSONAL DATA,277.85,LD LTS 18-64,PAYMENTS TO CLIENTS (DIRECT PAYMENTS),REDACTED,REDACTED
03.08.2022,ADULT SOCIAL CARE,REDACTED PERSONAL DATA,"6,302.14",LD LTS 18-64,PAYMENTS TO CLIENTS (DIRECT PAYMENTS),REDACTED,REDACTED
03.08.2022,ADULT SOCIAL CARE,REDACTED PERSONAL DATA,325.04,LD LTS 18-64,PAYMENTS TO CLIENTS (DIRECT PAYMENTS),REDACTED,REDACTED
03.08.2022,ADULT SOCIAL CARE,REDACTED PERSONAL DATA,674.6,LD LTS 18-64,PAYMENTS TO CLIENTS (DIRECT PAYMENTS),REDACTED,REDACTED
03.08.2022,ADULT SOCIAL CARE,REDACTED PERSONAL DATA,850,LD LTS 18-64,PAYMENTS TO CLIENTS (DIRECT PAYMENTS),REDACTED,REDACTED
03.08.2022,ADULT SOCIAL CARE,REDACTED PERSONAL DATA,"1,661.14",LD LTS 18-64,PAYMENTS TO CLIENTS (DIRECT PAYMENTS),REDACTED,REDACTED
03.08.2022,ADULT SOCIAL CARE,REDACTED PERSONAL DATA,513.54,LD LTS 18-64,PAYMENTS TO CLIENTS (DIRECT PAYMENTS),REDACTED,REDACTED
03.08.2022,ADULT SOCIAL CARE,REDACTED PERSONAL DATA,279.31,LD LTS 18-64,PAYMENTS TO CLIENTS (DIRECT PAYMENTS),REDACTED,REDACTED
03.08.2022,ADULT SOCIAL CARE,REDACTED PERSONAL DATA,685.81,LD LTS 18-64,PAYMENTS TO CLIENTS (DIRECT PAYMENTS),REDACTED,REDACTED
03.08.2022,ADULT SOCIAL CARE,REDACTED PERSONAL DATA,371.47,LD LTS 18-64,PAYMENTS TO CLIENTS (DIRECT PAYMENTS),REDACTED,REDACTED
03.08.2022,ADULT SOCIAL CARE,REDACTED PERSONAL DATA,737.28,LD LTS 18-64,PAYMENTS TO CLIENTS (DIRECT PAYMENTS),REDACTED,REDACTED
03.08.2022,ADULT SOCIAL CARE,REDACTED PERSONAL DATA,850,LD LTS 18-64,PAYMENTS TO CLIENTS (DIRECT PAYMENTS),REDACTED,REDACTED
03.08.2022,ADULT SOCIAL CARE,REDACTED PERSONAL DATA,435.93,LD LTS 18-64,PAYMENTS TO CLIENTS (DIRECT PAYMENTS),REDACTED,REDACTED
03.08.2022,ADULT SOCIAL CARE,REDACTED PERSONAL DATA,"1,101.96",LD LTS 18-64,PAYMENTS TO CLIENTS (DIRECT PAYMENTS),REDACTED,REDACTED
03.08.2022,ADULT SOCIAL CARE,REDACTED PERSONAL DATA,"2,290.29",LD LTS 18-64,PAYMENTS TO CLIENTS (DIRECT PAYMENTS),REDACTED,REDACTED
03.08.2022,ADULT SOCIAL CARE,REDACTED PERSONAL DATA,414.17,LD LTS 18-64,PAYMENTS TO CLIENTS (DIRECT PAYMENTS),REDACTED,REDACTED
03.08.2022,ADULT SOCIAL CARE,GRANGE FARM COMPLEX,"1,079.72",LD LTS 18-64,SUPPORTED LIVING,2103535885,11086081
03.08.2022,ADULT SOCIAL CARE,CARE DIRECT UK LTD,486,LD LTS 18-64,SUPPORTED LIVING,2103536467,1000066322
03.08.2022,ADULT SOCIAL CARE,OLUMBA CARE LIMITED,800,LD LTS 18-64,SUPPORTED LIVING,2103536483,1000087828
03.08.2022,ADULT SOCIAL CARE,OLUMBA CARE LIMITED,"1,170.00",LD LTS 18-64,SUPPORTED LIVING,2103536480,1000087828
03.08.2022,ADULT SOCIAL CARE,REDACTED PERSONAL DATA,626.67,LD LTS 18-64,SUPPORTED LIVING,REDACTED,REDACTED
03.08.2022,ADULT SOCIAL CARE,PEOPLEPLUS ILS,498.78,LD LTS 65+,PAYMENTS TO CLIENTS (DIRECT PAYMENTS),2103535754,1000061886
03.08.2022,ADULT SOCIAL CARE,PEOPLEPLUS ILS,319.14,MEM LTS 18-64,PAYMENTS TO CLIENTS (DIRECT PAYMENTS),2103535719,1000061886
03.08.2022,ADULT SOCIAL CARE,PEOPLEPLUS ILS,953.21,MEM LTS 18-64,PAYMENTS TO CLIENTS (DIRECT PAYMENTS),2103536085,1000061886
03.08.2022,ADULT SOCIAL CARE,PEOPLEPLUS ILS,686.19,MEM LTS 65+,PAYMENTS TO CLIENTS (DIRECT PAYMENTS),2103535697,1000061886
03.08.2022,ADULT SOCIAL CARE,PEOPLEPLUS ILS,"1,193.06",MEM LTS 65+,PAYMENTS TO CLIENTS (DIRECT PAYMENTS),2103535962,1000061886
03.08.2022,ADULT SOCIAL CARE,PEOPLEPLUS ILS,"1,445.51",MEM LTS 65+,PAYMENTS TO CLIENTS (DIRECT PAYMENTS),2103536080,1000061886
03.08.2022,ADULT SOCIAL CARE,REDACTED PERSONAL DATA,"1,035.27",MEM LTS 65+,PAYMENTS TO CLIENTS (DIRECT PAYMENTS),REDACTED,REDACTED
03.08.2022,ADULT SOCIAL CARE,PEOPLEPLUS ILS,-403.41,MH LTS 18-64,DISCRETIONARY FLEXIBLE FEES & INCOME,2103535945,1000061886
03.08.2022,ADULT SOCIAL CARE,PEOPLEPLUS ILS,254.41,MH LTS 18-64,PAYMENTS TO CLIENTS (DIRECT PAYMENTS),2103536357,1000061886
03.08.2022,ADULT SOCIAL CARE,PEOPLEPLUS ILS,308.77,MH LTS 18-64,PAYMENTS TO CLIENTS (DIRECT PAYMENTS),2103536225,1000061886
03.08.2022,ADULT SOCIAL CARE,PEOPLEPLUS ILS,327.08,MH LTS 18-64,PAYMENTS TO CLIENTS (DIRECT PAYMENTS),2103535854,1000061886
03.08.2022,ADULT SOCIAL CARE,PEOPLEPLUS ILS,329.51,MH LTS 18-64,PAYMENTS TO CLIENTS (DIRECT PAYMENTS),2103536263,1000061886
03.08.2022,ADULT SOCIAL CARE,PEOPLEPLUS ILS,339.9,MH LTS 18-64,PAYMENTS TO CLIENTS (DIRECT PAYMENTS),2103535897,1000061886
03.08.2022,ADULT SOCIAL CARE,PEOPLEPLUS ILS,355.37,MH LTS 18-64,PAYMENTS TO CLIENTS (DIRECT PAYMENTS),2103535765,1000061886
03.08.2022,ADULT SOCIAL CARE,PEOPLEPLUS ILS,358.36,MH LTS 18-64,PAYMENTS TO CLIENTS (DIRECT PAYMENTS),2103536211,1000061886
03.08.2022,ADULT SOCIAL CARE,PEOPLEPLUS ILS,371.47,MH LTS 18-64,PAYMENTS TO CLIENTS (DIRECT PAYMENTS),2103536218,1000061886
03.08.2022,ADULT SOCIAL CARE,PEOPLEPLUS ILS,375.46,MH LTS 18-64,PAYMENTS TO CLIENTS (DIRECT PAYMENTS),2103535878,1000061886
03.08.2022,ADULT SOCIAL CARE,PEOPLEPLUS ILS,375.46,MH LTS 18-64,PAYMENTS TO CLIENTS (DIRECT PAYMENTS),2103536279,1000061886
03.08.2022,ADULT SOCIAL CARE,PEOPLEPLUS ILS,385.29,MH LTS 18-64,PAYMENTS TO CLIENTS (DIRECT PAYMENTS),2103536012,1000061886
03.08.2022,ADULT SOCIAL CARE,PEOPLEPLUS ILS,422.65,MH LTS 18-64,PAYMENTS TO CLIENTS (DIRECT PAYMENTS),2103536054,1000061886
03.08.2022,ADULT SOCIAL CARE,PEOPLEPLUS ILS,448.58,MH LTS 18-64,PAYMENTS TO CLIENTS (DIRECT PAYMENTS),2103536226,1000061886
03.08.2022,ADULT SOCIAL CARE,PEOPLEPLUS ILS,611.1,MH LTS 18-64,PAYMENTS TO CLIENTS (DIRECT PAYMENTS),2103535961,1000061886
03.08.2022,ADULT SOCIAL CARE,PEOPLEPLUS ILS,727.94,MH LTS 18-64,PAYMENTS TO CLIENTS (DIRECT PAYMENTS),2103535817,1000061886
03.08.2022,ADULT SOCIAL CARE,PEOPLEPLUS ILS,"1,224.00",MH LTS 18-64,PAYMENTS TO CLIENTS (DIRECT PAYMENTS),2103535846,1000061886
03.08.2022,ADULT SOCIAL CARE,PEOPLEPLUS ILS,"1,500.47",MH LTS 18-64,PAYMENTS TO CLIENTS (DIRECT PAYMENTS),2103536355,1000061886
03.08.2022,ADULT SOCIAL CARE,FRESH IDEAS & SOLUTIONS SERVICES CIC,424.27,MH LTS 18-64,PAYMENTS TO CLIENTS (DIRECT PAYMENTS),2103536381,1000070832
03.08.2022,ADULT SOCIAL CARE,REDACTED PERSONAL DATA,"1,657.64",MH LTS 18-64,PAYMENTS TO CLIENTS (DIRECT PAYMENTS),REDACTED,REDACTED
03.08.2022,ADULT SOCIAL CARE,OLUMBA CARE LIMITED,540,MH LTS 18-64,SUPPORTED LIVING,2103536482,1000087828
03.08.2022,ADULT SOCIAL CARE,PEOPLEPLUS ILS,733.79,MH LTS 65+,PAYMENTS TO CLIENTS (DIRECT PAYMENTS),2103535907,1000061886
03.08.2022,ADULT SOCIAL CARE,PEOPLEPLUS ILS,663.09,PHB- SOUTHWARK CCG,RECOVERABLE COSTS INCL. HEALTH,2103535845,1000061886
03.08.2022,ADULT SOCIAL CARE,PEOPLEPLUS ILS,957.83,PHB- SOUTHWARK CCG,RECOVERABLE COSTS INCL. HEALTH,2103536255,1000061886
03.08.2022,ADULT SOCIAL CARE,PEOPLEPLUS ILS,"1,004.26",PHB- SOUTHWARK CCG,RECOVERABLE COSTS INCL. HEALTH,2103535914,1000061886
03.08.2022,ADULT SOCIAL CARE,PEOPLEPLUS ILS,"2,512.31",PHB- SOUTHWARK CCG,RECOVERABLE COSTS INCL. HEALTH,2103536302,1000061886
03.08.2022,ADULT SOCIAL CARE,REDACTED PERSONAL DATA,"5,512.37",PHB- SOUTHWARK CCG,RECOVERABLE COSTS INCL. HEALTH,REDACTED,REDACTED
03.08.2022,ADULT SOCIAL CARE,REDACTED PERSONAL DATA,"1,729.26",PHB- SOUTHWARK CCG,RECOVERABLE COSTS INCL. HEALTH,REDACTED,REDACTED
03.08.2022,ADULT SOCIAL CARE,REDACTED PERSONAL DATA,"2,817.97",PHB- SOUTHWARK CCG,RECOVERABLE COSTS INCL. HEALTH,REDACTED,REDACTED
03.08.2022,ADULT SOCIAL CARE,REDACTED PERSONAL DATA,919.32,PHB- SOUTHWARK CCG,RECOVERABLE COSTS INCL. HEALTH,REDACTED,REDACTED
03.08.2022,ADULT SOCIAL CARE,REDACTED PERSONAL DATA,"2,501.91",PHB- SOUTHWARK CCG,RECOVERABLE COSTS INCL. HEALTH,REDACTED,REDACTED
03.08.2022,ADULT SOCIAL CARE,REDACTED PERSONAL DATA,"1,547.92",PHB- SOUTHWARK CCG,RECOVERABLE COSTS INCL. HEALTH,REDACTED,REDACTED
03.08.2022,ADULT SOCIAL CARE,REDACTED PERSONAL DATA,"4,313.94",PHB- SOUTHWARK CCG,RECOVERABLE COSTS INCL. HEALTH,REDACTED,REDACTED
03.08.2022,ADULT SOCIAL CARE,REDACTED PERSONAL DATA,"1,980.55",PHB- SOUTHWARK CCG,RECOVERABLE COSTS INCL. HEALTH,REDACTED,REDACTED
03.08.2022,ADULT SOCIAL CARE,REDACTED PERSONAL DATA,"2,006.65",PHB- SOUTHWARK CCG,RECOVERABLE COSTS INCL. HEALTH,REDACTED,REDACTED
03.08.2022,ADULT SOCIAL CARE,PHOENIX HEALTHCARE & RECRUITMENT,"1,033.74",PHY LTS 18-64,DAYCARE,2103536481,1000065636
03.08.2022,ADULT SOCIAL CARE,PEOPLEPLUS ILS,-276.15,PHY LTS 18-64,DISCRETIONARY FLEXIBLE FEES & INCOME,2103535843,1000061886
03.08.2022,ADULT SOCIAL CARE,PEOPLEPLUS ILS,-263.6,PHY LTS 18-64,DISCRETIONARY FLEXIBLE FEES & INCOME,2103535735,1000061886
03.08.2022,ADULT SOCIAL CARE,PEOPLEPLUS ILS,-260.22,PHY LTS 18-64,DISCRETIONARY FLEXIBLE FEES & INCOME,2103535941,1000061886
03.08.2022,ADULT SOCIAL CARE,REDACTED PERSONAL DATA,-316.64,PHY LTS 18-64,DISCRETIONARY FLEXIBLE FEES & INCOME,REDACTED,REDACTED
03.08.2022,ADULT SOCIAL CARE,CARE DIRECT UK LTD,381.44,PHY LTS 18-64,HOMECARE - SPOT,2103536460,1000066322
03.08.2022,ADULT SOCIAL CARE,CARE DIRECT UK LTD,646.2,PHY LTS 18-64,HOMECARE - SPOT,2103536455,1000066322
03.08.2022,ADULT SOCIAL CARE,UNIQUE PERSONNEL (UK) LTD,283.52,PHY LTS 18-64,HOMECARE - SPOT,2103536406,1000075451
03.08.2022,ADULT SOCIAL CARE,UNIQUE PERSONNEL (UK) LTD,283.52,PHY LTS 18-64,HOMECARE - SPOT,2103536437,1000075451
03.08.2022,ADULT SOCIAL CARE,PEOPLEPLUS ILS,254.41,PHY LTS 18-64,PAYMENTS TO CLIENTS (DIRECT PAYMENTS),2103535975,1000061886
03.08.2022,ADULT SOCIAL CARE,PEOPLEPLUS ILS,296.16,PHY LTS 18-64,PAYMENTS TO CLIENTS (DIRECT PAYMENTS),2103536360,1000061886
03.08.2022,ADULT SOCIAL CARE,PEOPLEPLUS ILS,328.54,PHY LTS 18-64,PAYMENTS TO CLIENTS (DIRECT PAYMENTS),2103536273,1000061886
03.08.2022,ADULT SOCIAL CARE,PEOPLEPLUS ILS,366.08,PHY LTS 18-64,PAYMENTS TO CLIENTS (DIRECT PAYMENTS),2103536196,1000061886
03.08.2022,ADULT SOCIAL CARE,PEOPLEPLUS ILS,375.46,PHY LTS 18-64,PAYMENTS TO CLIENTS (DIRECT PAYMENTS),2103535728,1000061886
03.08.2022,ADULT SOCIAL CARE,PEOPLEPLUS ILS,394.23,PHY LTS 18-64,PAYMENTS TO CLIENTS (DIRECT PAYMENTS),2103535933,1000061886
03.08.2022,ADULT SOCIAL CARE,PEOPLEPLUS ILS,403.63,PHY LTS 18-64,PAYMENTS TO CLIENTS (DIRECT PAYMENTS),2103535935,1000061886
03.08.2022,ADULT SOCIAL CARE,PEOPLEPLUS ILS,414,PHY LTS 18-64,PAYMENTS TO CLIENTS (DIRECT PAYMENTS),2103536160,1000061886
03.08.2022,ADULT SOCIAL CARE,PEOPLEPLUS ILS,415.28,PHY LTS 18-64,PAYMENTS TO CLIENTS (DIRECT PAYMENTS),2103536134,1000061886
03.08.2022,ADULT SOCIAL CARE,PEOPLEPLUS ILS,423.37,PHY LTS 18-64,PAYMENTS TO CLIENTS (DIRECT PAYMENTS),2103536233,1000061886
03.08.2022,ADULT SOCIAL CARE,PEOPLEPLUS ILS,423.37,PHY LTS 18-64,PAYMENTS TO CLIENTS (DIRECT PAYMENTS),2103536244,1000061886
03.08.2022,ADULT SOCIAL CARE,PEOPLEPLUS ILS,450.55,PHY LTS 18-64,PAYMENTS TO CLIENTS (DIRECT PAYMENTS),2103535943,1000061886
03.08.2022,ADULT SOCIAL CARE,PEOPLEPLUS ILS,460.92,PHY LTS 18-64,PAYMENTS TO CLIENTS (DIRECT PAYMENTS),2103536348,1000061886
03.08.2022,ADULT SOCIAL CARE,PEOPLEPLUS ILS,465.12,PHY LTS 18-64,PAYMENTS TO CLIENTS (DIRECT PAYMENTS),2103535968,1000061886
03.08.2022,ADULT SOCIAL CARE,PEOPLEPLUS ILS,468.47,PHY LTS 18-64,PAYMENTS TO CLIENTS (DIRECT PAYMENTS),2103535999,1000061886
03.08.2022,ADULT SOCIAL CARE,PEOPLEPLUS ILS,469.32,PHY LTS 18-64,PAYMENTS TO CLIENTS (DIRECT PAYMENTS),2103535836,1000061886
03.08.2022,ADULT SOCIAL CARE,PEOPLEPLUS ILS,474.52,PHY LTS 18-64,PAYMENTS TO CLIENTS (DIRECT PAYMENTS),2103535872,1000061886
03.08.2022,ADULT SOCIAL CARE,PEOPLEPLUS ILS,479.69,PHY LTS 18-64,PAYMENTS TO CLIENTS (DIRECT PAYMENTS),2103535921,1000061886
03.08.2022,ADULT SOCIAL CARE,PEOPLEPLUS ILS,489.09,PHY LTS 18-64,PAYMENTS TO CLIENTS (DIRECT PAYMENTS),2103535684,1000061886
03.08.2022,ADULT SOCIAL CARE,PEOPLEPLUS ILS,498.46,PHY LTS 18-64,PAYMENTS TO CLIENTS (DIRECT PAYMENTS),2103535984,1000061886
03.08.2022,ADULT SOCIAL CARE,PEOPLEPLUS ILS,516.22,PHY LTS 18-64,PAYMENTS TO CLIENTS (DIRECT PAYMENTS),2103535717,1000061886
03.08.2022,ADULT SOCIAL CARE,PEOPLEPLUS ILS,516.27,PHY LTS 18-64,PAYMENTS TO CLIENTS (DIRECT PAYMENTS),2103536278,1000061886
03.08.2022,ADULT SOCIAL CARE,PEOPLEPLUS ILS,517.23,PHY LTS 18-64,PAYMENTS TO CLIENTS (DIRECT PAYMENTS),2103536174,1000061886
03.08.2022,ADULT SOCIAL CARE,PEOPLEPLUS ILS,535.04,PHY LTS 18-64,PAYMENTS TO CLIENTS (DIRECT PAYMENTS),2103535838,1000061886
03.08.2022,ADULT SOCIAL CARE,PEOPLEPLUS ILS,564.18,PHY LTS 18-64,PAYMENTS TO CLIENTS (DIRECT PAYMENTS),2103536067,1000061886
03.08.2022,ADULT SOCIAL CARE,PEOPLEPLUS ILS,588.09,PHY LTS 18-64,PAYMENTS TO CLIENTS (DIRECT PAYMENTS),2103536113,1000061886
03.08.2022,ADULT SOCIAL CARE,PEOPLEPLUS ILS,593.98,PHY LTS 18-64,PAYMENTS TO CLIENTS (DIRECT PAYMENTS),2103535683,1000061886
03.08.2022,ADULT SOCIAL CARE,PEOPLEPLUS ILS,610.13,PHY LTS 18-64,PAYMENTS TO CLIENTS (DIRECT PAYMENTS),2103536186,1000061886
03.08.2022,ADULT SOCIAL CARE,PEOPLEPLUS ILS,611.1,PHY LTS 18-64,PAYMENTS TO CLIENTS (DIRECT PAYMENTS),2103536232,1000061886
03.08.2022,ADULT SOCIAL CARE,PEOPLEPLUS ILS,619.5,PHY LTS 18-64,PAYMENTS TO CLIENTS (DIRECT PAYMENTS),2103535837,1000061886
03.08.2022,ADULT SOCIAL CARE,PEOPLEPLUS ILS,621.59,PHY LTS 18-64,PAYMENTS TO CLIENTS (DIRECT PAYMENTS),2103536203,1000061886
03.08.2022,ADULT SOCIAL CARE,PEOPLEPLUS ILS,628.9,PHY LTS 18-64,PAYMENTS TO CLIENTS (DIRECT PAYMENTS),2103536183,1000061886
03.08.2022,ADULT SOCIAL CARE,PEOPLEPLUS ILS,629.87,PHY LTS 18-64,PAYMENTS TO CLIENTS (DIRECT PAYMENTS),2103535819,1000061886
03.08.2022,ADULT SOCIAL CARE,PEOPLEPLUS ILS,629.87,PHY LTS 18-64,PAYMENTS TO CLIENTS (DIRECT PAYMENTS),2103536070,1000061886
03.08.2022,ADULT SOCIAL CARE,PEOPLEPLUS ILS,631.43,PHY LTS 18-64,PAYMENTS TO CLIENTS (DIRECT PAYMENTS),2103535863,1000061886
03.08.2022,ADULT SOCIAL CARE,PEOPLEPLUS ILS,638.28,PHY LTS 18-64,PAYMENTS TO CLIENTS (DIRECT PAYMENTS),2103536376,1000061886
03.08.2022,ADULT SOCIAL CARE,PEOPLEPLUS ILS,648.64,PHY LTS 18-64,PAYMENTS TO CLIENTS (DIRECT PAYMENTS),2103536161,1000061886
03.08.2022,ADULT SOCIAL CARE,PEOPLEPLUS ILS,651.69,PHY LTS 18-64,PAYMENTS TO CLIENTS (DIRECT PAYMENTS),2103535903,1000061886
03.08.2022,ADULT SOCIAL CARE,PEOPLEPLUS ILS,694.6,PHY LTS 18-64,PAYMENTS TO CLIENTS (DIRECT PAYMENTS),2103536044,1000061886
03.08.2022,ADULT SOCIAL CARE,PEOPLEPLUS ILS,722.77,PHY LTS 18-64,PAYMENTS TO CLIENTS (DIRECT PAYMENTS),2103535930,1000061886
03.08.2022,ADULT SOCIAL CARE,PEOPLEPLUS ILS,742.51,PHY LTS 18-64,PAYMENTS TO CLIENTS (DIRECT PAYMENTS),2103535947,1000061886
03.08.2022,ADULT SOCIAL CARE,PEOPLEPLUS ILS,751.91,PHY LTS 18-64,PAYMENTS TO CLIENTS (DIRECT PAYMENTS),2103536339,1000061886
03.08.2022,ADULT SOCIAL CARE,PEOPLEPLUS ILS,761.28,PHY LTS 18-64,PAYMENTS TO CLIENTS (DIRECT PAYMENTS),2103536241,1000061886
03.08.2022,ADULT SOCIAL CARE,PEOPLEPLUS ILS,775.01,PHY LTS 18-64,PAYMENTS TO CLIENTS (DIRECT PAYMENTS),2103536208,1000061886
03.08.2022,ADULT SOCIAL CARE,PEOPLEPLUS ILS,780.05,PHY LTS 18-64,PAYMENTS TO CLIENTS (DIRECT PAYMENTS),2103536354,1000061886
03.08.2022,ADULT SOCIAL CARE,PEOPLEPLUS ILS,788.46,PHY LTS 18-64,PAYMENTS TO CLIENTS (DIRECT PAYMENTS),2103536040,1000061886
03.08.2022,ADULT SOCIAL CARE,PEOPLEPLUS ILS,826.01,PHY LTS 18-64,PAYMENTS TO CLIENTS (DIRECT PAYMENTS),2103536048,1000061886
03.08.2022,ADULT SOCIAL CARE,PEOPLEPLUS ILS,888.45,PHY LTS 18-64,PAYMENTS TO CLIENTS (DIRECT PAYMENTS),2103535682,1000061886
03.08.2022,ADULT SOCIAL CARE,PEOPLEPLUS ILS,892.69,PHY LTS 18-64,PAYMENTS TO CLIENTS (DIRECT PAYMENTS),2103535971,1000061886
03.08.2022,ADULT SOCIAL CARE,PEOPLEPLUS ILS,901.1,PHY LTS 18-64,PAYMENTS TO CLIENTS (DIRECT PAYMENTS),2103535835,1000061886
03.08.2022,ADULT SOCIAL CARE,PEOPLEPLUS ILS,"1,035.46",PHY LTS 18-64,PAYMENTS TO CLIENTS (DIRECT PAYMENTS),2103536307,1000061886
03.08.2022,ADULT SOCIAL CARE,PEOPLEPLUS ILS,"1,158.43",PHY LTS 18-64,PAYMENTS TO CLIENTS (DIRECT PAYMENTS),2103535913,1000061886
03.08.2022,ADULT SOCIAL CARE,PEOPLEPLUS ILS,"1,314.10",PHY LTS 18-64,PAYMENTS TO CLIENTS (DIRECT PAYMENTS),2103536281,1000061886
03.08.2022,ADULT SOCIAL CARE,PEOPLEPLUS ILS,"1,504.69",PHY LTS 18-64,PAYMENTS TO CLIENTS (DIRECT PAYMENTS),2103535821,1000061886
03.08.2022,ADULT SOCIAL CARE,PEOPLEPLUS ILS,"1,653.00",PHY LTS 18-64,PAYMENTS TO CLIENTS (DIRECT PAYMENTS),2103535734,1000061886
03.08.2022,ADULT SOCIAL CARE,PEOPLEPLUS ILS,"1,894.04",PHY LTS 18-64,PAYMENTS TO CLIENTS (DIRECT PAYMENTS),2103536257,1000061886
03.08.2022,ADULT SOCIAL CARE,PEOPLEPLUS ILS,"2,002.06",PHY LTS 18-64,PAYMENTS TO CLIENTS (DIRECT PAYMENTS),2103535966,1000061886
03.08.2022,ADULT SOCIAL CARE,PEOPLEPLUS ILS,"2,179.88",PHY LTS 18-64,PAYMENTS TO CLIENTS (DIRECT PAYMENTS),2103536296,1000061886
03.08.2022,ADULT SOCIAL CARE,PEOPLEPLUS ILS,"2,233.97",PHY LTS 18-64,PAYMENTS TO CLIENTS (DIRECT PAYMENTS),2103536194,1000061886
03.08.2022,ADULT SOCIAL CARE,FRESH IDEAS & SOLUTIONS SERVICES CIC,450.55,PHY LTS 18-64,PAYMENTS TO CLIENTS (DIRECT PAYMENTS),2103536034,1000070832
03.08.2022,ADULT SOCIAL CARE,FRESH IDEAS & SOLUTIONS SERVICES CIC,528.21,PHY LTS 18-64,PAYMENTS TO CLIENTS (DIRECT PAYMENTS),2103535791,1000070832
03.08.2022,ADULT SOCIAL CARE,FRESH IDEAS & SOLUTIONS SERVICES CIC,650.42,PHY LTS 18-64,PAYMENTS TO CLIENTS (DIRECT PAYMENTS),2103536022,1000070832
03.08.2022,ADULT SOCIAL CARE,FRESH IDEAS & SOLUTIONS SERVICES CIC,901.1,PHY LTS 18-64,PAYMENTS TO CLIENTS (DIRECT PAYMENTS),2103536103,1000070832
03.08.2022,ADULT SOCIAL CARE,REDACTED PERSONAL DATA,"1,051.28",PHY LTS 18-64,PAYMENTS TO CLIENTS (DIRECT PAYMENTS),REDACTED,REDACTED
03.08.2022,ADULT SOCIAL CARE,REDACTED PERSONAL DATA,359.45,PHY LTS 18-64,PAYMENTS TO CLIENTS (DIRECT PAYMENTS),REDACTED,REDACTED
03.08.2022,ADULT SOCIAL CARE,REDACTED PERSONAL DATA,600.73,PHY LTS 18-64,PAYMENTS TO CLIENTS (DIRECT PAYMENTS),REDACTED,REDACTED
03.08.2022,ADULT SOCIAL CARE,REDACTED PERSONAL DATA,761.77,PHY LTS 18-64,PAYMENTS TO CLIENTS (DIRECT PAYMENTS),REDACTED,REDACTED
03.08.2022,ADULT SOCIAL CARE,REDACTED PERSONAL DATA,476.48,PHY LTS 18-64,PAYMENTS TO CLIENTS (DIRECT PAYMENTS),REDACTED,REDACTED
03.08.2022,ADULT SOCIAL CARE,REDACTED PERSONAL DATA,274.96,PHY LTS 18-64,PAYMENTS TO CLIENTS (DIRECT PAYMENTS),REDACTED,REDACTED
03.08.2022,ADULT SOCIAL CARE,REDACTED PERSONAL DATA,835.4,PHY LTS 18-64,PAYMENTS TO CLIENTS (DIRECT PAYMENTS),REDACTED,REDACTED
03.08.2022,ADULT SOCIAL CARE,REDACTED PERSONAL DATA,394.23,PHY LTS 18-64,PAYMENTS TO CLIENTS (DIRECT PAYMENTS),REDACTED,REDACTED
03.08.2022,ADULT SOCIAL CARE,REDACTED PERSONAL DATA,366.08,PHY LTS 18-64,PAYMENTS TO CLIENTS (DIRECT PAYMENTS),REDACTED,REDACTED
03.08.2022,ADULT SOCIAL CARE,REDACTED PERSONAL DATA,731.1,PHY LTS 18-64,PAYMENTS TO CLIENTS (DIRECT PAYMENTS),REDACTED,REDACTED
03.08.2022,ADULT SOCIAL CARE,REDACTED PERSONAL DATA,"1,589.06",PHY LTS 18-64,PAYMENTS TO CLIENTS (DIRECT PAYMENTS),REDACTED,REDACTED
03.08.2022,ADULT SOCIAL CARE,REDACTED PERSONAL DATA,319.14,PHY LTS 18-64,PAYMENTS TO CLIENTS (DIRECT PAYMENTS),REDACTED,REDACTED
03.08.2022,ADULT SOCIAL CARE,REDACTED PERSONAL DATA,666.45,PHY LTS 18-64,PAYMENTS TO CLIENTS (DIRECT PAYMENTS),REDACTED,REDACTED
03.08.2022,ADULT SOCIAL CARE,REDACTED PERSONAL DATA,525.64,PHY LTS 18-64,PAYMENTS TO CLIENTS (DIRECT PAYMENTS),REDACTED,REDACTED
03.08.2022,ADULT SOCIAL CARE,REDACTED PERSONAL DATA,"1,753.21",PHY LTS 18-64,PAYMENTS TO CLIENTS (DIRECT PAYMENTS),REDACTED,REDACTED
03.08.2022,ADULT SOCIAL CARE,REDACTED PERSONAL DATA,563.19,PHY LTS 18-64,PAYMENTS TO CLIENTS (DIRECT PAYMENTS),REDACTED,REDACTED
03.08.2022,ADULT SOCIAL CARE,REDACTED PERSONAL DATA,516.27,PHY LTS 18-64,PAYMENTS TO CLIENTS (DIRECT PAYMENTS),REDACTED,REDACTED
03.08.2022,ADULT SOCIAL CARE,REDACTED PERSONAL DATA,631.64,PHY LTS 18-64,PAYMENTS TO CLIENTS (DIRECT PAYMENTS),REDACTED,REDACTED
03.08.2022,ADULT SOCIAL CARE,REDACTED PERSONAL DATA,"1,051.28",PHY LTS 18-64,PAYMENTS TO CLIENTS (DIRECT PAYMENTS),REDACTED,REDACTED
03.08.2022,ADULT SOCIAL CARE,REDACTED PERSONAL DATA,456.55,PHY LTS 18-64,PAYMENTS TO CLIENTS (DIRECT PAYMENTS),REDACTED,REDACTED
03.08.2022,ADULT SOCIAL CARE,REDACTED PERSONAL DATA,657.05,PHY LTS 18-64,PAYMENTS TO CLIENTS (DIRECT PAYMENTS),REDACTED,REDACTED
03.08.2022,ADULT SOCIAL CARE,REDACTED PERSONAL DATA,755.09,PHY LTS 18-64,PAYMENTS TO CLIENTS (DIRECT PAYMENTS),REDACTED,REDACTED
03.08.2022,ADULT SOCIAL CARE,REDACTED PERSONAL DATA,"1,051.28",PHY LTS 18-64,PAYMENTS TO CLIENTS (DIRECT PAYMENTS),REDACTED,REDACTED
03.08.2022,ADULT SOCIAL CARE,REDACTED PERSONAL DATA,795.75,PHY LTS 18-64,PAYMENTS TO CLIENTS (DIRECT PAYMENTS),REDACTED,REDACTED
03.08.2022,ADULT SOCIAL CARE,REDACTED PERSONAL DATA,490.86,PHY LTS 18-64,PAYMENTS TO CLIENTS (DIRECT PAYMENTS),REDACTED,REDACTED
03.08.2022,ADULT SOCIAL CARE,REDACTED PERSONAL DATA,450.55,PHY LTS 18-64,PAYMENTS TO CLIENTS (DIRECT PAYMENTS),REDACTED,REDACTED
03.08.2022,ADULT SOCIAL CARE,REDACTED PERSONAL DATA,497.49,PHY LTS 18-64,PAYMENTS TO CLIENTS (DIRECT PAYMENTS),REDACTED,REDACTED
03.08.2022,ADULT SOCIAL CARE,REDACTED PERSONAL DATA,278.89,PHY LTS 18-64,PAYMENTS TO CLIENTS (DIRECT PAYMENTS),REDACTED,REDACTED
03.08.2022,ADULT SOCIAL CARE,REDACTED PERSONAL DATA,328.54,PHY LTS 18-64,PAYMENTS TO CLIENTS (DIRECT PAYMENTS),REDACTED,REDACTED
03.08.2022,ADULT SOCIAL CARE,REDACTED PERSONAL DATA,534.65,PHY LTS 18-64,PAYMENTS TO CLIENTS (DIRECT PAYMENTS),REDACTED,REDACTED
03.08.2022,ADULT SOCIAL CARE,REDACTED PERSONAL DATA,443.92,PHY LTS 18-64,PAYMENTS TO CLIENTS (DIRECT PAYMENTS),REDACTED,REDACTED
03.08.2022,ADULT SOCIAL CARE,REDACTED PERSONAL DATA,678.59,PHY LTS 18-64,PAYMENTS TO CLIENTS (DIRECT PAYMENTS),REDACTED,REDACTED
03.08.2022,ADULT SOCIAL CARE,REDACTED PERSONAL DATA,312.51,PHY LTS 18-64,PAYMENTS TO CLIENTS (DIRECT PAYMENTS),REDACTED,REDACTED
03.08.2022,ADULT SOCIAL CARE,REDACTED PERSONAL DATA,690.32,PHY LTS 18-64,PAYMENTS TO CLIENTS (DIRECT PAYMENTS),REDACTED,REDACTED
03.08.2022,ADULT SOCIAL CARE,REDACTED PERSONAL DATA,477.22,PHY LTS 18-64,PAYMENTS TO CLIENTS (DIRECT PAYMENTS),REDACTED,REDACTED
03.08.2022,ADULT SOCIAL CARE,REDACTED PERSONAL DATA,810,PHY LTS 18-64,PAYMENTS TO CLIENTS (DIRECT PAYMENTS),REDACTED,REDACTED
03.08.2022,ADULT SOCIAL CARE,REDACTED PERSONAL DATA,378.22,PHY LTS 18-64,PAYMENTS TO CLIENTS (DIRECT PAYMENTS),REDACTED,REDACTED
03.08.2022,ADULT SOCIAL CARE,REDACTED PERSONAL DATA,810,PHY LTS 18-64,PAYMENTS TO CLIENTS (DIRECT PAYMENTS),REDACTED,REDACTED
03.08.2022,ADULT SOCIAL CARE,REDACTED PERSONAL DATA,384.86,PHY LTS 18-64,PAYMENTS TO CLIENTS (DIRECT PAYMENTS),REDACTED,REDACTED
03.08.2022,ADULT SOCIAL CARE,PEOPLEPLUS ILS,-280.26,PHY LTS 65+,DISCRETIONARY FLEXIBLE FEES & INCOME,2103535876,1000061886
03.08.2022,ADULT SOCIAL CARE,PEOPLEPLUS ILS,-266.24,PHY LTS 65+,DISCRETIONARY FLEXIBLE FEES & INCOME,2103536133,1000061886
03.08.2022,ADULT SOCIAL CARE,PEOPLEPLUS ILS,-263.45,PHY LTS 65+,DISCRETIONARY FLEXIBLE FEES & INCOME,2103535693,1000061886
03.08.2022,ADULT SOCIAL CARE,REDACTED PERSONAL DATA,-270.54,PHY LTS 65+,DISCRETIONARY FLEXIBLE FEES & INCOME,REDACTED,REDACTED
03.08.2022,ADULT SOCIAL CARE,LONDON CARE LTD,378,PHY LTS 65+,HOMECARE - C&V,2103536451,1000003398
03.08.2022,ADULT SOCIAL CARE,SUPREME CARE SERVICES LTD,"1,013.64",PHY LTS 65+,HOMECARE - C&V,2103536479,1000059416
03.08.2022,ADULT SOCIAL CARE,SUPREME CARE SERVICES LTD,"2,303.76",PHY LTS 65+,HOMECARE - C&V,2103536478,1000059416
03.08.2022,ADULT SOCIAL CARE,UNIQUE PERSONNEL (UK) LTD,265.8,PHY LTS 65+,HOMECARE - C&V,2103536427,1000075451
03.08.2022,ADULT SOCIAL CARE,UNIQUE PERSONNEL (UK) LTD,274.66,PHY LTS 65+,HOMECARE - C&V,2103536410,1000075451
03.08.2022,ADULT SOCIAL CARE,UNIQUE PERSONNEL (UK) LTD,274.66,PHY LTS 65+,HOMECARE - C&V,2103536411,1000075451
03.08.2022,ADULT SOCIAL CARE,UNIQUE PERSONNEL (UK) LTD,274.66,PHY LTS 65+,HOMECARE - C&V,2103536428,1000075451
03.08.2022,ADULT SOCIAL CARE,UNIQUE PERSONNEL (UK) LTD,274.66,PHY LTS 65+,HOMECARE - C&V,2103536440,1000075451
03.08.2022,ADULT SOCIAL CARE,CARE DIRECT UK LTD,251.3,PHY LTS 65+,HOMECARE - SPOT,2103536475,1000066322
03.08.2022,ADULT SOCIAL CARE,CARE DIRECT UK LTD,280,PHY LTS 65+,HOMECARE - SPOT,2103536463,1000066322
03.08.2022,ADULT SOCIAL CARE,CARE DIRECT UK LTD,314.13,PHY LTS 65+,HOMECARE - SPOT,2103536469,1000066322
03.08.2022,ADULT SOCIAL CARE,CARE DIRECT UK LTD,439.78,PHY LTS 65+,HOMECARE - SPOT,2103536457,1000066322
03.08.2022,ADULT SOCIAL CARE,CARE DIRECT UK LTD,502.6,PHY LTS 65+,HOMECARE - SPOT,2103536464,1000066322
03.08.2022,ADULT SOCIAL CARE,CARE DIRECT UK LTD,520.55,PHY LTS 65+,HOMECARE - SPOT,2103536465,1000066322
03.08.2022,ADULT SOCIAL CARE,CARE DIRECT UK LTD,559.13,PHY LTS 65+,HOMECARE - SPOT,2103536472,1000066322
03.08.2022,ADULT SOCIAL CARE,CARE DIRECT UK LTD,621.25,PHY LTS 65+,HOMECARE - SPOT,2103536466,1000066322
03.08.2022,ADULT SOCIAL CARE,CARE DIRECT UK LTD,919.95,PHY LTS 65+,HOMECARE - SPOT,2103536449,1000066322
03.08.2022,ADULT SOCIAL CARE,CARE DIRECT UK LTD,"1,059.05",PHY LTS 65+,HOMECARE - SPOT,2103536452,1000066322
03.08.2022,ADULT SOCIAL CARE,CARE DIRECT UK LTD,"2,158.52",PHY LTS 65+,HOMECARE - SPOT,2103536447,1000066322
03.08.2022,ADULT SOCIAL CARE,UNIQUE PERSONNEL (UK) LTD,256.94,PHY LTS 65+,HOMECARE - SPOT,2103536405,1000075451
03.08.2022,ADULT SOCIAL CARE,UNIQUE PERSONNEL (UK) LTD,274.68,PHY LTS 65+,HOMECARE - SPOT,2103536441,1000075451
03.08.2022,ADULT SOCIAL CARE,UNIQUE PERSONNEL (UK) LTD,345.54,PHY LTS 65+,HOMECARE - SPOT,2103536413,1000075451
03.08.2022,ADULT SOCIAL CARE,UNIQUE PERSONNEL (UK) LTD,345.54,PHY LTS 65+,HOMECARE - SPOT,2103536417,1000075451
03.08.2022,ADULT SOCIAL CARE,UNIQUE PERSONNEL (UK) LTD,345.54,PHY LTS 65+,HOMECARE - SPOT,2103536418,1000075451
03.08.2022,ADULT SOCIAL CARE,UNIQUE PERSONNEL (UK) LTD,345.54,PHY LTS 65+,HOMECARE - SPOT,2103536420,1000075451
03.08.2022,ADULT SOCIAL CARE,UNIQUE PERSONNEL (UK) LTD,345.54,PHY LTS 65+,HOMECARE - SPOT,2103536429,1000075451
03.08.2022,ADULT SOCIAL CARE,UNIQUE PERSONNEL (UK) LTD,345.54,PHY LTS 65+,HOMECARE - SPOT,2103536430,1000075451
03.08.2022,ADULT SOCIAL CARE,UNIQUE PERSONNEL (UK) LTD,345.54,PHY LTS 65+,HOMECARE - SPOT,2103536436,1000075451
03.08.2022,ADULT SOCIAL CARE,UNIQUE PERSONNEL (UK) LTD,354.4,PHY LTS 65+,HOMECARE - SPOT,2103536422,1000075451
03.08.2022,ADULT SOCIAL CARE,UNIQUE PERSONNEL (UK) LTD,420.85,PHY LTS 65+,HOMECARE - SPOT,2103536402,1000075451
03.08.2022,ADULT SOCIAL CARE,UNIQUE PERSONNEL (UK) LTD,420.85,PHY LTS 65+,HOMECARE - SPOT,2103536403,1000075451
03.08.2022,ADULT SOCIAL CARE,UNIQUE PERSONNEL (UK) LTD,420.85,PHY LTS 65+,HOMECARE - SPOT,2103536404,1000075451
03.08.2022,ADULT SOCIAL CARE,UNIQUE PERSONNEL (UK) LTD,420.85,PHY LTS 65+,HOMECARE - SPOT,2103536408,1000075451
03.08.2022,ADULT SOCIAL CARE,UNIQUE PERSONNEL (UK) LTD,420.85,PHY LTS 65+,HOMECARE - SPOT,2103536414,1000075451
03.08.2022,ADULT SOCIAL CARE,UNIQUE PERSONNEL (UK) LTD,420.85,PHY LTS 65+,HOMECARE - SPOT,2103536421,1000075451
03.08.2022,ADULT SOCIAL CARE,UNIQUE PERSONNEL (UK) LTD,420.85,PHY LTS 65+,HOMECARE - SPOT,2103536442,1000075451
03.08.2022,ADULT SOCIAL CARE,UNIQUE PERSONNEL (UK) LTD,420.85,PHY LTS 65+,HOMECARE - SPOT,2103536443,1000075451
03.08.2022,ADULT SOCIAL CARE,UNIQUE PERSONNEL (UK) LTD,420.85,PHY LTS 65+,HOMECARE - SPOT,2103536444,1000075451
03.08.2022,ADULT SOCIAL CARE,UNIQUE PERSONNEL (UK) LTD,420.85,PHY LTS 65+,HOMECARE - SPOT,2103536445,1000075451
03.08.2022,ADULT SOCIAL CARE,UNIQUE PERSONNEL (UK) LTD,434.14,PHY LTS 65+,HOMECARE - SPOT,2103536434,1000075451
03.08.2022,ADULT SOCIAL CARE,UNIQUE PERSONNEL (UK) LTD,460.72,PHY LTS 65+,HOMECARE - SPOT,2103536435,1000075451
03.08.2022,ADULT SOCIAL CARE,UNIQUE PERSONNEL (UK) LTD,460.72,PHY LTS 65+,HOMECARE - SPOT,2103536439,1000075451
03.08.2022,ADULT SOCIAL CARE,PEOPLEPLUS ILS,-635.54,PHY LTS 65+,PAYMENTS TO CLIENTS (DIRECT PAYMENTS),2103536169,1000061886
03.08.2022,ADULT SOCIAL CARE,PEOPLEPLUS ILS,301.36,PHY LTS 65+,PAYMENTS TO CLIENTS (DIRECT PAYMENTS),2103536165,1000061886
03.08.2022,ADULT SOCIAL CARE,PEOPLEPLUS ILS,357.68,PHY LTS 65+,PAYMENTS TO CLIENTS (DIRECT PAYMENTS),2103536091,1000061886
03.08.2022,ADULT SOCIAL CARE,PEOPLEPLUS ILS,366.08,PHY LTS 65+,PAYMENTS TO CLIENTS (DIRECT PAYMENTS),2103536179,1000061886
03.08.2022,ADULT SOCIAL CARE,PEOPLEPLUS ILS,380.65,PHY LTS 65+,PAYMENTS TO CLIENTS (DIRECT PAYMENTS),2103535918,1000061886
03.08.2022,ADULT SOCIAL CARE,PEOPLEPLUS ILS,391.07,PHY LTS 65+,PAYMENTS TO CLIENTS (DIRECT PAYMENTS),2103535807,1000061886
03.08.2022,ADULT SOCIAL CARE,PEOPLEPLUS ILS,394.23,PHY LTS 65+,PAYMENTS TO CLIENTS (DIRECT PAYMENTS),2103536093,1000061886
03.08.2022,ADULT SOCIAL CARE,PEOPLEPLUS ILS,403.63,PHY LTS 65+,PAYMENTS TO CLIENTS (DIRECT PAYMENTS),2103536282,1000061886
03.08.2022,ADULT SOCIAL CARE,PEOPLEPLUS ILS,418.2,PHY LTS 65+,PAYMENTS TO CLIENTS (DIRECT PAYMENTS),2103536382,1000061886
03.08.2022,ADULT SOCIAL CARE,PEOPLEPLUS ILS,422.4,PHY LTS 65+,PAYMENTS TO CLIENTS (DIRECT PAYMENTS),2103535880,1000061886
03.08.2022,ADULT SOCIAL CARE,PEOPLEPLUS ILS,423.37,PHY LTS 65+,PAYMENTS TO CLIENTS (DIRECT PAYMENTS),2103536327,1000061886
03.08.2022,ADULT SOCIAL CARE,PEOPLEPLUS ILS,446.35,PHY LTS 65+,PAYMENTS TO CLIENTS (DIRECT PAYMENTS),2103536083,1000061886
03.08.2022,ADULT SOCIAL CARE,PEOPLEPLUS ILS,450.55,PHY LTS 65+,PAYMENTS TO CLIENTS (DIRECT PAYMENTS),2103536050,1000061886
03.08.2022,ADULT SOCIAL CARE,PEOPLEPLUS ILS,460.92,PHY LTS 65+,PAYMENTS TO CLIENTS (DIRECT PAYMENTS),2103536367,1000061886
03.08.2022,ADULT SOCIAL CARE,PEOPLEPLUS ILS,469.32,PHY LTS 65+,PAYMENTS TO CLIENTS (DIRECT PAYMENTS),2103535732,1000061886
03.08.2022,ADULT SOCIAL CARE,PEOPLEPLUS ILS,489.09,PHY LTS 65+,PAYMENTS TO CLIENTS (DIRECT PAYMENTS),2103536065,1000061886
03.08.2022,ADULT SOCIAL CARE,PEOPLEPLUS ILS,497.49,PHY LTS 65+,PAYMENTS TO CLIENTS (DIRECT PAYMENTS),2103536182,1000061886
03.08.2022,ADULT SOCIAL CARE,PEOPLEPLUS ILS,516.27,PHY LTS 65+,PAYMENTS TO CLIENTS (DIRECT PAYMENTS),2103535828,1000061886
03.08.2022,ADULT SOCIAL CARE,PEOPLEPLUS ILS,517.23,PHY LTS 65+,PAYMENTS TO CLIENTS (DIRECT PAYMENTS),2103536163,1000061886
03.08.2022,ADULT SOCIAL CARE,PEOPLEPLUS ILS,541.23,PHY LTS 65+,PAYMENTS TO CLIENTS (DIRECT PAYMENTS),2103536172,1000061886
03.08.2022,ADULT SOCIAL CARE,PEOPLEPLUS ILS,545.41,PHY LTS 65+,PAYMENTS TO CLIENTS (DIRECT PAYMENTS),2103535820,1000061886
03.08.2022,ADULT SOCIAL CARE,PEOPLEPLUS ILS,553.81,PHY LTS 65+,PAYMENTS TO CLIENTS (DIRECT PAYMENTS),2103536191,1000061886
03.08.2022,ADULT SOCIAL CARE,PEOPLEPLUS ILS,554.78,PHY LTS 65+,PAYMENTS TO CLIENTS (DIRECT PAYMENTS),2103536072,1000061886
03.08.2022,ADULT SOCIAL CARE,PEOPLEPLUS ILS,554.78,PHY LTS 65+,PAYMENTS TO CLIENTS (DIRECT PAYMENTS),2103536170,1000061886
03.08.2022,ADULT SOCIAL CARE,PEOPLEPLUS ILS,568.38,PHY LTS 65+,PAYMENTS TO CLIENTS (DIRECT PAYMENTS),2103535924,1000061886
03.08.2022,ADULT SOCIAL CARE,PEOPLEPLUS ILS,581.96,PHY LTS 65+,PAYMENTS TO CLIENTS (DIRECT PAYMENTS),2103535831,1000061886
03.08.2022,ADULT SOCIAL CARE,PEOPLEPLUS ILS,591.36,PHY LTS 65+,PAYMENTS TO CLIENTS (DIRECT PAYMENTS),2103535879,1000061886
03.08.2022,ADULT SOCIAL CARE,PEOPLEPLUS ILS,611.1,PHY LTS 65+,PAYMENTS TO CLIENTS (DIRECT PAYMENTS),2103535738,1000061886
03.08.2022,ADULT SOCIAL CARE,PEOPLEPLUS ILS,620.5,PHY LTS 65+,PAYMENTS TO CLIENTS (DIRECT PAYMENTS),2103536258,1000061886
03.08.2022,ADULT SOCIAL CARE,PEOPLEPLUS ILS,628.9,PHY LTS 65+,PAYMENTS TO CLIENTS (DIRECT PAYMENTS),2103536284,1000061886
03.08.2022,ADULT SOCIAL CARE,PEOPLEPLUS ILS,629.87,PHY LTS 65+,PAYMENTS TO CLIENTS (DIRECT PAYMENTS),2103536146,1000061886
03.08.2022,ADULT SOCIAL CARE,PEOPLEPLUS ILS,634.07,PHY LTS 65+,PAYMENTS TO CLIENTS (DIRECT PAYMENTS),2103536286,1000061886
03.08.2022,ADULT SOCIAL CARE,PEOPLEPLUS ILS,647.68,PHY LTS 65+,PAYMENTS TO CLIENTS (DIRECT PAYMENTS),2103536380,1000061886
03.08.2022,ADULT SOCIAL CARE,PEOPLEPLUS ILS,657.05,PHY LTS 65+,PAYMENTS TO CLIENTS (DIRECT PAYMENTS),2103536104,1000061886
03.08.2022,ADULT SOCIAL CARE,PEOPLEPLUS ILS,670.28,PHY LTS 65+,PAYMENTS TO CLIENTS (DIRECT PAYMENTS),2103536074,1000061886
03.08.2022,ADULT SOCIAL CARE,PEOPLEPLUS ILS,686.19,PHY LTS 65+,PAYMENTS TO CLIENTS (DIRECT PAYMENTS),2103535920,1000061886
03.08.2022,ADULT SOCIAL CARE,PEOPLEPLUS ILS,742.51,PHY LTS 65+,PAYMENTS TO CLIENTS (DIRECT PAYMENTS),2103536325,1000061886
03.08.2022,ADULT SOCIAL CARE,PEOPLEPLUS ILS,765,PHY LTS 65+,PAYMENTS TO CLIENTS (DIRECT PAYMENTS),2103536221,1000061886
03.08.2022,ADULT SOCIAL CARE,PEOPLEPLUS ILS,770.68,PHY LTS 65+,PAYMENTS TO CLIENTS (DIRECT PAYMENTS),2103536248,1000061886
03.08.2022,ADULT SOCIAL CARE,PEOPLEPLUS ILS,774.88,PHY LTS 65+,PAYMENTS TO CLIENTS (DIRECT PAYMENTS),2103536175,1000061886
03.08.2022,ADULT SOCIAL CARE,PEOPLEPLUS ILS,798.83,PHY LTS 65+,PAYMENTS TO CLIENTS (DIRECT PAYMENTS),2103536347,1000061886
03.08.2022,ADULT SOCIAL CARE,PEOPLEPLUS ILS,835.4,PHY LTS 65+,PAYMENTS TO CLIENTS (DIRECT PAYMENTS),2103535932,1000061886
03.08.2022,ADULT SOCIAL CARE,PEOPLEPLUS ILS,891.72,PHY LTS 65+,PAYMENTS TO CLIENTS (DIRECT PAYMENTS),2103536180,1000061886
03.08.2022,ADULT SOCIAL CARE,PEOPLEPLUS ILS,934.44,PHY LTS 65+,PAYMENTS TO CLIENTS (DIRECT PAYMENTS),2103535981,1000061886
03.08.2022,ADULT SOCIAL CARE,PEOPLEPLUS ILS,"1,023.13",PHY LTS 65+,PAYMENTS TO CLIENTS (DIRECT PAYMENTS),2103535993,1000061886
03.08.2022,ADULT SOCIAL CARE,PEOPLEPLUS ILS,"1,051.28",PHY LTS 65+,PAYMENTS TO CLIENTS (DIRECT PAYMENTS),2103535928,1000061886
03.08.2022,ADULT SOCIAL CARE,PEOPLEPLUS ILS,"1,103.40",PHY LTS 65+,PAYMENTS TO CLIENTS (DIRECT PAYMENTS),2103535990,1000061886
03.08.2022,ADULT SOCIAL CARE,PEOPLEPLUS ILS,"1,107.60",PHY LTS 65+,PAYMENTS TO CLIENTS (DIRECT PAYMENTS),2103535929,1000061886
03.08.2022,ADULT SOCIAL CARE,PEOPLEPLUS ILS,"1,146.14",PHY LTS 65+,PAYMENTS TO CLIENTS (DIRECT PAYMENTS),2103535959,1000061886
03.08.2022,ADULT SOCIAL CARE,PEOPLEPLUS ILS,"1,182.69",PHY LTS 65+,PAYMENTS TO CLIENTS (DIRECT PAYMENTS),2103535724,1000061886
03.08.2022,ADULT SOCIAL CARE,PEOPLEPLUS ILS,"1,239.01",PHY LTS 65+,PAYMENTS TO CLIENTS (DIRECT PAYMENTS),2103536105,1000061886
03.08.2022,ADULT SOCIAL CARE,PEOPLEPLUS ILS,"1,258.77",PHY LTS 65+,PAYMENTS TO CLIENTS (DIRECT PAYMENTS),2103535969,1000061886
03.08.2022,ADULT SOCIAL CARE,PEOPLEPLUS ILS,"1,418.33",PHY LTS 65+,PAYMENTS TO CLIENTS (DIRECT PAYMENTS),2103536280,1000061886
03.08.2022,ADULT SOCIAL CARE,PEOPLEPLUS ILS,"1,516.40",PHY LTS 65+,PAYMENTS TO CLIENTS (DIRECT PAYMENTS),2103536164,1000061886
03.08.2022,ADULT SOCIAL CARE,PEOPLEPLUS ILS,"1,619.66",PHY LTS 65+,PAYMENTS TO CLIENTS (DIRECT PAYMENTS),2103535873,1000061886
03.08.2022,ADULT SOCIAL CARE,PEOPLEPLUS ILS,"1,793.79",PHY LTS 65+,PAYMENTS TO CLIENTS (DIRECT PAYMENTS),2103536026,1000061886
03.08.2022,ADULT SOCIAL CARE,PEOPLEPLUS ILS,"1,887.65",PHY LTS 65+,PAYMENTS TO CLIENTS (DIRECT PAYMENTS),2103535978,1000061886
03.08.2022,ADULT SOCIAL CARE,FRESH IDEAS & SOLUTIONS SERVICES CIC,"1,034.37",PHY LTS 65+,PAYMENTS TO CLIENTS (DIRECT PAYMENTS),2103536043,1000070832
03.08.2022,ADULT SOCIAL CARE,REDACTED PERSONAL DATA,328.54,PHY LTS 65+,PAYMENTS TO CLIENTS (DIRECT PAYMENTS),REDACTED,REDACTED
03.08.2022,ADULT SOCIAL CARE,REDACTED PERSONAL DATA,"1,589.06",PHY LTS 65+,PAYMENTS TO CLIENTS (DIRECT PAYMENTS),REDACTED,REDACTED
03.08.2022,ADULT SOCIAL CARE,REDACTED PERSONAL DATA,"1,032.51",PHY LTS 65+,PAYMENTS TO CLIENTS (DIRECT PAYMENTS),REDACTED,REDACTED
03.08.2022,ADULT SOCIAL CARE,REDACTED PERSONAL DATA,535.01,PHY LTS 65+,PAYMENTS TO CLIENTS (DIRECT PAYMENTS),REDACTED,REDACTED
03.08.2022,ADULT SOCIAL CARE,REDACTED PERSONAL DATA,525.64,PHY LTS 65+,PAYMENTS TO CLIENTS (DIRECT PAYMENTS),REDACTED,REDACTED
03.08.2022,ADULT SOCIAL CARE,REDACTED PERSONAL DATA,563.19,PHY LTS 65+,PAYMENTS TO CLIENTS (DIRECT PAYMENTS),REDACTED,REDACTED
03.08.2022,ADULT SOCIAL CARE,REDACTED PERSONAL DATA,994.96,PHY LTS 65+,PAYMENTS TO CLIENTS (DIRECT PAYMENTS),REDACTED,REDACTED
03.08.2022,ADULT SOCIAL CARE,REDACTED PERSONAL DATA,477.2,PHY LTS 65+,PAYMENTS TO CLIENTS (DIRECT PAYMENTS),REDACTED,REDACTED
03.08.2022,ADULT SOCIAL CARE,REDACTED PERSONAL DATA,425.14,PHY LTS 65+,PAYMENTS TO CLIENTS (DIRECT PAYMENTS),REDACTED,REDACTED
03.08.2022,ADULT SOCIAL CARE,REDACTED PERSONAL DATA,"1,501.83",PHY LTS 65+,PAYMENTS TO CLIENTS (DIRECT PAYMENTS),REDACTED,REDACTED
03.08.2022,ADULT SOCIAL CARE,REDACTED PERSONAL DATA,375.46,PHY LTS 65+,PAYMENTS TO CLIENTS (DIRECT PAYMENTS),REDACTED,REDACTED
03.08.2022,ADULT SOCIAL CARE,REDACTED PERSONAL DATA,"1,192.09",PHY LTS 65+,PAYMENTS TO CLIENTS (DIRECT PAYMENTS),REDACTED,REDACTED
03.08.2022,ADULT SOCIAL CARE,REDACTED PERSONAL DATA,469.32,PHY LTS 65+,PAYMENTS TO CLIENTS (DIRECT PAYMENTS),REDACTED,REDACTED
03.08.2022,ADULT SOCIAL CARE,REDACTED PERSONAL DATA,"1,436.14",PHY LTS 65+,PAYMENTS TO CLIENTS (DIRECT PAYMENTS),REDACTED,REDACTED
03.08.2022,ADULT SOCIAL CARE,REDACTED PERSONAL DATA,"1,711.10",PHY LTS 65+,PAYMENTS TO CLIENTS (DIRECT PAYMENTS),REDACTED,REDACTED
03.08.2022,ADULT SOCIAL CARE,REDACTED PERSONAL DATA,854.18,PHY LTS 65+,PAYMENTS TO CLIENTS (DIRECT PAYMENTS),REDACTED,REDACTED
03.08.2022,ADULT SOCIAL CARE,REDACTED PERSONAL DATA,528.41,PHY LTS 65+,PAYMENTS TO CLIENTS (DIRECT PAYMENTS),REDACTED,REDACTED
03.08.2022,ADULT SOCIAL CARE,REDACTED PERSONAL DATA,366.08,PHY LTS 65+,PAYMENTS TO CLIENTS (DIRECT PAYMENTS),REDACTED,REDACTED
03.08.2022,ADULT SOCIAL CARE,REDACTED PERSONAL DATA,553.81,PHY LTS 65+,PAYMENTS TO CLIENTS (DIRECT PAYMENTS),REDACTED,REDACTED
03.08.2022,ADULT SOCIAL CARE,REDACTED PERSONAL DATA,"1,126.37",PHY LTS 65+,PAYMENTS TO CLIENTS (DIRECT PAYMENTS),REDACTED,REDACTED
03.08.2022,ADULT SOCIAL CARE,REDACTED PERSONAL DATA,394.23,PHY LTS 65+,PAYMENTS TO CLIENTS (DIRECT PAYMENTS),REDACTED,REDACTED
03.08.2022,ADULT SOCIAL CARE,REDACTED PERSONAL DATA,713.37,PHY LTS 65+,PAYMENTS TO CLIENTS (DIRECT PAYMENTS),REDACTED,REDACTED
03.08.2022,ADULT SOCIAL CARE,REDACTED PERSONAL DATA,528.41,PHY LTS 65+,PAYMENTS TO CLIENTS (DIRECT PAYMENTS),REDACTED,REDACTED
03.08.2022,ADULT SOCIAL CARE,REDACTED PERSONAL DATA,583.83,PHY LTS 65+,PAYMENTS TO CLIENTS (DIRECT PAYMENTS),REDACTED,REDACTED
03.08.2022,ADULT SOCIAL CARE,REDACTED PERSONAL DATA,"1,802.19",PHY LTS 65+,PAYMENTS TO CLIENTS (DIRECT PAYMENTS),REDACTED,REDACTED
03.08.2022,ADULT SOCIAL CARE,OLUMBA CARE LIMITED,"1,520.00",PHY LTS 65+,SUPPORTED LIVING,2103536485,1000087828
03.08.2022,ADULT SOCIAL CARE,LONDON CARE LTD,660.69,PHY STS 65+,HOMECARE - IC,2103536450,1000003398
03.08.2022,ADULT SOCIAL CARE,SUPREME CARE SERVICES LTD,"1,197.96",PHY STS 65+,HOMECARE - IC,2103536476,1000059416
03.08.2022,ADULT SOCIAL CARE,CARE DIRECT UK LTD,691.08,PHY STS 65+,HOMECARE - IC,2103536458,1000066322
03.08.2022,ADULT SOCIAL CARE,PEOPLEPLUS ILS,"3,639.55",S.75 PHB LBS SHARE,RECOVERABLE COSTS INCL. HEALTH,2103535844,1000061886
03.08.2022,ADULT SOCIAL CARE,PEOPLEPLUS ILS,413,SOCIAL ISOLATION,PAYMENTS TO CLIENTS (DIRECT PAYMENTS),2103535926,1000061886
03.08.2022,ADULT SOCIAL CARE,PEOPLEPLUS ILS,450.54,SOCIAL ISOLATION,PAYMENTS TO CLIENTS (DIRECT PAYMENTS),2103536042,1000061886
03.08.2022,ADULT SOCIAL CARE,PEOPLEPLUS ILS,611.22,SOCIAL ISOLATION,PAYMENTS TO CLIENTS (DIRECT PAYMENTS),2103536126,1000061886
03.08.2022,ADULT SOCIAL CARE,PEOPLEPLUS ILS,732.14,SOCIAL ISOLATION,PAYMENTS TO CLIENTS (DIRECT PAYMENTS),2103535936,1000061886
03.08.2022,ADULT SOCIAL CARE,PEOPLEPLUS ILS,914.94,SOCIAL ISOLATION,PAYMENTS TO CLIENTS (DIRECT PAYMENTS),2103536287,1000061886
03.08.2022,ADULT SOCIAL CARE,PEOPLEPLUS ILS,"1,163.92",SOCIAL ISOLATION,PAYMENTS TO CLIENTS (DIRECT PAYMENTS),2103536181,1000061886
03.08.2022,ADULT SOCIAL CARE,REDACTED PERSONAL DATA,371.47,SOCIAL ISOLATION,PAYMENTS TO CLIENTS (DIRECT PAYMENTS),REDACTED,REDACTED
03.08.2022,ADULT SOCIAL CARE,REDACTED PERSONAL DATA,"1,833.11",SOCIAL ISOLATION,PAYMENTS TO CLIENTS (DIRECT PAYMENTS),REDACTED,REDACTED
03.08.2022,ADULT SOCIAL CARE,PEOPLEPLUS ILS,254.41,SPECIALIST CARE,PAYMENTS TO CLIENTS (DIRECT PAYMENTS),2103536498,1000061886
03.08.2022,ADULT SOCIAL CARE,PEOPLEPLUS ILS,254.41,SPECIALIST CARE,PAYMENTS TO CLIENTS (DIRECT PAYMENTS),2103536538,1000061886
03.08.2022,ADULT SOCIAL CARE,PEOPLEPLUS ILS,254.41,SPECIALIST CARE,PAYMENTS TO CLIENTS (DIRECT PAYMENTS),2103536668,1000061886
03.08.2022,ADULT SOCIAL CARE,PEOPLEPLUS ILS,254.41,SPECIALIST CARE,PAYMENTS TO CLIENTS (DIRECT PAYMENTS),2103536708,1000061886
03.08.2022,ADULT SOCIAL CARE,PEOPLEPLUS ILS,254.41,SPECIALIST CARE,PAYMENTS TO CLIENTS (DIRECT PAYMENTS),2103536715,1000061886
03.08.2022,ADULT SOCIAL CARE,PEOPLEPLUS ILS,254.41,SPECIALIST CARE,PAYMENTS TO CLIENTS (DIRECT PAYMENTS),2103536718,1000061886
03.08.2022,ADULT SOCIAL CARE,PEOPLEPLUS ILS,254.41,SPECIALIST CARE,PAYMENTS TO CLIENTS (DIRECT PAYMENTS),2103536759,1000061886
03.08.2022,ADULT SOCIAL CARE,PEOPLEPLUS ILS,262.82,SPECIALIST CARE,PAYMENTS TO CLIENTS (DIRECT PAYMENTS),2103536649,1000061886
03.08.2022,ADULT SOCIAL CARE,PEOPLEPLUS ILS,278.22,SPECIALIST CARE,PAYMENTS TO CLIENTS (DIRECT PAYMENTS),2103536688,1000061886
03.08.2022,ADULT SOCIAL CARE,PEOPLEPLUS ILS,291,SPECIALIST CARE,PAYMENTS TO CLIENTS (DIRECT PAYMENTS),2103536647,1000061886
03.08.2022,ADULT SOCIAL CARE,PEOPLEPLUS ILS,291.96,SPECIALIST CARE,PAYMENTS TO CLIENTS (DIRECT PAYMENTS),2103536623,1000061886
03.08.2022,ADULT SOCIAL CARE,PEOPLEPLUS ILS,291.96,SPECIALIST CARE,PAYMENTS TO CLIENTS (DIRECT PAYMENTS),2103536744,1000061886
03.08.2022,ADULT SOCIAL CARE,PEOPLEPLUS ILS,300.37,SPECIALIST CARE,PAYMENTS TO CLIENTS (DIRECT PAYMENTS),2103536685,1000061886
03.08.2022,ADULT SOCIAL CARE,PEOPLEPLUS ILS,300.37,SPECIALIST CARE,PAYMENTS TO CLIENTS (DIRECT PAYMENTS),2103536724,1000061886
03.08.2022,ADULT SOCIAL CARE,PEOPLEPLUS ILS,304.97,SPECIALIST CARE,PAYMENTS TO CLIENTS (DIRECT PAYMENTS),2103536550,1000061886
03.08.2022,ADULT SOCIAL CARE,PEOPLEPLUS ILS,314.94,SPECIALIST CARE,PAYMENTS TO CLIENTS (DIRECT PAYMENTS),2103536603,1000061886
03.08.2022,ADULT SOCIAL CARE,PEOPLEPLUS ILS,329.51,SPECIALIST CARE,PAYMENTS TO CLIENTS (DIRECT PAYMENTS),2103536678,1000061886
03.08.2022,ADULT SOCIAL CARE,PEOPLEPLUS ILS,329.51,SPECIALIST CARE,PAYMENTS TO CLIENTS (DIRECT PAYMENTS),2103536755,1000061886
03.08.2022,ADULT SOCIAL CARE,PEOPLEPLUS ILS,337.91,SPECIALIST CARE,PAYMENTS TO CLIENTS (DIRECT PAYMENTS),2103536684,1000061886
03.08.2022,ADULT SOCIAL CARE,PEOPLEPLUS ILS,356.71,SPECIALIST CARE,PAYMENTS TO CLIENTS (DIRECT PAYMENTS),2103536645,1000061886
03.08.2022,ADULT SOCIAL CARE,PEOPLEPLUS ILS,357.68,SPECIALIST CARE,PAYMENTS TO CLIENTS (DIRECT PAYMENTS),2103536629,1000061886
03.08.2022,ADULT SOCIAL CARE,PEOPLEPLUS ILS,390.03,SPECIALIST CARE,PAYMENTS TO CLIENTS (DIRECT PAYMENTS),2103536510,1000061886
03.08.2022,ADULT SOCIAL CARE,PEOPLEPLUS ILS,400.61,SPECIALIST CARE,PAYMENTS TO CLIENTS (DIRECT PAYMENTS),2103536582,1000061886
03.08.2022,ADULT SOCIAL CARE,PEOPLEPLUS ILS,404.6,SPECIALIST CARE,PAYMENTS TO CLIENTS (DIRECT PAYMENTS),2103536491,1000061886
03.08.2022,ADULT SOCIAL CARE,PEOPLEPLUS ILS,404.6,SPECIALIST CARE,PAYMENTS TO CLIENTS (DIRECT PAYMENTS),2103536576,1000061886
03.08.2022,ADULT SOCIAL CARE,PEOPLEPLUS ILS,404.6,SPECIALIST CARE,PAYMENTS TO CLIENTS (DIRECT PAYMENTS),2103536719,1000061886
03.08.2022,ADULT SOCIAL CARE,PEOPLEPLUS ILS,408.83,SPECIALIST CARE,PAYMENTS TO CLIENTS (DIRECT PAYMENTS),2103536489,1000061886
03.08.2022,ADULT SOCIAL CARE,PEOPLEPLUS ILS,416.09,SPECIALIST CARE,PAYMENTS TO CLIENTS (DIRECT PAYMENTS),2103536710,1000061886
03.08.2022,ADULT SOCIAL CARE,PEOPLEPLUS ILS,417.91,SPECIALIST CARE,PAYMENTS TO CLIENTS (DIRECT PAYMENTS),2103536680,1000061886
03.08.2022,ADULT SOCIAL CARE,PEOPLEPLUS ILS,419.18,SPECIALIST CARE,PAYMENTS TO CLIENTS (DIRECT PAYMENTS),2103536574,1000061886
03.08.2022,ADULT SOCIAL CARE,PEOPLEPLUS ILS,421.48,SPECIALIST CARE,PAYMENTS TO CLIENTS (DIRECT PAYMENTS),2103536580,1000061886
03.08.2022,ADULT SOCIAL CARE,PEOPLEPLUS ILS,422.48,SPECIALIST CARE,PAYMENTS TO CLIENTS (DIRECT PAYMENTS),2103536743,1000061886
03.08.2022,ADULT SOCIAL CARE,PEOPLEPLUS ILS,431.77,SPECIALIST CARE,PAYMENTS TO CLIENTS (DIRECT PAYMENTS),2103536527,1000061886
03.08.2022,ADULT SOCIAL CARE,PEOPLEPLUS ILS,432.48,SPECIALIST CARE,PAYMENTS TO CLIENTS (DIRECT PAYMENTS),2103536711,1000061886
03.08.2022,ADULT SOCIAL CARE,PEOPLEPLUS ILS,439.57,SPECIALIST CARE,PAYMENTS TO CLIENTS (DIRECT PAYMENTS),2103536541,1000061886
03.08.2022,ADULT SOCIAL CARE,PEOPLEPLUS ILS,442.14,SPECIALIST CARE,PAYMENTS TO CLIENTS (DIRECT PAYMENTS),2103536644,1000061886
03.08.2022,ADULT SOCIAL CARE,PEOPLEPLUS ILS,446.32,SPECIALIST CARE,PAYMENTS TO CLIENTS (DIRECT PAYMENTS),2103536723,1000061886
03.08.2022,ADULT SOCIAL CARE,PEOPLEPLUS ILS,450.55,SPECIALIST CARE,PAYMENTS TO CLIENTS (DIRECT PAYMENTS),2103536588,1000061886
03.08.2022,ADULT SOCIAL CARE,PEOPLEPLUS ILS,465.09,SPECIALIST CARE,PAYMENTS TO CLIENTS (DIRECT PAYMENTS),2103536622,1000061886
03.08.2022,ADULT SOCIAL CARE,PEOPLEPLUS ILS,475.07,SPECIALIST CARE,PAYMENTS TO CLIENTS (DIRECT PAYMENTS),2103536577,1000061886
03.08.2022,ADULT SOCIAL CARE,PEOPLEPLUS ILS,479.69,SPECIALIST CARE,PAYMENTS TO CLIENTS (DIRECT PAYMENTS),2103536604,1000061886
03.08.2022,ADULT SOCIAL CARE,PEOPLEPLUS ILS,479.69,SPECIALIST CARE,PAYMENTS TO CLIENTS (DIRECT PAYMENTS),2103536640,1000061886
03.08.2022,ADULT SOCIAL CARE,PEOPLEPLUS ILS,536.01,SPECIALIST CARE,PAYMENTS TO CLIENTS (DIRECT PAYMENTS),2103536585,1000061886
03.08.2022,ADULT SOCIAL CARE,PEOPLEPLUS ILS,539.92,SPECIALIST CARE,PAYMENTS TO CLIENTS (DIRECT PAYMENTS),2103536747,1000061886
03.08.2022,ADULT SOCIAL CARE,PEOPLEPLUS ILS,540.21,SPECIALIST CARE,PAYMENTS TO CLIENTS (DIRECT PAYMENTS),2103536601,1000061886
03.08.2022,ADULT SOCIAL CARE,PEOPLEPLUS ILS,552.25,SPECIALIST CARE,PAYMENTS TO CLIENTS (DIRECT PAYMENTS),2103536639,1000061886
03.08.2022,ADULT SOCIAL CARE,PEOPLEPLUS ILS,554.78,SPECIALIST CARE,PAYMENTS TO CLIENTS (DIRECT PAYMENTS),2103536643,1000061886
03.08.2022,ADULT SOCIAL CARE,PEOPLEPLUS ILS,555.99,SPECIALIST CARE,PAYMENTS TO CLIENTS (DIRECT PAYMENTS),2103536533,1000061886
03.08.2022,ADULT SOCIAL CARE,PEOPLEPLUS ILS,579.7,SPECIALIST CARE,PAYMENTS TO CLIENTS (DIRECT PAYMENTS),2103536501,1000061886
03.08.2022,ADULT SOCIAL CARE,PEOPLEPLUS ILS,600.73,SPECIALIST CARE,PAYMENTS TO CLIENTS (DIRECT PAYMENTS),2103536562,1000061886
03.08.2022,ADULT SOCIAL CARE,PEOPLEPLUS ILS,618.48,SPECIALIST CARE,PAYMENTS TO CLIENTS (DIRECT PAYMENTS),2103536753,1000061886
03.08.2022,ADULT SOCIAL CARE,PEOPLEPLUS ILS,627.44,SPECIALIST CARE,PAYMENTS TO CLIENTS (DIRECT PAYMENTS),2103536642,1000061886
03.08.2022,ADULT SOCIAL CARE,PEOPLEPLUS ILS,629.83,SPECIALIST CARE,PAYMENTS TO CLIENTS (DIRECT PAYMENTS),2103536558,1000061886
03.08.2022,ADULT SOCIAL CARE,PEOPLEPLUS ILS,632.76,SPECIALIST CARE,PAYMENTS TO CLIENTS (DIRECT PAYMENTS),2103536486,1000061886
03.08.2022,ADULT SOCIAL CARE,PEOPLEPLUS ILS,816.63,SPECIALIST CARE,PAYMENTS TO CLIENTS (DIRECT PAYMENTS),2103536509,1000061886
03.08.2022,ADULT SOCIAL CARE,PEOPLEPLUS ILS,864.96,SPECIALIST CARE,PAYMENTS TO CLIENTS (DIRECT PAYMENTS),2103536749,1000061886
03.08.2022,ADULT SOCIAL CARE,PEOPLEPLUS ILS,864.96,SPECIALIST CARE,PAYMENTS TO CLIENTS (DIRECT PAYMENTS),2103536754,1000061886
03.08.2022,ADULT SOCIAL CARE,PEOPLEPLUS ILS,944.59,SPECIALIST CARE,PAYMENTS TO CLIENTS (DIRECT PAYMENTS),2103536503,1000061886
03.08.2022,ADULT SOCIAL CARE,PEOPLEPLUS ILS,"1,073.91",SPECIALIST CARE,PAYMENTS TO CLIENTS (DIRECT PAYMENTS),2103536624,1000061886
03.08.2022,ADULT SOCIAL CARE,PEOPLEPLUS ILS,"1,143.56",SPECIALIST CARE,PAYMENTS TO CLIENTS (DIRECT PAYMENTS),2103536553,1000061886
03.08.2022,ADULT SOCIAL CARE,PEOPLEPLUS ILS,"1,155.51",SPECIALIST CARE,PAYMENTS TO CLIENTS (DIRECT PAYMENTS),2103536548,1000061886
03.08.2022,ADULT SOCIAL CARE,PEOPLEPLUS ILS,"1,155.51",SPECIALIST CARE,PAYMENTS TO CLIENTS (DIRECT PAYMENTS),2103536625,1000061886
03.08.2022,ADULT SOCIAL CARE,PEOPLEPLUS ILS,"1,207.29",SPECIALIST CARE,PAYMENTS TO CLIENTS (DIRECT PAYMENTS),2103536772,1000061886
03.08.2022,ADULT SOCIAL CARE,PEOPLEPLUS ILS,"1,671.49",SPECIALIST CARE,PAYMENTS TO CLIENTS (DIRECT PAYMENTS),2103536748,1000061886
03.08.2022,ADULT SOCIAL CARE,PEOPLEPLUS ILS,"1,798.21",SPECIALIST CARE,PAYMENTS TO CLIENTS (DIRECT PAYMENTS),2103536609,1000061886
03.08.2022,ADULT SOCIAL CARE,PEOPLEPLUS ILS,"1,975.81",SPECIALIST CARE,PAYMENTS TO CLIENTS (DIRECT PAYMENTS),2103536761,1000061886
03.08.2022,ADULT SOCIAL CARE,PEOPLEPLUS ILS,"2,394.86",SPECIALIST CARE,PAYMENTS TO CLIENTS (DIRECT PAYMENTS),2103536669,1000061886
03.08.2022,ADULT SOCIAL CARE,PEOPLEPLUS ILS,"4,338.89",SPECIALIST CARE,PAYMENTS TO CLIENTS (DIRECT PAYMENTS),2103536496,1000061886
03.08.2022,ADULT SOCIAL CARE,REDACTED PERSONAL DATA,448.26,SPECIALIST CARE,PAYMENTS TO CLIENTS (DIRECT PAYMENTS),REDACTED,REDACTED
03.08.2022,ADULT SOCIAL CARE,REDACTED PERSONAL DATA,602.33,SPECIALIST CARE,PAYMENTS TO CLIENTS (DIRECT PAYMENTS),REDACTED,REDACTED
03.08.2022,ADULT SOCIAL CARE,REDACTED PERSONAL DATA,928.69,SPECIALIST CARE,PAYMENTS TO CLIENTS (DIRECT PAYMENTS),REDACTED,REDACTED
03.08.2022,ADULT SOCIAL CARE,REDACTED PERSONAL DATA,464.34,SPECIALIST CARE,PAYMENTS TO CLIENTS (DIRECT PAYMENTS),REDACTED,REDACTED
03.08.2022,ADULT SOCIAL CARE,REDACTED PERSONAL DATA,826.01,SPECIALIST CARE,PAYMENTS TO CLIENTS (DIRECT PAYMENTS),REDACTED,REDACTED
03.08.2022,ADULT SOCIAL CARE,REDACTED PERSONAL DATA,474.84,SPECIALIST CARE,PAYMENTS TO CLIENTS (DIRECT PAYMENTS),REDACTED,REDACTED
03.08.2022,ADULT SOCIAL CARE,REDACTED PERSONAL DATA,347.19,SPECIALIST CARE,PAYMENTS TO CLIENTS (DIRECT PAYMENTS),REDACTED,REDACTED
03.08.2022,ADULT SOCIAL CARE,REDACTED PERSONAL DATA,"2,135.98",SPECIALIST CARE,PAYMENTS TO CLIENTS (DIRECT PAYMENTS),REDACTED,REDACTED
03.08.2022,ADULT SOCIAL CARE,REDACTED PERSONAL DATA,847.42,SPECIALIST CARE,PAYMENTS TO CLIENTS (DIRECT PAYMENTS),REDACTED,REDACTED
03.08.2022,ADULT SOCIAL CARE,REDACTED PERSONAL DATA,"1,126.37",SPECIALIST CARE,PAYMENTS TO CLIENTS (DIRECT PAYMENTS),REDACTED,REDACTED
03.08.2022,ADULT SOCIAL CARE,REDACTED PERSONAL DATA,556.55,SPECIALIST CARE,PAYMENTS TO CLIENTS (DIRECT PAYMENTS),REDACTED,REDACTED
03.08.2022,ADULT SOCIAL CARE,REDACTED PERSONAL DATA,708.65,SPECIALIST CARE,PAYMENTS TO CLIENTS (DIRECT PAYMENTS),REDACTED,REDACTED
03.08.2022,ADULT SOCIAL CARE,REDACTED PERSONAL DATA,788.46,SPECIALIST CARE,PAYMENTS TO CLIENTS (DIRECT PAYMENTS),REDACTED,REDACTED
03.08.2022,ADULT SOCIAL CARE,REDACTED PERSONAL DATA,253.45,SPECIALIST CARE,PAYMENTS TO CLIENTS (DIRECT PAYMENTS),REDACTED,REDACTED
03.08.2022,ADULT SOCIAL CARE,REDACTED PERSONAL DATA,319.14,SPECIALIST CARE,PAYMENTS TO CLIENTS (DIRECT PAYMENTS),REDACTED,REDACTED
03.08.2022,ADULT SOCIAL CARE,REDACTED PERSONAL DATA,262.82,SPECIALIST CARE,PAYMENTS TO CLIENTS (DIRECT PAYMENTS),REDACTED,REDACTED
03.08.2022,ADULT SOCIAL CARE,REDACTED PERSONAL DATA,549.93,SPECIALIST CARE,PAYMENTS TO CLIENTS (DIRECT PAYMENTS),REDACTED,REDACTED
03.08.2022,ADULT SOCIAL CARE,REDACTED PERSONAL DATA,293.74,SPECIALIST CARE,PAYMENTS TO CLIENTS (DIRECT PAYMENTS),REDACTED,REDACTED
03.08.2022,ADULT SOCIAL CARE,REDACTED PERSONAL DATA,569.35,SPECIALIST CARE,PAYMENTS TO CLIENTS (DIRECT PAYMENTS),REDACTED,REDACTED
03.08.2022,ADULT SOCIAL CARE,REDACTED PERSONAL DATA,472.08,SPECIALIST CARE,PAYMENTS TO CLIENTS (DIRECT PAYMENTS),REDACTED,REDACTED
03.08.2022,ADULT SOCIAL CARE,REDACTED PERSONAL DATA,459.94,SPECIALIST CARE,PAYMENTS TO CLIENTS (DIRECT PAYMENTS),REDACTED,REDACTED
03.08.2022,ADULT SOCIAL CARE,REDACTED PERSONAL DATA,557.21,SPECIALIST CARE,PAYMENTS TO CLIENTS (DIRECT PAYMENTS),REDACTED,REDACTED
03.08.2022,ADULT SOCIAL CARE,REDACTED PERSONAL DATA,913.58,SPECIALIST CARE,PAYMENTS TO CLIENTS (DIRECT PAYMENTS),REDACTED,REDACTED
03.08.2022,ADULT SOCIAL CARE,REDACTED PERSONAL DATA,321.91,SPECIALIST CARE,PAYMENTS TO CLIENTS (DIRECT PAYMENTS),REDACTED,REDACTED
03.08.2022,ADULT SOCIAL CARE,REDACTED PERSONAL DATA,957.41,SPECIALIST CARE,PAYMENTS TO CLIENTS (DIRECT PAYMENTS),REDACTED,REDACTED
03.08.2022,ADULT SOCIAL CARE,REDACTED PERSONAL DATA,317.31,SPECIALIST CARE,PAYMENTS TO CLIENTS (DIRECT PAYMENTS),REDACTED,REDACTED
03.08.2022,ADULT SOCIAL CARE,REDACTED PERSONAL DATA,506.87,SPECIALIST CARE,PAYMENTS TO CLIENTS (DIRECT PAYMENTS),REDACTED,REDACTED
03.08.2022,ADULT SOCIAL CARE,REDACTED PERSONAL DATA,537.78,SPECIALIST CARE,PAYMENTS TO CLIENTS (DIRECT PAYMENTS),REDACTED,REDACTED
03.08.2022,ADULT SOCIAL CARE,REDACTED PERSONAL DATA,"1,013.75",SPECIALIST CARE,PAYMENTS TO CLIENTS (DIRECT PAYMENTS),REDACTED,REDACTED
03.08.2022,ADULT SOCIAL CARE,REDACTED PERSONAL DATA,337.94,SPECIALIST CARE,PAYMENTS TO CLIENTS (DIRECT PAYMENTS),REDACTED,REDACTED
03.08.2022,ADULT SOCIAL CARE,REDACTED PERSONAL DATA,653.77,SPECIALIST CARE,PAYMENTS TO CLIENTS (DIRECT PAYMENTS),REDACTED,REDACTED
03.08.2022,ADULT SOCIAL CARE,REDACTED PERSONAL DATA,368.82,SPECIALIST CARE,PAYMENTS TO CLIENTS (DIRECT PAYMENTS),REDACTED,REDACTED
03.08.2022,ADULT SOCIAL CARE,REDACTED PERSONAL DATA,"1,346.60",SPECIALIST CARE,PAYMENTS TO CLIENTS (DIRECT PAYMENTS),REDACTED,REDACTED
03.08.2022,ADULT SOCIAL CARE,REDACTED PERSONAL DATA,"3,169.67",SPECIALIST CARE,PAYMENTS TO CLIENTS (DIRECT PAYMENTS),REDACTED,REDACTED
03.08.2022,ADULT SOCIAL CARE,REDACTED PERSONAL DATA,312.51,SPECIALIST CARE,PAYMENTS TO CLIENTS (DIRECT PAYMENTS),REDACTED,REDACTED
03.08.2022,ADULT SOCIAL CARE,REDACTED PERSONAL DATA,293.74,SPECIALIST CARE,PAYMENTS TO CLIENTS (DIRECT PAYMENTS),REDACTED,REDACTED
03.08.2022,ADULT SOCIAL CARE,REDACTED PERSONAL DATA,312.51,SPECIALIST CARE,PAYMENTS TO CLIENTS (DIRECT PAYMENTS),REDACTED,REDACTED
03.08.2022,ADULT SOCIAL CARE,REDACTED PERSONAL DATA,464.34,SPECIALIST CARE,PAYMENTS TO CLIENTS (DIRECT PAYMENTS),REDACTED,REDACTED
03.08.2022,ADULT SOCIAL CARE,REDACTED PERSONAL DATA,375.46,SPECIALIST CARE,PAYMENTS TO CLIENTS (DIRECT PAYMENTS),REDACTED,REDACTED
03.08.2022,ADULT SOCIAL CARE,REDACTED PERSONAL DATA,375.46,SPECIALIST CARE,PAYMENTS TO CLIENTS (DIRECT PAYMENTS),REDACTED,REDACTED
03.08.2022,ADULT SOCIAL CARE,REDACTED PERSONAL DATA,450.55,SPECIALIST CARE,PAYMENTS TO CLIENTS (DIRECT PAYMENTS),REDACTED,REDACTED
03.08.2022,ADULT SOCIAL CARE,REDACTED PERSONAL DATA,"1,177.83",SPECIALIST CARE,PAYMENTS TO CLIENTS (DIRECT PAYMENTS),REDACTED,REDACTED
03.08.2022,ADULT SOCIAL CARE,REDACTED PERSONAL DATA,"2,301.00",SPECIALIST CARE,PAYMENTS TO CLIENTS (DIRECT PAYMENTS),REDACTED,REDACTED
03.08.2022,ADULT SOCIAL CARE,REDACTED PERSONAL DATA,375.46,SPECIALIST CARE,PAYMENTS TO CLIENTS (DIRECT PAYMENTS),REDACTED,REDACTED
03.08.2022,ADULT SOCIAL CARE,REDACTED PERSONAL DATA,337.91,SPECIALIST CARE,PAYMENTS TO CLIENTS (DIRECT PAYMENTS),REDACTED,REDACTED
03.08.2022,ADULT SOCIAL CARE,REDACTED PERSONAL DATA,800.41,SPECIALIST CARE,PAYMENTS TO CLIENTS (DIRECT PAYMENTS),REDACTED,REDACTED
03.08.2022,ADULT SOCIAL CARE,REDACTED PERSONAL DATA,278.61,SPECIALIST CARE,PAYMENTS TO CLIENTS (DIRECT PAYMENTS),REDACTED,REDACTED
03.08.2022,CENTRAL FUNCTIONS,HELLO LAMP POST LTD,"4,196.25",DIGITAL INFRASTRUCTURE PROGRAMME,SOFTWARE,5902536199,1000082641
03.08.2022,CHILDREN AND FAMILIES,REDACTED PERSONAL DATA,337.95,16 PLUS TEAM,OTHER PAYMENTS FOR CLIENTS,REDACTED,REDACTED
03.08.2022,CHILDREN AND FAMILIES,DOG KENNEL HILL ADVENTURE PLAYGROUND LTD,300,ADOPT LONDON SOUTH,EXTERNAL AGENCIES AND BODIES,5902536286,11134529
03.08.2022,CHILDREN AND FAMILIES,PLACEMENT SUPPORT LTD,945,ADOPTION SUPP FUND,EXTERNAL AGENCIES AND BODIES,5902536295,1000085153
03.08.2022,CHILDREN AND FAMILIES,REDFERN PSYCHOLOGY SERVICES LTD,675,ADOPTION SUPP FUND,EXTERNAL AGENCIES AND BODIES,5902536299,1000087276
03.08.2022,CHILDREN AND FAMILIES,PURPLE THERAPY LTD,"3,940.00",ADOPTION SUPP FUND,EXTERNAL AGENCIES AND BODIES,5902536308,1000087557
03.08.2022,CHILDREN AND FAMILIES,ALEX VOLOVISKY LTD,500,ADOPTION SUPP FUND,EXTERNAL AGENCIES AND BODIES,5902536302,1000088469
03.08.2022,CHILDREN AND FAMILIES,REDACTED PERSONAL DATA,"1,680.00",ADOPTION SUPP FUND,EXTERNAL AGENCIES AND BODIES,REDACTED,REDACTED
03.08.2022,CHILDREN AND FAMILIES,REDACTED PERSONAL DATA,440,ADOPTION SUPP FUND,EXTERNAL AGENCIES AND BODIES,REDACTED,REDACTED
03.08.2022,CHILDREN AND FAMILIES,DIAGRAMA FOUNDATION CHILDREN SERVICES,"2,431.33",ALS INTER AGENCY,EXTERNAL AGENCIES AND BODIES,5902536292,1000078697
03.08.2022,CHILDREN AND FAMILIES,DIAGRAMA FOUNDATION CHILDREN SERVICES,"2,431.33",ALS INTER AGENCY,EXTERNAL AGENCIES AND BODIES,5902536293,1000078697
03.08.2022,CHILDREN AND FAMILIES,INTERPRETING DIRECT CO (UK) LTD,"25,273.50",CENTRAL SUPPORT,TRANSLATION SERVICES,5902536342,1000070133
03.08.2022,CHILDREN AND FAMILIES,REDACTED PERSONAL DATA,296.83,FAMILY GROUP CONF�S,PROFESSIONAL FEES,REDACTED,REDACTED
03.08.2022,CHILDREN AND FAMILIES,REDACTED PERSONAL DATA,"1,500.00",LEAVING CARE GRANT,OTHER PAYMENTS FOR CLIENTS,REDACTED,REDACTED
03.08.2022,CHILDREN AND FAMILIES,REDACTED PERSONAL DATA,"2,000.00",LEAVING CARE GRANT,OTHER PAYMENTS FOR CLIENTS,REDACTED,REDACTED
03.08.2022,CHILDREN AND FAMILIES,ALEX VOLOVISKY LTD,400,NEW ASF,EXTERNAL AGENCIES AND BODIES,5902536305,1000088469
03.08.2022,CHILDREN AND FAMILIES,REDACTED PERSONAL DATA,300,NEW ASF,EXTERNAL AGENCIES AND BODIES,REDACTED,REDACTED
03.08.2022,CHILDREN AND FAMILIES,REDACTED PERSONAL DATA,450,NEW ASF,EXTERNAL AGENCIES AND BODIES,REDACTED,REDACTED
03.08.2022,CHILDREN AND FAMILIES,REDACTED PERSONAL DATA,606.8,NEW ASF,EXTERNAL AGENCIES AND BODIES,REDACTED,REDACTED
03.08.2022,CHILDREN AND FAMILIES,REDACTED PERSONAL DATA,606.8,NEW ASF,EXTERNAL AGENCIES AND BODIES,REDACTED,REDACTED
03.08.2022,CHILDREN AND FAMILIES,ZENITH CARS LTD,760,P & R CARE TEAM,CLIENT TRANSPORT,5902536337,1000070570
03.08.2022,CHILDREN AND FAMILIES,DSA CARE AND SUPPORT SERVICES LTD,"1,700.00",P & R CARE TEAM,HIRED VEHICLES,5902535428,1000088302
03.08.2022,CHILDREN AND FAMILIES,REDACTED PERSONAL DATA,"1,788.50",SEMI-IND CARELEAVERS,OTHER PAYMENTS FOR CLIENTS,REDACTED,REDACTED
03.08.2022,CHILDREN AND FAMILIES,REDACTED PERSONAL DATA,"-3,119.72",SPECIAL GUARDIANSHIP,PAYMENTS TO CARERS,REDACTED,REDACTED
03.08.2022,CHILDREN AND FAMILIES,REDACTED PERSONAL DATA,"3,377.37",SPECIAL GUARDIANSHIP,PAYMENTS TO CARERS,REDACTED,REDACTED
03.08.2022,CHILDREN AND FAMILIES,REDACTED PERSONAL DATA,388.04,SPECIAL GUARDIANSHIP,PAYMENTS TO CARERS,REDACTED,REDACTED
03.08.2022,CHILDREN AND FAMILIES,REDACTED PERSONAL DATA,342.45,SPECIAL GUARDIANSHIP,PAYMENTS TO CARERS,REDACTED,REDACTED
03.08.2022,CHILDREN AND FAMILIES,REDACTED PERSONAL DATA,389.34,SPECIAL GUARDIANSHIP,PAYMENTS TO CARERS,REDACTED,REDACTED
03.08.2022,CHILDREN AND FAMILIES,REDACTED PERSONAL DATA,356.15,SPECIAL GUARDIANSHIP,PAYMENTS TO CARERS,REDACTED,REDACTED
03.08.2022,CHILDREN AND FAMILIES,REDACTED PERSONAL DATA,403.04,SPECIAL GUARDIANSHIP,PAYMENTS TO CARERS,REDACTED,REDACTED
03.08.2022,CHILDREN AND FAMILIES,REDACTED PERSONAL DATA,"-12,891.50",SPECIAL GUARDIANSHIP,PAYMENTS TO CARERS,REDACTED,REDACTED
03.08.2022,CHILDREN AND FAMILIES,REDACTED PERSONAL DATA,"14,183.62",SPECIAL GUARDIANSHIP,PAYMENTS TO CARERS,REDACTED,REDACTED
03.08.2022,CHILDREN AND FAMILIES,REDACTED PERSONAL DATA,359.56,SPECIAL GUARDIANSHIP,PAYMENTS TO CARERS,REDACTED,REDACTED
03.08.2022,CHILDREN AND FAMILIES,REDACTED PERSONAL DATA,525,SPECIAL GUARDIANSHIP,PAYMENTS TO CARERS,REDACTED,REDACTED
03.08.2022,CHILDREN AND FAMILIES,REDACTED PERSONAL DATA,341.15,SPECIAL GUARDIANSHIP,PAYMENTS TO CARERS,REDACTED,REDACTED
03.08.2022,CHILDREN AND FAMILIES,REDACTED PERSONAL DATA,338,SPECIAL GUARDIANSHIP,PAYMENTS TO CARERS,REDACTED,REDACTED
03.08.2022,CHILDREN AND FAMILIES,REDACTED PERSONAL DATA,338,SPECIAL GUARDIANSHIP,PAYMENTS TO CARERS,REDACTED,REDACTED
03.08.2022,CHILDREN AND FAMILIES,REDACTED PERSONAL DATA,472.71,SPECIAL GUARDIANSHIP,PAYMENTS TO CARERS,REDACTED,REDACTED
03.08.2022,CHILDREN AND FAMILIES,REDACTED PERSONAL DATA,472.71,SPECIAL GUARDIANSHIP,PAYMENTS TO CARERS,REDACTED,REDACTED
03.08.2022,CHILDREN AND FAMILIES,ZENITH CARS LTD,621,TEAM B,CLIENT TRANSPORT,5902536335,1000070570
03.08.2022,CHILDREN AND FAMILIES,ZENITH CARS LTD,620,TEAM C,CLIENT TRANSPORT,5902536335,1000070570
03.08.2022,COLLECTION FUNDS,GREATER LONDON AUTHORITY,"4,252,510.30",NNDR CLG SHARE,LEVIES,5902536236,1000015827
03.08.2022,COMMUNITIES,SOUTHWARK CITIZENS ADVICE,"23,000.00",COMMUNITIES PROJECTS,GRANTS,5902535235,1874379
03.08.2022,COMMUNITIES,GOLDEN OLDIES COMMUNITY CARE PROJECT,"1,250.00",VCS GRANTS,OTHER CONTRACTORS,5902536258,11122958
03.08.2022,COMMUNITIES,KINGSWOOD ESTATE T&RA,"1,940.00",VCS GRANTS,OTHER CONTRACTORS,5902536347,11205105
03.08.2022,COMMUNITIES,AFRO-BRAZILIAN ARTS & CULTURAL EXCHANGE INSTITUTE,"1,320.00",VCS GRANTS,OTHER CONTRACTORS,5902536243,1000072302
03.08.2022,CUSTOMER EXPERIENCE,UNIVERSITY OF WESTMINSTER,"1,195.00",COMPLAINTS,TRAINING,5902536174,1000044639
03.08.2022,CUSTOMER EXPERIENCE HGF,CAPITA SECURE INFORMATION,"50,868.00",APPLICATIONS,COMMS & COMPUTING CONTRACT CHARGES,5902536176,1000070739
03.08.2022,CUSTOMER EXPERIENCE HGF,WEB LABS LTD,"1,000.00",DIGITAL DELIVERY,CONSULTANTS SERVICES,5902536222,1000039819
03.08.2022,CUSTOMER EXPERIENCE HGF,KEYSIGHT TECHNOLOGIES UK LIMITED,"1,881.00",DIGITAL DELIVERY,SOFTWARE,5902536216,1000087731
03.08.2022,CUSTOMER EXPERIENCE HGF,VIRGIN MEDIA,315,SHARED SERVICES,COMMS & COMPUTING CONTRACT CHARGES,5902536262,1000026457
03.08.2022,CUSTOMER EXPERIENCE HGF,VIRGIN MEDIA,503.3,SHARED SERVICES,COMMS & COMPUTING CONTRACT CHARGES,5902536284,1000026457
03.08.2022,CUSTOMER EXPERIENCE HGF,VIRGIN MEDIA,"1,040.00",SHARED SERVICES,COMMS & COMPUTING CONTRACT CHARGES,5902536268,1000026457
03.08.2022,CUSTOMER EXPERIENCE HGF,VIRGIN MEDIA,"5,359.12",SHARED SERVICES,COMMS & COMPUTING CONTRACT CHARGES,5902536245,1000026457
03.08.2022,CUSTOMER EXPERIENCE HGF,BRITISH TELECOM PLC,"10,830.98",SHARED SERVICES,DATA COMMUNICATIONS,5902536185,1756938
03.08.2022,CUSTOMER EXPERIENCE HGF,DAISY CORPORATE SERVICES TRADING LIMITED,"14,958.73",SHARED SERVICES,DATA COMMUNICATIONS,5902536178,1000075666
03.08.2022,CUSTOMER EXPERIENCE HGF,ITEC CONNECT LTD,"1,000.00",SHARED SERVICES,PRINTING,5902536207,1000080418
03.08.2022,CUSTOMER EXPERIENCE HGF,ITEC CONNECT LTD,"5,142.91",SHARED SERVICES,PRINTING,5902536213,1000080418
03.08.2022,EDUCATION,RHYS HADDEN,"2,375.00",CENTRAL COSTS - SEN,LEGAL FEES & COURT COSTS,5902536318,1000063367
03.08.2022,EDUCATION,RE TODAY SERVICES,"1,500.00",SACRE,PROFESSIONAL FEES,5902536329,1000084088
03.08.2022,EDUCATION,BRITISH TELECOM PLC,"-1,704.31",THOMAS CALTON CENTRE,TELEPHONES (LAND LINES),5902531443,1756938
03.08.2022,ENVIRONMENT DIRECTORATE,LONDON COUNCILS,"28,566.00",ALG ACCOUNT,PROFESSIONAL FEES,5902536175,11237079
03.08.2022,ENVIRONMENT DIRECTORATE,FIVEWAYS MUNICIPAL VEHICLE HIRE LTD,"2,250.22",FLEET INSURANCE WORKS,TRANSPORT INSURANCE COSTS,5902536198,1000023985
03.08.2022,ENVIRONMENT DIRECTORATE,KENT COUNTY COUNCIL - LASER,"3,880.90",MULTI STOREY CAR PARK,ELECTRICITY,5902536307,1000012926
03.08.2022,ENVIRONMENT DIRECTORATE,WORKING ON WELLBEING LTD,"1,500.00",PARKING OVERHEADS,MEDICAL / HEALTH & SAFETY SERVICES,5902536230,1000077251
03.08.2022,ENVIRONMENT DIRECTORATE,WEB LABS LTD,"2,940.00",SUSTAINABLE WASTE OVERHEADS,OP LEASE/HIRE CHARGES:PLANT/EQUIP/FURNIT,5902536294,1000039819
03.08.2022,FINANCE & CORPORATE SERVICES,COLT TECHNOLOGY SERVICES,"1,298.00",CAPITAL PS (STRAT SERV),ICT ACQUISITION,5902536180,1000009377
03.08.2022,FINANCE & CORPORATE SERVICES,WEB LABS LTD,"4,500.00",CAPITAL PS (STRAT SERV),ICT ACQUISITION,5902536219,1000039819
03.08.2022,FINANCE & CORPORATE SERVICES,GARTNER UK LTD,"5,166.67",CAPITAL PS (STRAT SERV),ICT ACQUISITION,5902536196,1000072331
03.08.2022,FINANCE & CORPORATE SERVICES,HITACHI SOLUTIONS EUROPE LIMITED,"13,600.00",CAPITAL PS (STRAT SERV),ICT ACQUISITION,5902536214,1000084180
03.08.2022,FINANCE & CORPORATE SERVICES,HITACHI SOLUTIONS EUROPE LIMITED,"17,697.99",CAPITAL PS (STRAT SERV),ICT ACQUISITION,5902536187,1000084180
03.08.2022,FINANCE & CORPORATE SERVICES,HITACHI SOLUTIONS EUROPE LIMITED,"52,431.25",CAPITAL PS (STRAT SERV),ICT ACQUISITION,5902536189,1000084180
03.08.2022,HOUSING HRA,COTTRELL AND VERMEULEN ARCH LTD,"10,339.79",CAPITAL PS (HRA),CONSTRUCTION FEES  - EXTERNAL,5902536319,1000012119
03.08.2022,HOUSING HRA,COTTRELL AND VERMEULEN ARCH LTD,"10,339.79",CAPITAL PS (HRA),CONSTRUCTION FEES  - EXTERNAL,5902536321,1000012119
03.08.2022,HOUSING HRA,AETHER LTD,"2,600.00",CAPITAL PS (HRA),CONSTRUCTION FEES  - EXTERNAL,5902536341,1000077050
03.08.2022,HOUSING HRA,DISCOVERY SURVEYS LTD,800,CAPITAL PS (HRA),CONSTRUCTION FEES  - EXTERNAL,5902536281,1000087106
03.08.2022,HR & OT,ROSEMARY POTTS,"2,400.00",OCCUPATIONAL ASSESSMENT,GENERAL RECHARGES,5902536160,1738708
03.08.2022,LEISURE,SHARED INTELLIGENCE LTD,"13,850.00",CAPITAL PS (LEISURE),CONSTRUCTION FEES  - EXTERNAL,5902536242,1000027412
03.08.2022,LEISURE,BLAKEDOWN LANDSCAPES,"5,195.00",CAPITAL PS (LEISURE),ICT ACQUISITION,2103535139,4005399
03.08.2022,LEISURE DIRECTORATE,WIFI SPARK LTD,735.38,DULWICH LIBRARY,EQUIPMENT PURCHASE & REPAIR,5902536194,1000069461
03.08.2022,LEISURE DIRECTORATE,CASTLE WATER LTD,386.62,PECKHAM LIBRARY,WATER,5902536276,1000078867
03.08.2022,LEISURE DIRECTORATE,REGENT OFFICE CARE LTD,898.64,SDM BUDGET,PREMISES CLEANING,5902536317,1000063340
03.08.2022,PUBLIC HEALTH,HITACHI SOLUTIONS EUROPE LIMITED,"30,500.00",COVID-19 CONTROL OUTBREAK MGMNT.FUND,CONSULTANTS SERVICES,5902536191,1000084180
03.08.2022,PUBLIC HEALTH,SOCIAL FINANCE LIMITED,"45,000.00",COVID-19 CONTROL OUTBREAK MGMNT.FUND,EXTERNAL AGENCIES AND BODIES,5902536217,1000088272
03.08.2022,REGENERATION,LIVESEY EXCHANGE,"6,170.00",CAPITAL PS (REGEN),CONSTRUCTION,5902536274,1000082440
03.08.2022,REGENERATION,LIVESEY EXCHANGE,"20,442.85",CAPITAL PS (REGEN),CONSTRUCTION,5902536272,1000082440
03.08.2022,REGENERATION,LIVESEY EXCHANGE,"28,735.87",CAPITAL PS (REGEN),CONSTRUCTION,5902536283,1000082440
03.08.2022,RESIDENT SERVICES,WORKING ON WELLBEING LTD,750,HOUSING NEEDS,MEDICAL / HEALTH & SAFETY SERVICES,5902536271,1000077251
03.08.2022,RESIDENT SERVICES,WORKING ON WELLBEING LTD,875,HOUSING NEEDS,MEDICAL / HEALTH & SAFETY SERVICES,5902536275,1000077251
03.08.2022,RESIDENT SERVICES,BRANDON 3 T&RA,"10,000.00",WALWORTH EAST,GRANTS,5902536181,1000084117
03.08.2022,RESIDENT SERVICES HGF,PRIME LONDON MANAGEMENT LTD,"2,500.00",HOMELESS PROJECTS,GRANTS,5902536233,1000073126
03.08.2022,RESIDENT SERVICES HGF,PRIME LONDON MANAGEMENT LTD,"2,500.00",HOMELESS PROJECTS,GRANTS,5902536234,1000073126
03.08.2022,RESIDENT SERVICES HGF,STENFORD PROPERTY LTD,"38,515.20",NIGHTLY TA (NSC),EXTERNAL AGENCIES AND BODIES,5902536208,1000074759
03.08.2022,RESIDENT SERVICES HGF,ZFA ACCOMMODATION LTD,"-2,070.61",PSL PLACEMENTS,EXTERNAL AGENCIES AND BODIES,5902536229,1000082620
03.08.2022,RESIDENT SERVICES HGF,ZFA ACCOMMODATION LTD,"202,831.18",PSL PLACEMENTS,EXTERNAL AGENCIES AND BODIES,5902536227,1000082620
03.08.2022,SBS SUPPORT,TOTALMOBILE LTD,624.3,ICT & COMMUNICATIONS,SOFTWARE,5902536263,1000085502
03.08.2022,STRATEGIC FINANCING BUDGETS,THE BANK OF NEW YORK MELLON,827.16,CASH MANAGERS' COSTS,PROFESSIONAL FEES,5902536331,1000072540
03.08.2022,SUSTAINABLE GROWTH REGENERATION,MOUNTVIEW ACADEMY OF THEATRE ARTS,750,REGENERATION NORTH M & A,HIRE OF ROOMS/HALLS,5902536223,1000076966
04.08.2022,ADULT SOCIAL CARE,HUNTERSJOY LTD,670,ASW - PROFESSIONAL DEVELOPMENT,CONSULTANTS SERVICES,5902536059,1000077343
04.08.2022,ADULT SOCIAL CARE,THE DRIVE CARE HOMES LTD,"14,872.87",DISABILITIES LAC,EXTERNAL AGENCIES AND BODIES,2103536853,1000003889
04.08.2022,ADULT SOCIAL CARE,FOSTERING SUPPORT GROUP LTD,"5,779.33",DISABILITIES LAC,EXTERNAL AGENCIES AND BODIES,2103536847,1000065830
04.08.2022,ADULT SOCIAL CARE,THE DRIVE CARE HOMES LTD,"1,980.00",DISABILITIES LAC,OTHER PAYMENTS FOR CLIENTS,2103536855,1000003889
04.08.2022,ADULT SOCIAL CARE,DARETHEALTHCARE UK LTD,409.59,LD LTS 18-64,SUPPORTED LIVING,2103536796,1000059149
04.08.2022,ADULT SOCIAL CARE,CAREPOINT SERVICES LTD,346.5,MH LTS 18-64,HOMECARE - C&V,2103536932,1000087914
04.08.2022,ADULT SOCIAL CARE,CAREPOINT SERVICES LTD,387,MH LTS 18-64,HOMECARE - C&V,2103536931,1000087914
04.08.2022,ADULT SOCIAL CARE,CAREPOINT SERVICES LTD,"1,215.00",MH LTS 18-64,HOMECARE - C&V,2103536954,1000087914
04.08.2022,ADULT SOCIAL CARE,CAREPOINT SERVICES LTD,256.5,PHY LTS 18-64,HOMECARE - C&V,2103536921,1000087914
04.08.2022,ADULT SOCIAL CARE,CAREPOINT SERVICES LTD,288,PHY LTS 18-64,HOMECARE - C&V,2103536944,1000087914
04.08.2022,ADULT SOCIAL CARE,CAREPOINT SERVICES LTD,333,PHY LTS 18-64,HOMECARE - C&V,2103536939,1000087914
04.08.2022,ADULT SOCIAL CARE,CAREPOINT SERVICES LTD,468,PHY LTS 18-64,HOMECARE - C&V,2103536956,1000087914
04.08.2022,ADULT SOCIAL CARE,CAREPOINT SERVICES LTD,612,PHY LTS 18-64,HOMECARE - C&V,2103536925,1000087914
04.08.2022,ADULT SOCIAL CARE,CAREPOINT SERVICES LTD,"1,395.00",PHY LTS 18-64,HOMECARE - C&V,2103536935,1000087914
04.08.2022,ADULT SOCIAL CARE,CAREPOINT SERVICES LTD,"2,583.00",PHY LTS 18-64,HOMECARE - C&V,2103536942,1000087914
04.08.2022,ADULT SOCIAL CARE,CAREPOINT SERVICES LTD,261,PHY LTS 65+,HOMECARE - C&V,2103536933,1000087914
04.08.2022,ADULT SOCIAL CARE,CAREPOINT SERVICES LTD,324,PHY LTS 65+,HOMECARE - C&V,2103536926,1000087914
04.08.2022,ADULT SOCIAL CARE,CAREPOINT SERVICES LTD,436.5,PHY LTS 65+,HOMECARE - C&V,2103536924,1000087914
04.08.2022,ADULT SOCIAL CARE,CAREPOINT SERVICES LTD,463.5,PHY LTS 65+,HOMECARE - C&V,2103536952,1000087914
04.08.2022,ADULT SOCIAL CARE,CAREPOINT SERVICES LTD,468,PHY LTS 65+,HOMECARE - C&V,2103536947,1000087914
04.08.2022,ADULT SOCIAL CARE,CAREPOINT SERVICES LTD,481.5,PHY LTS 65+,HOMECARE - C&V,2103536946,1000087914
04.08.2022,ADULT SOCIAL CARE,CAREPOINT SERVICES LTD,693,PHY LTS 65+,HOMECARE - C&V,2103536928,1000087914
04.08.2022,ADULT SOCIAL CARE,CAREPOINT SERVICES LTD,715.5,PHY LTS 65+,HOMECARE - C&V,2103536945,1000087914
04.08.2022,ADULT SOCIAL CARE,CAREPOINT SERVICES LTD,891,PHY LTS 65+,HOMECARE - C&V,2103536951,1000087914
04.08.2022,ADULT SOCIAL CARE,CAREPOINT SERVICES LTD,"1,053.00",PHY LTS 65+,HOMECARE - C&V,2103536934,1000087914
04.08.2022,ADULT SOCIAL CARE,CAREPOINT SERVICES LTD,"1,197.00",PHY LTS 65+,HOMECARE - C&V,2103536930,1000087914
04.08.2022,ADULT SOCIAL CARE,CAREPOINT SERVICES LTD,"1,453.50",PHY LTS 65+,HOMECARE - C&V,2103536955,1000087914
04.08.2022,ADULT SOCIAL CARE,CAREPOINT SERVICES LTD,"1,764.00",PHY LTS 65+,HOMECARE - C&V,2103536948,1000087914
04.08.2022,ADULT SOCIAL CARE,CAREPOINT SERVICES LTD,"1,953.00",PHY LTS 65+,HOMECARE - C&V,2103536943,1000087914
04.08.2022,ADULT SOCIAL CARE,CAREPOINT SERVICES LTD,"2,052.00",PHY LTS 65+,HOMECARE - C&V,2103536957,1000087914
04.08.2022,ADULT SOCIAL CARE,CAREPOINT SERVICES LTD,"2,178.00",PHY LTS 65+,HOMECARE - C&V,2103536953,1000087914
04.08.2022,ADULT SOCIAL CARE,CAREPOINT SERVICES LTD,"2,340.00",PHY LTS 65+,HOMECARE - C&V,2103536923,1000087914
04.08.2022,ADULT SOCIAL CARE,CAREPOINT SERVICES LTD,"2,574.00",PHY LTS 65+,HOMECARE - C&V,2103536920,1000087914
04.08.2022,ADULT SOCIAL CARE,SIDLOFF ASSOCIATES LTD,"1,105.00",SAFEGUARDING & DOLS,EXTERNAL AGENCIES AND BODIES,5902535773,1000081744
04.08.2022,ADULT SOCIAL CARE,ENDORPHINS (LONDON & SOUTH EAST) LIMITED,"12,473.75",SPECIALIST CARE,EXTERNAL AGENCIES AND BODIES,5902536479,1000088634
04.08.2022,ASSET MANAGEMENT,PROPERTY FACILITIES GROUP LTD,476.58,DISREPAIR,PAYMENTS FOR LEGAL SERVICES,5902536376,1000063713
04.08.2022,ASSET MANAGEMENT HGF,ROYAL MAIL GROUP LTD,"1,831.81",160 TOOLEY ST.,POSTAGES,5902535244,1000061535
04.08.2022,CENTRAL FUNCTIONS,DRAIN SCAN (LONDON) LIMITED,"1,100.00",COMMERCIAL PROPERTIES,BUILDING R&M,5902536370,1908746
04.08.2022,CENTRAL FUNCTIONS,DENTONS UK AND MIDDLE EAST LLP,"1,705.00",COMMERCIAL PROPERTIES,PROFESSIONAL FEES,5902536484,1000083222
04.08.2022,CHIEF EXECUTIVE'S OFFICE,J C CONSULTANT SERVICES LTD,"10,417.00",CHIEF EXECUTIVE'S OFFICE,EXTERNAL AGENCIES AND BODIES,5902535893,1000042476
04.08.2022,CHIEF EXECUTIVE'S OFFICE,J C CONSULTANT SERVICES LTD,"70,577.00",CHIEF EXECUTIVE'S OFFICE,EXTERNAL AGENCIES AND BODIES,5902535891,1000042476
04.08.2022,CHILDREN AND FAMILIES,CHROMA THERAPIES LTD,624,ADOPTION SUPP FUND,EXTERNAL AGENCIES AND BODIES,5902535310,1000085537
04.08.2022,CHILDREN AND FAMILIES,INDEPENDENT BIA LTD,400,ADOPTION SUPP FUND,EXTERNAL AGENCIES AND BODIES,5902536101,1000086264
04.08.2022,CHILDREN AND FAMILIES,INDEPENDENT BIA LTD,400,ADOPTION SUPP FUND,EXTERNAL AGENCIES AND BODIES,5902536104,1000086264
04.08.2022,CHILDREN AND FAMILIES,REDACTED PERSONAL DATA,400,ADOPTION SUPP FUND,EXTERNAL AGENCIES AND BODIES,REDACTED,REDACTED
04.08.2022,CHILDREN AND FAMILIES,REDACTED PERSONAL DATA,480,ADOPTION SUPP FUND,EXTERNAL AGENCIES AND BODIES,REDACTED,REDACTED
04.08.2022,CHILDREN AND FAMILIES,LIONCARE LIMITED,"4,880.15",CHILDREN�S RESID,RESIDENTIAL CARE,2103536919,1000065330
04.08.2022,CHILDREN AND FAMILIES,247 BLUEBELL CARE LIMITED,"21,483.40",CHILDREN�S RESID,RESIDENTIAL CARE,2103536859,1000087186
04.08.2022,CHILDREN AND FAMILIES,CAMERON & COOPER LIMITED,"20,180.00",CHILDREN�S RESID,RESIDENTIAL CARE,2103536861,1000087598
04.08.2022,CHILDREN AND FAMILIES,TUTELAGE CARE GROUP LTD,"27,912.50",CHILDREN�S RESID,RESIDENTIAL CARE,2103536849,1000088232
04.08.2022,CHILDREN AND FAMILIES,A WILDERNESS WAY GROUP LIMITED,"58,001.00",CHILDREN�S RESID,RESIDENTIAL CARE,2103536851,1000088440
04.08.2022,CHILDREN AND FAMILIES,A WILDERNESS WAY GROUP LIMITED,"58,001.00",CHILDREN�S RESID,RESIDENTIAL CARE,2103536857,1000088440
04.08.2022,CHILDREN AND FAMILIES,CHRYSALIS CARE,"6,191.32",FRIENDS & FAMILY FOSTERING,EXTERNAL AGENCIES AND BODIES,2103536966,1000028987
04.08.2022,CHILDREN AND FAMILIES,GREATER LONDON FOSTERING,"3,534.00",FRIENDS & FAMILY FOSTERING,EXTERNAL AGENCIES AND BODIES,2103536811,1000029184
04.08.2022,CHILDREN AND FAMILIES,GREATER LONDON FOSTERING,"3,760.30",FRIENDS & FAMILY FOSTERING,EXTERNAL AGENCIES AND BODIES,2103536809,1000029184
04.08.2022,CHILDREN AND FAMILIES,GREATER LONDON FOSTERING,"3,760.30",FRIENDS & FAMILY FOSTERING,EXTERNAL AGENCIES AND BODIES,2103536823,1000029184
04.08.2022,CHILDREN AND FAMILIES,GREATER LONDON FOSTERING,"3,760.30",FRIENDS & FAMILY FOSTERING,EXTERNAL AGENCIES AND BODIES,2103536833,1000029184
04.08.2022,CHILDREN AND FAMILIES,GREATER LONDON FOSTERING,"4,645.35",FRIENDS & FAMILY FOSTERING,EXTERNAL AGENCIES AND BODIES,2103536829,1000029184
04.08.2022,CHILDREN AND FAMILIES,GREATER LONDON FOSTERING,"5,108.80",FRIENDS & FAMILY FOSTERING,EXTERNAL AGENCIES AND BODIES,2103536831,1000029184
04.08.2022,CHILDREN AND FAMILIES,KASPER FOSTERING,"3,513.23",FRIENDS & FAMILY FOSTERING,EXTERNAL AGENCIES AND BODIES,2103536839,1000036628
04.08.2022,CHILDREN AND FAMILIES,KASPER FOSTERING,"4,640.39",FRIENDS & FAMILY FOSTERING,EXTERNAL AGENCIES AND BODIES,2103536825,1000036628
04.08.2022,CHILDREN AND FAMILIES,NATIONAL FOSTERING AGENCY LTD,"3,317.00",FRIENDS & FAMILY FOSTERING,EXTERNAL AGENCIES AND BODIES,2103536960,1000038868
04.08.2022,CHILDREN AND FAMILIES,NATIONAL FOSTERING AGENCY LTD,"3,317.00",FRIENDS & FAMILY FOSTERING,EXTERNAL AGENCIES AND BODIES,2103536963,1000038868
04.08.2022,CHILDREN AND FAMILIES,NATIONAL FOSTERING AGENCY LTD,"3,321.34",FRIENDS & FAMILY FOSTERING,EXTERNAL AGENCIES AND BODIES,2103536962,1000038868
04.08.2022,CHILDREN AND FAMILIES,NATIONAL FOSTERING AGENCY LTD,"3,501.14",FRIENDS & FAMILY FOSTERING,EXTERNAL AGENCIES AND BODIES,2103536958,1000038868
04.08.2022,CHILDREN AND FAMILIES,NATIONAL FOSTERING AGENCY LTD,"3,598.17",FRIENDS & FAMILY FOSTERING,EXTERNAL AGENCIES AND BODIES,2103536965,1000038868
04.08.2022,CHILDREN AND FAMILIES,NATIONAL FOSTERING AGENCY LTD,"3,981.33",FRIENDS & FAMILY FOSTERING,EXTERNAL AGENCIES AND BODIES,2103536968,1000038868
04.08.2022,CHILDREN AND FAMILIES,NATIONAL FOSTERING AGENCY LTD,"4,557.00",FRIENDS & FAMILY FOSTERING,EXTERNAL AGENCIES AND BODIES,2103536959,1000038868
04.08.2022,CHILDREN AND FAMILIES,NATIONAL FOSTERING AGENCY LTD,"6,009.35",FRIENDS & FAMILY FOSTERING,EXTERNAL AGENCIES AND BODIES,2103536961,1000038868
04.08.2022,CHILDREN AND FAMILIES,NATIONAL FOSTERING AGENCY LTD,"6,067.01",FRIENDS & FAMILY FOSTERING,EXTERNAL AGENCIES AND BODIES,2103536964,1000038868
04.08.2022,CHILDREN AND FAMILIES,NATIONAL FOSTERING AGENCY LTD,"6,453.34",FRIENDS & FAMILY FOSTERING,EXTERNAL AGENCIES AND BODIES,2103536967,1000038868
04.08.2022,CHILDREN AND FAMILIES,SUNBEAM FOSTERING AGENCY LTD,"3,432.14",FRIENDS & FAMILY FOSTERING,EXTERNAL AGENCIES AND BODIES,2103536827,1000041457
04.08.2022,CHILDREN AND FAMILIES,SUNBEAM FOSTERING AGENCY LTD,"5,646.43",FRIENDS & FAMILY FOSTERING,EXTERNAL AGENCIES AND BODIES,2103536803,1000041457
04.08.2022,CHILDREN AND FAMILIES,FAMILY FOSTERING LTD,"4,601.64",FRIENDS & FAMILY FOSTERING,EXTERNAL AGENCIES AND BODIES,2103536801,1000075179
04.08.2022,CHILDREN AND FAMILIES,FOSTERING LONDON LTD,"5,092.68",FRIENDS & FAMILY FOSTERING,EXTERNAL AGENCIES AND BODIES,2103536813,1000077541
04.08.2022,CHILDREN AND FAMILIES,FOSTERING LONDON LTD,"8,348.00",FRIENDS & FAMILY FOSTERING,EXTERNAL AGENCIES AND BODIES,2103536805,1000077541
04.08.2022,CHILDREN AND FAMILIES,LIKA FAMILY FOSTERING,"3,996.78",FRIENDS & FAMILY FOSTERING,EXTERNAL AGENCIES AND BODIES,2103536817,1000080099
04.08.2022,CHILDREN AND FAMILIES,LIKA FAMILY FOSTERING,"4,207.14",FRIENDS & FAMILY FOSTERING,EXTERNAL AGENCIES AND BODIES,2103536807,1000080099
04.08.2022,CHILDREN AND FAMILIES,FAMILY FIRST FOSTERING LTD,"3,820.75",FRIENDS & FAMILY FOSTERING,EXTERNAL AGENCIES AND BODIES,2103536821,1000080631
04.08.2022,CHILDREN AND FAMILIES,FAMILY WORKS FOSTERING LTD,430.4,FRIENDS & FAMILY FOSTERING,EXTERNAL AGENCIES AND BODIES,2103536837,1000082529
04.08.2022,CHILDREN AND FAMILIES,FAMILY WORKS FOSTERING LTD,"6,275.29",FRIENDS & FAMILY FOSTERING,EXTERNAL AGENCIES AND BODIES,2103536819,1000082529
04.08.2022,CHILDREN AND FAMILIES,CARING HEARTS FOSTERING,"3,542.99",FRIENDS & FAMILY FOSTERING,EXTERNAL AGENCIES AND BODIES,2103536815,1000087065
04.08.2022,CHILDREN AND FAMILIES,CARING HEARTS FOSTERING,"3,542.99",FRIENDS & FAMILY FOSTERING,EXTERNAL AGENCIES AND BODIES,2103536835,1000087065
04.08.2022,CHILDREN AND FAMILIES,SILVER LINING FOSTERING LTD,"3,432.14",FRIENDS & FAMILY FOSTERING,EXTERNAL AGENCIES AND BODIES,2103536799,1000087318
04.08.2022,CHILDREN AND FAMILIES,OUTSET FOSTERING AGENCY LTD,"3,410.00",FRIENDS & FAMILY FOSTERING,EXTERNAL AGENCIES AND BODIES,2103536841,1000088285
04.08.2022,CHILDREN AND FAMILIES,REDACTED PERSONAL DATA,"1,000.00",LEAVING CARE GRANT,OTHER PAYMENTS FOR CLIENTS,REDACTED,REDACTED
04.08.2022,CHILDREN AND FAMILIES,SHOWCASE PSR LIMITED,"1,196.90",MGMT & PARENTING,FURNITURE PURCHASE & REPAIR,5902536480,1000088686
04.08.2022,CHILDREN AND FAMILIES,FAMILY FUTURES CIC,480,NEW ASF,EXTERNAL AGENCIES AND BODIES,5902535698,1000027893
04.08.2022,CHILDREN AND FAMILIES,FAMILY FUTURES CIC,"3,803.00",NEW ASF,EXTERNAL AGENCIES AND BODIES,5902535700,1000027893
04.08.2022,CHILDREN AND FAMILIES,FAMILY FUTURES CIC,"4,752.00",NEW ASF,EXTERNAL AGENCIES AND BODIES,5902535697,1000027893
04.08.2022,CHILDREN AND FAMILIES,REDACTED PERSONAL DATA,255,NEW ASF,EXTERNAL AGENCIES AND BODIES,REDACTED,REDACTED
04.08.2022,CHILDREN AND FAMILIES,REDACTED PERSONAL DATA,260,NEW ASF,EXTERNAL AGENCIES AND BODIES,REDACTED,REDACTED
04.08.2022,CHILDREN AND FAMILIES,REDACTED PERSONAL DATA,500,NEW ASF,EXTERNAL AGENCIES AND BODIES,REDACTED,REDACTED
04.08.2022,CHILDREN AND FAMILIES,REDACTED PERSONAL DATA,"1,010.20",P & R CARE TEAM,OTHER PAYMENTS FOR CLIENTS,REDACTED,REDACTED
04.08.2022,CHILDREN AND FAMILIES,REDACTED PERSONAL DATA,325,P & R CARE TEAM,OTHER PAYMENTS FOR CLIENTS,REDACTED,REDACTED
04.08.2022,CHILDREN AND FAMILIES,REDACTED PERSONAL DATA,400,P & R CARE TEAM,OTHER PAYMENTS FOR CLIENTS,REDACTED,REDACTED
04.08.2022,CHILDREN AND FAMILIES,FUTURE FOUNDATIONS LTD,"-2,292.50",SEMI-IND CARELEAVERS,COSTS RECOVERED,2103530481,1000063272
04.08.2022,CHILDREN AND FAMILIES,FUTURE FOUNDATIONS LTD,-800,SEMI-IND CARELEAVERS,COSTS RECOVERED,2103530479,1000063272
04.08.2022,CHILDREN AND FAMILIES,FUTURE FOUNDATIONS LTD,-350,SEMI-IND CARELEAVERS,COSTS RECOVERED,2103530480,1000063272
04.08.2022,CHILDREN AND FAMILIES,NETPEX LTD CORPORATE SERVICES,"-3,579.96",SEMI-IND CARELEAVERS,COSTS RECOVERED,2103535095,1000076073
04.08.2022,CHILDREN AND FAMILIES,NETPEX LTD CORPORATE SERVICES,"-3,503.44",SEMI-IND CARELEAVERS,COSTS RECOVERED,2103535094,1000076073
04.08.2022,CHILDREN AND FAMILIES,NETPEX LTD CORPORATE SERVICES,"-1,349.97",SEMI-IND CARELEAVERS,COSTS RECOVERED,2103535092,1000076073
04.08.2022,CHILDREN AND FAMILIES,NETPEX LTD CORPORATE SERVICES,-904.88,SEMI-IND CARELEAVERS,COSTS RECOVERED,2103535093,1000076073
04.08.2022,CHILDREN AND FAMILIES,ELLIOT LEIGH TLC LTD,-625.05,SEMI-IND CARELEAVERS,COSTS RECOVERED,2103519662,1000079022
04.08.2022,CHILDREN AND FAMILIES,ELLIOT LEIGH TLC LTD,-625.05,SEMI-IND CARELEAVERS,COSTS RECOVERED,2103536970,1000079022
04.08.2022,CHILDREN AND FAMILIES,ELLIOT LEIGH TLC LTD,-540,SEMI-IND CARELEAVERS,COSTS RECOVERED,2103536969,1000079022
04.08.2022,CHILDREN AND FAMILIES,NETPEX LTD CORPORATE SERVICES,"2,546.40",SEMI-IND CARELEAVERS,EXTERNAL AGENCIES AND BODIES,2103536890,1000076073
04.08.2022,CHILDREN AND FAMILIES,NETPEX LTD CORPORATE SERVICES,"2,657.13",SEMI-IND CARELEAVERS,EXTERNAL AGENCIES AND BODIES,2103536893,1000076073
04.08.2022,CHILDREN AND FAMILIES,NETPEX LTD CORPORATE SERVICES,"2,767.99",SEMI-IND CARELEAVERS,EXTERNAL AGENCIES AND BODIES,2103536896,1000076073
04.08.2022,CHILDREN AND FAMILIES,NETPEX LTD CORPORATE SERVICES,"2,794.40",SEMI-IND CARELEAVERS,EXTERNAL AGENCIES AND BODIES,2103536889,1000076073
04.08.2022,CHILDREN AND FAMILIES,ELLIOT LEIGH TLC LTD,"2,015.00",SEMI-IND CARELEAVERS,EXTERNAL AGENCIES AND BODIES,2103536902,1000079022
04.08.2022,CHILDREN AND FAMILIES,ELLIOT LEIGH TLC LTD,"2,901.91",SEMI-IND CARELEAVERS,EXTERNAL AGENCIES AND BODIES,2103536886,1000079022
04.08.2022,CHILDREN AND FAMILIES,ELLIOT LEIGH TLC LTD,"3,367.53",SEMI-IND CARELEAVERS,EXTERNAL AGENCIES AND BODIES,2103536901,1000079022
04.08.2022,CHILDREN AND FAMILIES,SYDNEY CARE LTD,"5,314.28",SEMI-IND CARELEAVERS,EXTERNAL AGENCIES AND BODIES,2103536900,1000081598
04.08.2022,CHILDREN AND FAMILIES,ROWLAND PROPERTIES LIMITED,900,SEMI-IND CARELEAVERS,EXTERNAL AGENCIES AND BODIES,2103536909,1000086752
04.08.2022,CHILDREN AND FAMILIES,WYF VENTURES LTD,"2,100.00",SEMI-IND CARELEAVERS,EXTERNAL AGENCIES AND BODIES,2103536892,1000087022
04.08.2022,CHILDREN AND FAMILIES,WYF VENTURES LTD,"2,103.35",SEMI-IND CARELEAVERS,EXTERNAL AGENCIES AND BODIES,2103536894,1000087022
04.08.2022,CHILDREN AND FAMILIES,WYF VENTURES LTD,"2,170.00",SEMI-IND CARELEAVERS,EXTERNAL AGENCIES AND BODIES,2103536903,1000087022
04.08.2022,CHILDREN AND FAMILIES,FUTURE FOUNDATIONS LTD,712.85,SEMI-IND LAC 16-17,EXTERNAL AGENCIES AND BODIES,2103536883,1000063272
04.08.2022,CHILDREN AND FAMILIES,SYDNEY CARE LTD,"7,612.71",SEMI-IND LAC 16-17,EXTERNAL AGENCIES AND BODIES,2103536873,1000081598
04.08.2022,CHILDREN AND FAMILIES,DREAMFO HOUSING LTD,"3,321.30",SEMI-IND LAC 16-17,EXTERNAL AGENCIES AND BODIES,2103536867,1000087273
04.08.2022,CHILDREN AND FAMILIES,DREAMFO HOUSING LTD,"3,587.01",SEMI-IND LAC 16-17,EXTERNAL AGENCIES AND BODIES,2103536865,1000087273
04.08.2022,CHILDREN AND FAMILIES,DREAMFO HOUSING LTD,"5,712.64",SEMI-IND LAC 16-17,EXTERNAL AGENCIES AND BODIES,2103536881,1000087273
04.08.2022,CHILDREN AND FAMILIES,SYDNEY CARE LTD,265.71,SEMI-IND LAC 16-17,OTHER PAYMENTS FOR CLIENTS,2103536875,1000081598
04.08.2022,CHILDREN AND FAMILIES,DREAMFO HOUSING LTD,265.71,SEMI-IND LAC 16-17,OTHER PAYMENTS FOR CLIENTS,2103536869,1000087273
04.08.2022,CHILDREN AND FAMILIES,DREAMFO HOUSING LTD,265.71,SEMI-IND LAC 16-17,OTHER PAYMENTS FOR CLIENTS,2103536882,1000087273
04.08.2022,CHILDREN AND FAMILIES,GREATER LONDON FOSTERING,"1,882.01",STAYPUT- FOST CARERS,EXTERNAL AGENCIES AND BODIES,2103536904,1000029184
04.08.2022,CHILDREN AND FAMILIES,GREATER LONDON FOSTERING,"2,162.56",STAYPUT- FOST CARERS,EXTERNAL AGENCIES AND BODIES,2103536906,1000029184
04.08.2022,CHILDREN AND FAMILIES,OWNLIFE LTD,"2,790.00",UASC CARELEAVERS,EXTERNAL AGENCIES AND BODIES,2103536884,1000056219
04.08.2022,CHILDREN AND FAMILIES,FUTURE FOUNDATIONS LTD,"1,167.00",UASC CARELEAVERS,EXTERNAL AGENCIES AND BODIES,2103536885,1000063272
04.08.2022,CHILDREN AND FAMILIES,FUTURE FOUNDATIONS LTD,"4,419.71",UASC CARELEAVERS,EXTERNAL AGENCIES AND BODIES,2103536905,1000063272
04.08.2022,CHILDREN AND FAMILIES,NETPEX LTD CORPORATE SERVICES,"2,170.00",UASC CARELEAVERS,EXTERNAL AGENCIES AND BODIES,2103536898,1000076073
04.08.2022,CHILDREN AND FAMILIES,ELLIOT LEIGH TLC LTD,"1,713.68",UASC CARELEAVERS,EXTERNAL AGENCIES AND BODIES,2103536908,1000079022
04.08.2022,CHILDREN AND FAMILIES,ELLIOT LEIGH TLC LTD,"1,727.01",UASC CARELEAVERS,EXTERNAL AGENCIES AND BODIES,2103536887,1000079022
04.08.2022,CHILDREN AND FAMILIES,ELLIOT LEIGH TLC LTD,"2,426.06",UASC CARELEAVERS,EXTERNAL AGENCIES AND BODIES,2103536888,1000079022
04.08.2022,CHILDREN AND FAMILIES,WYF VENTURES LTD,"2,037.01",UASC CARELEAVERS,EXTERNAL AGENCIES AND BODIES,2103536895,1000087022
04.08.2022,CHILDREN AND FAMILIES,DREAMFO HOUSING LTD,"3,587.01",UASC CARELEAVERS,EXTERNAL AGENCIES AND BODIES,2103536899,1000087273
04.08.2022,CHILDREN AND FAMILIES,DREAMFO HOUSING LTD,"3,321.30",UASC LAC 16-17,EXTERNAL AGENCIES AND BODIES,2103536877,1000087273
04.08.2022,CHILDREN AND FAMILIES,DREAMFO HOUSING LTD,265.71,UASC LAC 16-17,OTHER PAYMENTS FOR CLIENTS,2103536879,1000087273
04.08.2022,CHILDREN AND FAMILIES,REDACTED PERSONAL DATA,300,UASC LAC 16-17,OTHER PAYMENTS FOR CLIENTS,REDACTED,REDACTED
04.08.2022,CHILDREN AND FAMILIES,REDACTED PERSONAL DATA,300,UASC LAC 16-17,OTHER PAYMENTS FOR CLIENTS,REDACTED,REDACTED
04.08.2022,COMMUNITIES,A & M PROPERTY AND CONSTRUCTION LTD,"3,317.00",NO RECOURSE TO PUBLIC FUNDS,ACCOMMODATION CHARGES,5902536497,1000014564
04.08.2022,COMMUNITIES,SK HOUSING LTD,"1,488.00",NO RECOURSE TO PUBLIC FUNDS,ACCOMMODATION CHARGES,5902536486,1000070716
04.08.2022,COMMUNITIES,FRAMEWORK HOUSING ASSOCIATION,"2,000.00",TIER 4 SERVICES,OTHER CONTRACTORS,5902535882,1000086098
04.08.2022,COMMUNITIES,REDACTED PERSONAL DATA,"1,050.00",UKRAINIAN PROGRAMME,GRANTS,REDACTED,REDACTED
04.08.2022,COMMUNITIES HRA,FALCON POINT MANAGEMENT GROUP LTD,"2,228.55",FALCON POINT TMO,M&M ALLOWANCE CO-OPS,5902535274,11117573
04.08.2022,COMMUNITIES HRA,FALCON POINT MANAGEMENT GROUP LTD,"49,102.25",FALCON POINT TMO,M&M ALLOWANCE CO-OPS,5902535277,11117573
04.08.2022,COMMUNITIES HRA,WRAYBURN COMMUNITIES ORGANISATION LTD,"18,611.00",WRAYBURN TMO,M&M ALLOWANCE CO-OPS,5902536458,1000078477
04.08.2022,CUSTOMER EXPERIENCE HGF,KAPLAN FINANCIAL LTD,"1,261.66",IT MANAGEMENT,TRAINING,5902536418,1000029018
04.08.2022,CUSTOMER EXPERIENCE HGF,TURUN UK LTD,"1,014.79",LAMBETH RESPONSE,EQUIPMENT PURCHASE & REPAIR,5902536210,1000073595
04.08.2022,CUSTOMER EXPERIENCE HGF,CAIR UK LTD,550,LAMBETH RESPONSE,EQUIPMENT PURCHASE & REPAIR,5902536315,1000084348
04.08.2022,CUSTOMER EXPERIENCE HGF,VIRGIN MEDIA,"2,582.40",SHARED SERVICES,COMMS & COMPUTING CONTRACT CHARGES,5902536250,1000026457
04.08.2022,CUSTOMER EXPERIENCE HGF,EASYLINK UK,"2,399.80",SMART MOBILE RESPONSE TEAM,EQUIPMENT PURCHASE & REPAIR,5902535298,1000066550
04.08.2022,E&L,IMPROVING HEALTH LTD,819.25,DIGITAL HEALTH,EXTERNAL AGENCIES AND BODIES,5902536457,1000079313
04.08.2022,E&L,IMPROVING HEALTH LTD,"6,300.00",DIGITAL HEALTH,EXTERNAL AGENCIES AND BODIES,5902536457,1000079313
04.08.2022,E&L,IMPROVING HEALTH LTD,"14,000.00",DIGITAL HEALTH,EXTERNAL AGENCIES AND BODIES,5902536457,1000079313
04.08.2022,EDUCATION,BLACKFRIARS SETTLEMENT,"2,700.00",ADULT SKILLS BUDGET,GRANTS,5902535406,1013178
04.08.2022,EDUCATION,PULSE HEALTHCARE LTD,253.76,SCH TRANS � TRAVEL,AGENCY STAFF,5902536322,1000035063
04.08.2022,EDUCATION,BRITISH TELECOM PLC,"2,794.57",THOMAS CALTON CENTRE,TELEPHONES (LAND LINES),5902536359,1756938
04.08.2022,ENVIRONMENT DIRECTORATE,GREENHAM TRADING LTD,"1,208.69",ESTATE CLEANING-GENERAL,MATERIALS,5902536375,1000006610
04.08.2022,ENVIRONMENT DIRECTORATE,GREENHAM TRADING LTD,"1,496.49",ESTATE CLEANING-GENERAL,MATERIALS,5902535326,1000006610
04.08.2022,ENVIRONMENT DIRECTORATE,THE SKILLS CENTRE LONDON LTD,780,HIGHWAY MAINTENANCE OVERHEADS,TRAINING,5902536371,1000085381
04.08.2022,ENVIRONMENT DIRECTORATE,CIRRUS RESEARCH PLC,446,NOISE TEAM,EQUIPMENT PURCHASE & REPAIR,5902535516,1000077731
04.08.2022,ENVIRONMENT DIRECTORATE,CHARTERED INSTITUTE OF HOUSING,270,SASBU,TRAINING,5902535725,1914585
04.08.2022,F & C S EXCLUDING CORPORATE BUDGETS,UIPATH LTD,"11,600.00",INCOME MANAGEMENT,COMMS & COMPUTING CONTRACT CHARGES,5902536494,1000088352
04.08.2022,F & C S EXCLUDING CORPORATE BUDGETS,SHARPE PRITCHARD LLP,489,LEGAL CORP.CHARGES,SOLICITORS FRAMEWORK LEGAL SERVICES,5902536435,1790085
04.08.2022,FINANCE & CORPORATE SERVICES,FARONICS EMEA LTD,"5,000.00",CAPITAL PS (STRAT SERV),ICT ACQUISITION,5902536475,1000085699
04.08.2022,HOUSING,THAMES VALLEY CONTROLS LTD,"5,351.00",THAMES VALLEY CONTROL,I-WORLD CONTRACTORS HOLDING ACCOUNT,5902536388,1295718
04.08.2022,HOUSING,THAMES VALLEY CONTROLS LTD,"8,452.00",THAMES VALLEY CONTROL,I-WORLD CONTRACTORS HOLDING ACCOUNT,5902536384,1295718
04.08.2022,HOUSING,THAMES VALLEY CONTROLS LTD,"24,304.00",THAMES VALLEY CONTROL,I-WORLD CONTRACTORS HOLDING ACCOUNT,5902536386,1295718
04.08.2022,HOUSING GF,DACS LTD,"20,653.07",CAPITAL PS (HOUSING GF),CAPITAL GRANTS,5902536474,1000079747
04.08.2022,HOUSING HRA,F. E. BURMAN LTD,999,CAPITAL PS (HRA),CONSTRUCTION FEES,5902536476,1000083546
04.08.2022,HOUSING HRA,CALFORD SEADEN LLP,"3,370.06",CAPITAL PS (HRA),CONSTRUCTION FEES  - EXTERNAL,5902535319,1061592
04.08.2022,HOUSING HRA,CALFORD SEADEN LLP,"3,756.19",CAPITAL PS (HRA),CONSTRUCTION FEES  - EXTERNAL,5902535352,1061592
04.08.2022,HOUSING HRA,CALFORD SEADEN LLP,"4,900.00",CAPITAL PS (HRA),CONSTRUCTION FEES  - EXTERNAL,5902535344,1061592
04.08.2022,HOUSING HRA,CALFORD SEADEN LLP,"18,030.92",CAPITAL PS (HRA),CONSTRUCTION FEES  - EXTERNAL,5902535353,1061592
04.08.2022,HOUSING HRA,CLEARVIEW SURVEYS LTD,"5,985.00",CAPITAL PS (HRA),CONSTRUCTION FEES  - EXTERNAL,5902536310,1000063949
04.08.2022,HOUSING HRA,POTTER RAPER LTD,"10,339.28",CAPITAL PS (HRA),CONSTRUCTION FEES - EMPLOYERS AGENT,5902536440,1009369
04.08.2022,HOUSING HRA,CALFORD SEADEN LLP,689.85,CAPITAL PS (HRA),CONSTRUCTION FEES - EMPLOYERS AGENT,5902535342,1061592
04.08.2022,HOUSING HRA,GUILDMORE LTD,"337,665.02",CAPITAL PS (HRA),CONSTRUCTION MAIN CONTRACT,2103536783,3000002150
04.08.2022,HOUSING HRA,STANNAH LIFT SERVICES LTD,"5,410.00",CAPITAL PS (HRA),UTILITIES INSTALLATION,5902535302,1063595
04.08.2022,HR & OT,SUZY LAMPLUGH TRUST,600,MEMBER DEVELOPMENT,TRAINING,5902536428,1000001497
04.08.2022,HR & OT,WORKING ON WELLBEING LTD,"1,723.60",OPTIMA HEALTH,MEDICAL / HEALTH & SAFETY SERVICES,5902536362,1000077251
04.08.2022,HR & OT,WORKING ON WELLBEING LTD,"7,036.48",OPTIMA HEALTH,MEDICAL / HEALTH & SAFETY SERVICES,5902536362,1000077251
04.08.2022,LEISURE,ASKEWS & HOLTS LIBRARY SERVICES LTD,411.03,CAPITAL PS (LEISURE),CAPITAL GRANTS,5902535568,1494168
04.08.2022,LEISURE,P D CONSTRUCTION LTD,"7,270.00",CAPITAL PS (LEISURE),CONSTRUCTION,2103533258,4001883
04.08.2022,LEISURE,SITE ENGINEERING SURVEYS LTD,300,CAPITAL PS (LEISURE),CONSTRUCTION FEES  - EXTERNAL,5902535314,1000004916
04.08.2022,LEISURE DIRECTORATE,JRB ENTERPRISE LTD,712.8,DULWICH AREA TEAM,OTHER R&M,5902536453,1000043818
04.08.2022,LEISURE DIRECTORATE,SKYWAY,"7,500.00",GRANTS COMMISSIONING,GRANTS,5902535348,1000069595
04.08.2022,LEISURE DIRECTORATE,ANIMA YOUTH CIC,"2,400.00",GRANTS COMMISSIONING,GRANTS,5902536164,1000083977
04.08.2022,LEISURE DIRECTORATE,ANIMA YOUTH CIC,"2,400.00",GRANTS COMMISSIONING,GRANTS,5902536165,1000083977
04.08.2022,LEISURE DIRECTORATE,KENT COUNTY COUNCIL - LASER,"4,098.97",SDM BUDGET,ELECTRICITY,5902536352,1000012926
04.08.2022,PUBLIC HEALTH,IMPROVING HEALTH LTD,"2,469.92",HEALTHY WEIGHT,EXTERNAL AGENCIES AND BODIES,5902536457,1000079313
04.08.2022,PUBLIC HEALTH,COMUZI LTD,"1,909.20",PLACE & HEALTH IMPROVEMENT,CONSULTANTS SERVICES,5902536043,1000084003
04.08.2022,PUBLIC HEALTH,COMUZI LTD,"18,000.00",PLACE & HEALTH IMPROVEMENT,CONSULTANTS SERVICES,5902536043,1000084003
04.08.2022,REGENERATION,DAVID MILES & PARTNERS LTD,"4,200.00",CAPITAL PS (REGEN),CONSTRUCTION FEES  - EXTERNAL,5902536437,1000001119
04.08.2022,REGENERATION,FARONICS EMEA LTD,"2,280.20",CAPITAL PS (REGEN),ICT ACQUISITION,5902536475,1000085699
04.08.2022,REGENERATION,FARONICS EMEA LTD,"14,916.20",CAPITAL PS (REGEN),ICT ACQUISITION,5902536475,1000085699
04.08.2022,REGENERATION,BRITISH GAS,473.53,CAPITAL PS (REGEN),UTILITIES INSTALLATION,5902536048,1000054825
04.08.2022,REGENERATION,BRITISH GAS,630.21,CAPITAL PS (REGEN),UTILITIES INSTALLATION,5902536050,1000054825
04.08.2022,REGENERATION,BRITISH GAS,669.09,CAPITAL PS (REGEN),UTILITIES INSTALLATION,5902536051,1000054825
04.08.2022,REGENERATION,BRITISH GAS,669.96,CAPITAL PS (REGEN),UTILITIES INSTALLATION,5902536121,1000054825
04.08.2022,RESIDENT SERVICES HGF,LOCAL HOUSING SOLUTIONS LTD,"3,616.70",HOMELESS PROJECTS,GRANTS,5902536478,1000047562
04.08.2022,RESIDENT SERVICES HGF,HELP2RENT PROPERTY MANAGEMENT LTD,"3,572.91",HOMELESS PROJECTS,GRANTS,5902536477,1000082282
04.08.2022,RESIDENT SERVICES HGF,NIGEL  GERALD,950.96,HOMELESS PROJECTS,GRANTS,5902536471,1000088678
04.08.2022,RESIDENT SERVICES HGF,WATERLOGIC,288.75,HOUSING OPTIONS,OFFICE EXPENSES,5902535800,1000052108
04.08.2022,RESIDENT SERVICES HGF,WATERLOGIC,288.75,HOUSING OPTIONS,OFFICE EXPENSES,5902535805,1000052108
04.08.2022,RESIDENT SERVICES HGF,WATERLOGIC,"1,035.66",HOUSING OPTIONS,OFFICE EXPENSES,5902535812,1000052108
04.08.2022,RESIDENT SERVICES HGF,WATERLOGIC,"1,035.99",HOUSING OPTIONS,OFFICE EXPENSES,5902535809,1000052108
04.08.2022,RESIDENT SERVICES HGF,REDACTED PERSONAL DATA,"8,790.00",NIGHTLY TA (NSC),EXTERNAL AGENCIES AND BODIES,REDACTED,REDACTED
04.08.2022,RESIDENT SERVICES HGF,SAM NORTH,"1,360.00",PRIVATE SECTOR LEASING,EXTERNAL AGENCIES AND BODIES,2103536971,1000086020
04.08.2022,RESIDENT SERVICES HGF,ROSELINE THOMAS,"3,300.00",PRIVATE SECTOR LEASING,EXTERNAL AGENCIES AND BODIES,2103536972,1000088659
04.08.2022,RESIDENT SERVICES HGF,ROSELINE THOMAS,"2,000.00",PRIVATE SECTOR LEASING,GRANTS,2103536973,1000088659
04.08.2022,RESIDENT SERVICES HGF,BETHEL ROCK LTD,"22,770.32",PSL PLACEMENTS,EXTERNAL AGENCIES AND BODIES,5902536379,1000080864
04.08.2022,RESIDENT SERVICES HGF,SMARTSPACE PROPERTY SOLUTIONS LTD,"9,619.63",PSL PLACEMENTS,EXTERNAL AGENCIES AND BODIES,5902536372,1000082769
04.08.2022,SBS SUPPORT,TOTALMOBILE LTD,"8,000.00",ICT & COMMUNICATIONS,SOFTWARE,5902535734,1000085502
04.08.2022,STRATEGIC FINANCING BUDGETS,COMENSURA LTD,886.5,WEEKLY PAYMENTS,AGENCY STAFF,5902536450,1000051261
04.08.2022,STRATEGIC FINANCING BUDGETS,COMENSURA LTD,"781,848.75",WEEKLY PAYMENTS,AGENCY STAFF,5902536448,1000051261
04.08.2022,SUSTAINABLE GROWTH REGENERATION,BUTLER HEGARTY ARCHITECTS LTD,344.99,PECKHAM THI,MARKETING & PUBLICITY SERVICES,5902536380,1000077437
04.08.2022,SUSTAINABLE GROWTH REGENERATION,BUTLER HEGARTY ARCHITECTS LTD,"3,440.77",PECKHAM THI,MARKETING & PUBLICITY SERVICES,5902536380,1000077437
04.08.2022,SUSTAINABLE GROWTH REGENERATION,M LEE MEDIAMIXER.CO.UK,295,PECKHAM THI,STATIONERY,5902536429,1000049773
05.08.2022,ADULT SOCIAL CARE,REDACTED PERSONAL DATA,262.6,APPOINTEESHIPS,OTHER PAYMENTS FOR CLIENTS,REDACTED,REDACTED
05.08.2022,ADULT SOCIAL CARE,REDACTED PERSONAL DATA,279.85,APPOINTEESHIPS,OTHER PAYMENTS FOR CLIENTS,REDACTED,REDACTED
05.08.2022,ADULT SOCIAL CARE,ELIZA SHARRON,740,DIR OF ASC,LEGAL FEES & COURT COSTS,2103537169,1000088673
05.08.2022,ADULT SOCIAL CARE,THAMES HOMECARE SERVICE LTD,268.66,LD LTS 18-64,HOMECARE - SPOT,2103537118,1000079295
05.08.2022,ADULT SOCIAL CARE,CHOICE SUPPORT,293.92,LD LTS 18-64,SUPPORTED LIVING,2103537152,1104183
05.08.2022,ADULT SOCIAL CARE,CHOICE SUPPORT,587.84,LD LTS 18-64,SUPPORTED LIVING,2103537150,1104183
05.08.2022,ADULT SOCIAL CARE,CHOICE SUPPORT,661.32,LD LTS 18-64,SUPPORTED LIVING,2103537153,1104183
05.08.2022,ADULT SOCIAL CARE,CHOICE SUPPORT,661.32,LD LTS 18-64,SUPPORTED LIVING,2103537156,1104183
05.08.2022,ADULT SOCIAL CARE,CHOICE SUPPORT,661.32,LD LTS 18-64,SUPPORTED LIVING,2103537157,1104183
05.08.2022,ADULT SOCIAL CARE,CHOICE SUPPORT,734.8,LD LTS 18-64,SUPPORTED LIVING,2103537151,1104183
05.08.2022,ADULT SOCIAL CARE,CHOICE SUPPORT,881.76,LD LTS 18-64,SUPPORTED LIVING,2103537149,1104183
05.08.2022,ADULT SOCIAL CARE,ABILITY FOCUS LTD,504,LD LTS 18-64,SUPPORTED LIVING,2103537148,1000084199
05.08.2022,ADULT SOCIAL CARE,ABILITY FOCUS LTD,"2,450.00",LD LTS 18-64,SUPPORTED LIVING,2103537147,1000084199
05.08.2022,ADULT SOCIAL CARE,CHOICE SUPPORT,"1,028.72",LD LTS 65+,SUPPORTED LIVING,2103537155,1104183
05.08.2022,ADULT SOCIAL CARE,THAMES HOMECARE SERVICE LTD,671.65,MEM LTS 65+,HOMECARE - SPOT,2103537142,1000079295
05.08.2022,ADULT SOCIAL CARE,THAMES HOMECARE SERVICE LTD,738.82,MEM LTS 65+,HOMECARE - SPOT,2103537096,1000079295
05.08.2022,ADULT SOCIAL CARE,OASIS CARE AND TRAINING AGENCY,824.2,MH LTS 65+,SUPPORTED LIVING,2103537154,1000003687
05.08.2022,ADULT SOCIAL CARE,THAMES HOMECARE SERVICE LTD,887.54,PHY LTS 18-64,HOMECARE - C&V,2103537115,1000079295
05.08.2022,ADULT SOCIAL CARE,THAMES HOMECARE SERVICE LTD,"1,007.48",PHY LTS 18-64,HOMECARE - C&V,2103537042,1000079295
05.08.2022,ADULT SOCIAL CARE,THAMES HOMECARE SERVICE LTD,259.07,PHY LTS 18-64,HOMECARE - SPOT,2103537026,1000079295
05.08.2022,ADULT SOCIAL CARE,THAMES HOMECARE SERVICE LTD,273.46,PHY LTS 18-64,HOMECARE - SPOT,2103537062,1000079295
05.08.2022,ADULT SOCIAL CARE,THAMES HOMECARE SERVICE LTD,335.83,PHY LTS 18-64,HOMECARE - SPOT,2103537024,1000079295
05.08.2022,ADULT SOCIAL CARE,THAMES HOMECARE SERVICE LTD,388.6,PHY LTS 18-64,HOMECARE - SPOT,2103537105,1000079295
05.08.2022,ADULT SOCIAL CARE,THAMES HOMECARE SERVICE LTD,604.49,PHY LTS 18-64,HOMECARE - SPOT,2103537056,1000079295
05.08.2022,ADULT SOCIAL CARE,THAMES HOMECARE SERVICE LTD,604.49,PHY LTS 18-64,HOMECARE - SPOT,2103537107,1000079295
05.08.2022,ADULT SOCIAL CARE,THAMES HOMECARE SERVICE LTD,805.98,PHY LTS 18-64,HOMECARE - SPOT,2103537041,1000079295
05.08.2022,ADULT SOCIAL CARE,THAMES HOMECARE SERVICE LTD,988.29,PHY LTS 18-64,HOMECARE - SPOT,2103537079,1000079295
05.08.2022,ADULT SOCIAL CARE,THAMES HOMECARE SERVICE LTD,254.27,PHY LTS 65+,HOMECARE - C&V,2103537052,1000079295
05.08.2022,ADULT SOCIAL CARE,THAMES HOMECARE SERVICE LTD,259.07,PHY LTS 65+,HOMECARE - C&V,2103537047,1000079295
05.08.2022,ADULT SOCIAL CARE,THAMES HOMECARE SERVICE LTD,302.24,PHY LTS 65+,HOMECARE - C&V,2103537074,1000079295
05.08.2022,ADULT SOCIAL CARE,THAMES HOMECARE SERVICE LTD,307.04,PHY LTS 65+,HOMECARE - C&V,2103537072,1000079295
05.08.2022,ADULT SOCIAL CARE,THAMES HOMECARE SERVICE LTD,604.49,PHY LTS 65+,HOMECARE - C&V,2103537143,1000079295
05.08.2022,ADULT SOCIAL CARE,THAMES HOMECARE SERVICE LTD,254.27,PHY LTS 65+,HOMECARE - SPOT,2103537068,1000079295
05.08.2022,ADULT SOCIAL CARE,THAMES HOMECARE SERVICE LTD,254.27,PHY LTS 65+,HOMECARE - SPOT,2103537086,1000079295
05.08.2022,ADULT SOCIAL CARE,THAMES HOMECARE SERVICE LTD,254.27,PHY LTS 65+,HOMECARE - SPOT,2103537145,1000079295
05.08.2022,ADULT SOCIAL CARE,THAMES HOMECARE SERVICE LTD,268.66,PHY LTS 65+,HOMECARE - SPOT,2103537036,1000079295
05.08.2022,ADULT SOCIAL CARE,THAMES HOMECARE SERVICE LTD,283.05,PHY LTS 65+,HOMECARE - SPOT,2103537038,1000079295
05.08.2022,ADULT SOCIAL CARE,THAMES HOMECARE SERVICE LTD,297.45,PHY LTS 65+,HOMECARE - SPOT,2103537111,1000079295
05.08.2022,ADULT SOCIAL CARE,THAMES HOMECARE SERVICE LTD,302.24,PHY LTS 65+,HOMECARE - SPOT,2103537091,1000079295
05.08.2022,ADULT SOCIAL CARE,THAMES HOMECARE SERVICE LTD,307.04,PHY LTS 65+,HOMECARE - SPOT,2103537060,1000079295
05.08.2022,ADULT SOCIAL CARE,THAMES HOMECARE SERVICE LTD,335.83,PHY LTS 65+,HOMECARE - SPOT,2103537095,1000079295
05.08.2022,ADULT SOCIAL CARE,THAMES HOMECARE SERVICE LTD,340.62,PHY LTS 65+,HOMECARE - SPOT,2103537046,1000079295
05.08.2022,ADULT SOCIAL CARE,THAMES HOMECARE SERVICE LTD,364.61,PHY LTS 65+,HOMECARE - SPOT,2103537032,1000079295
05.08.2022,ADULT SOCIAL CARE,THAMES HOMECARE SERVICE LTD,369.41,PHY LTS 65+,HOMECARE - SPOT,2103537069,1000079295
05.08.2022,ADULT SOCIAL CARE,THAMES HOMECARE SERVICE LTD,369.41,PHY LTS 65+,HOMECARE - SPOT,2103537097,1000079295
05.08.2022,ADULT SOCIAL CARE,THAMES HOMECARE SERVICE LTD,369.41,PHY LTS 65+,HOMECARE - SPOT,2103537121,1000079295
05.08.2022,ADULT SOCIAL CARE,THAMES HOMECARE SERVICE LTD,379,PHY LTS 65+,HOMECARE - SPOT,2103537106,1000079295
05.08.2022,ADULT SOCIAL CARE,THAMES HOMECARE SERVICE LTD,388.6,PHY LTS 65+,HOMECARE - SPOT,2103537098,1000079295
05.08.2022,ADULT SOCIAL CARE,THAMES HOMECARE SERVICE LTD,402.99,PHY LTS 65+,HOMECARE - SPOT,2103537137,1000079295
05.08.2022,ADULT SOCIAL CARE,THAMES HOMECARE SERVICE LTD,412.59,PHY LTS 65+,HOMECARE - SPOT,2103537136,1000079295
05.08.2022,ADULT SOCIAL CARE,THAMES HOMECARE SERVICE LTD,417.38,PHY LTS 65+,HOMECARE - SPOT,2103537113,1000079295
05.08.2022,ADULT SOCIAL CARE,THAMES HOMECARE SERVICE LTD,537.32,PHY LTS 65+,HOMECARE - SPOT,2103537101,1000079295
05.08.2022,ADULT SOCIAL CARE,THAMES HOMECARE SERVICE LTD,575.7,PHY LTS 65+,HOMECARE - SPOT,2103537044,1000079295
05.08.2022,ADULT SOCIAL CARE,THAMES HOMECARE SERVICE LTD,604.49,PHY LTS 65+,HOMECARE - SPOT,2103537065,1000079295
05.08.2022,ADULT SOCIAL CARE,THAMES HOMECARE SERVICE LTD,604.49,PHY LTS 65+,HOMECARE - SPOT,2103537085,1000079295
05.08.2022,ADULT SOCIAL CARE,THAMES HOMECARE SERVICE LTD,633.27,PHY LTS 65+,HOMECARE - SPOT,2103537100,1000079295
05.08.2022,ADULT SOCIAL CARE,THAMES HOMECARE SERVICE LTD,633.27,PHY LTS 65+,HOMECARE - SPOT,2103537104,1000079295
05.08.2022,ADULT SOCIAL CARE,THAMES HOMECARE SERVICE LTD,638.07,PHY LTS 65+,HOMECARE - SPOT,2103537089,1000079295
05.08.2022,ADULT SOCIAL CARE,THAMES HOMECARE SERVICE LTD,642.87,PHY LTS 65+,HOMECARE - SPOT,2103537057,1000079295
05.08.2022,ADULT SOCIAL CARE,THAMES HOMECARE SERVICE LTD,671.65,PHY LTS 65+,HOMECARE - SPOT,2103537034,1000079295
05.08.2022,ADULT SOCIAL CARE,THAMES HOMECARE SERVICE LTD,671.65,PHY LTS 65+,HOMECARE - SPOT,2103537077,1000079295
05.08.2022,ADULT SOCIAL CARE,THAMES HOMECARE SERVICE LTD,671.65,PHY LTS 65+,HOMECARE - SPOT,2103537116,1000079295
05.08.2022,ADULT SOCIAL CARE,THAMES HOMECARE SERVICE LTD,671.65,PHY LTS 65+,HOMECARE - SPOT,2103537131,1000079295
05.08.2022,ADULT SOCIAL CARE,THAMES HOMECARE SERVICE LTD,676.45,PHY LTS 65+,HOMECARE - SPOT,2103537071,1000079295
05.08.2022,ADULT SOCIAL CARE,THAMES HOMECARE SERVICE LTD,681.25,PHY LTS 65+,HOMECARE - SPOT,2103537055,1000079295
05.08.2022,ADULT SOCIAL CARE,THAMES HOMECARE SERVICE LTD,700.44,PHY LTS 65+,HOMECARE - SPOT,2103537031,1000079295
05.08.2022,ADULT SOCIAL CARE,THAMES HOMECARE SERVICE LTD,738.82,PHY LTS 65+,HOMECARE - SPOT,2103537022,1000079295
05.08.2022,ADULT SOCIAL CARE,THAMES HOMECARE SERVICE LTD,738.82,PHY LTS 65+,HOMECARE - SPOT,2103537140,1000079295
05.08.2022,ADULT SOCIAL CARE,THAMES HOMECARE SERVICE LTD,805.98,PHY LTS 65+,HOMECARE - SPOT,2103537029,1000079295
05.08.2022,ADULT SOCIAL CARE,THAMES HOMECARE SERVICE LTD,805.98,PHY LTS 65+,HOMECARE - SPOT,2103537049,1000079295
05.08.2022,ADULT SOCIAL CARE,THAMES HOMECARE SERVICE LTD,825.17,PHY LTS 65+,HOMECARE - SPOT,2103537087,1000079295
05.08.2022,ADULT SOCIAL CARE,THAMES HOMECARE SERVICE LTD,873.15,PHY LTS 65+,HOMECARE - SPOT,2103537082,1000079295
05.08.2022,ADULT SOCIAL CARE,THAMES HOMECARE SERVICE LTD,978.69,PHY LTS 65+,HOMECARE - SPOT,2103537014,1000079295
05.08.2022,ADULT SOCIAL CARE,THAMES HOMECARE SERVICE LTD,978.69,PHY LTS 65+,HOMECARE - SPOT,2103537066,1000079295
05.08.2022,ADULT SOCIAL CARE,THAMES HOMECARE SERVICE LTD,"1,161.00",PHY LTS 65+,HOMECARE - SPOT,2103537099,1000079295
05.08.2022,ADULT SOCIAL CARE,THAMES HOMECARE SERVICE LTD,321.43,SEN LTS 65+,HOMECARE - SPOT,2103537108,1000079295
05.08.2022,ADULT SOCIAL CARE,PAULWAYS PET RESORT,420,SUB LTS 18-64,OTHER PAYMENTS FOR CLIENTS,2103537158,1068767
05.08.2022,ADULT SOCIAL CARE,PAULWAYS PET RESORT,932,SUB LTS 18-64,OTHER PAYMENTS FOR CLIENTS,2103537160,1068767
05.08.2022,ASSET MANAGEMENT,SANDERSONS BUILDING SERVICES LTD,"11,249.10",DISREPAIR,BUILDING R&M,2103536990,3000002065
05.08.2022,ASSET MANAGEMENT,SOUTH EAST BUILDING CONTRACTORS LTD,"1,965.00",MAJOR REPAIRS,BUILDING R&M,2103536988,3000001168
05.08.2022,ASSET MANAGEMENT HGF,KENT COUNTY COUNCIL - LASER,"49,925.98",160 TOOLEY ST.,ELECTRICITY,5902535318,1000012926
05.08.2022,CENTRAL FUNCTIONS,BCS (ELECTRICAL & BUILDING SERVICES LTD),"1,570.45",GARAGE REPAIRS,BUILDING R&M,5902536464,1000062321
05.08.2022,CHIEF EXECUTIVE'S OFFICE,RENAISI LTD,"37,493.44",CHIEF EXECUTIVE'S OFFICE,EXTERNAL AGENCIES AND BODIES,5902536730,1000022051
05.08.2022,CHILDREN AND FAMILIES,WHITE LIGHT DESIGN ASSOCIATES LIMITED,395,ADOPT LONDON SOUTH,MARKETING & PUBLICITY SERVICES,5902536801,1000088644
05.08.2022,CHILDREN AND FAMILIES,ALICE MALLORIE THERAPY SERVICE,405,ADOPTION SUPP FUND,EXTERNAL AGENCIES AND BODIES,5902536117,1000085491
05.08.2022,CHILDREN AND FAMILIES,ALICE MALLORIE THERAPY SERVICE,500,ADOPTION SUPP FUND,EXTERNAL AGENCIES AND BODIES,5902536115,1000085491
05.08.2022,CHILDREN AND FAMILIES,ALICE MALLORIE THERAPY SERVICE,650,ADOPTION SUPP FUND,EXTERNAL AGENCIES AND BODIES,5902536114,1000085491
05.08.2022,CHILDREN AND FAMILIES,EAST SUSSEX COUNTY COUNCIL,"47,300.00",ALS INTER AGENCY,EXTERNAL AGENCIES AND BODIES,5902536810,1000015148
05.08.2022,CHILDREN AND FAMILIES,RENEE INGRAM,"1,500.00",DIRECTOR OF C&F,EXTERNAL AGENCIES AND BODIES,5902536241,1000088653
05.08.2022,CHILDREN AND FAMILIES,LITTLE FISH THEATRE,"1,096.00",EDUC INCLUSION TEAM,TRAINING,5902536740,1000002016
05.08.2022,CHILDREN AND FAMILIES,CORAL COMMUNITY ASSESSMENTS LTD,"4,800.00",FAMILY ASSESSMENTS,RESIDENTIAL CARE,2103537010,1000056464
05.08.2022,CHILDREN AND FAMILIES,REVIVE THERAPY LTD,"1,600.00",NEW ASF,EXTERNAL AGENCIES AND BODIES,5902536809,1000086960
05.08.2022,CHILDREN AND FAMILIES,JULIA HUGHES LTD,408,SFS MGMT & SUPPORT,LEGAL FEES & COURT COSTS,2103537176,1000057965
05.08.2022,CHILDREN AND FAMILIES,JOSHUA SWIRSKY,750,SFS MGMT & SUPPORT,LEGAL FEES & COURT COSTS,2103537175,1000017798
05.08.2022,CHILDREN AND FAMILIES,EMILY VERITY,500,SFS MGMT & SUPPORT,LEGAL FEES & COURT COSTS,2103537171,1000047317
05.08.2022,CHILDREN AND FAMILIES,OLIVER MILLINGTON,500,SFS MGMT & SUPPORT,LEGAL FEES & COURT COSTS,2103537189,1000051055
05.08.2022,CHILDREN AND FAMILIES,TABITHA BARRAN,"2,750.00",SFS MGMT & SUPPORT,LEGAL FEES & COURT COSTS,2103537207,1000053940
05.08.2022,CHILDREN AND FAMILIES,TABITHA BARRAN,"8,550.00",SFS MGMT & SUPPORT,LEGAL FEES & COURT COSTS,2103537209,1000053940
05.08.2022,CHILDREN AND FAMILIES,DANIELLE LEWIS,650,SFS MGMT & SUPPORT,LEGAL FEES & COURT COSTS,2103537166,1000055682
05.08.2022,CHILDREN AND FAMILIES,KATE LAMONT,500,SFS MGMT & SUPPORT,LEGAL FEES & COURT COSTS,2103537177,1000064216
05.08.2022,CHILDREN AND FAMILIES,EILIDH GARDNER,375,SFS MGMT & SUPPORT,LEGAL FEES & COURT COSTS,2103537168,1000065194
05.08.2022,CHILDREN AND FAMILIES,JOHN CHURCH,500,SFS MGMT & SUPPORT,LEGAL FEES & COURT COSTS,2103537174,1000068682
05.08.2022,CHILDREN AND FAMILIES,DR MARC LYALL,390,SFS MGMT & SUPPORT,LEGAL FEES & COURT COSTS,2103537178,1000068683
05.08.2022,CHILDREN AND FAMILIES,MARTINA VAN DER LEIJ,475,SFS MGMT & SUPPORT,LEGAL FEES & COURT COSTS,2103537186,1000068753
05.08.2022,CHILDREN AND FAMILIES,ANNA WALSH,650,SFS MGMT & SUPPORT,LEGAL FEES & COURT COSTS,2103537164,1000077143
05.08.2022,CHILDREN AND FAMILIES,JACOB RICHARDS,575,SFS MGMT & SUPPORT,LEGAL FEES & COURT COSTS,2103537173,1000080778
05.08.2022,CHILDREN AND FAMILIES,PHILIPPA PARRY-JONES,525,SFS MGMT & SUPPORT,LEGAL FEES & COURT COSTS,2103537191,1000081285
05.08.2022,CHILDREN AND FAMILIES,PHILIPPA PARRY-JONES,585,SFS MGMT & SUPPORT,LEGAL FEES & COURT COSTS,2103537194,1000081285
05.08.2022,CHILDREN AND FAMILIES,PHILIPPA PARRY-JONES,585,SFS MGMT & SUPPORT,LEGAL FEES & COURT COSTS,2103537195,1000081285
05.08.2022,CHILDREN AND FAMILIES,PHILIPPA PARRY-JONES,585,SFS MGMT & SUPPORT,LEGAL FEES & COURT COSTS,2103537196,1000081285
05.08.2022,CHILDREN AND FAMILIES,PHILIPPA PARRY-JONES,585,SFS MGMT & SUPPORT,LEGAL FEES & COURT COSTS,2103537197,1000081285
05.08.2022,CHILDREN AND FAMILIES,PHILIPPA PARRY-JONES,585,SFS MGMT & SUPPORT,LEGAL FEES & COURT COSTS,2103537198,1000081285
05.08.2022,CHILDREN AND FAMILIES,PHILIPPA PARRY-JONES,585,SFS MGMT & SUPPORT,LEGAL FEES & COURT COSTS,2103537199,1000081285
05.08.2022,CHILDREN AND FAMILIES,PHILIPPA PARRY-JONES,585,SFS MGMT & SUPPORT,LEGAL FEES & COURT COSTS,2103537200,1000081285
05.08.2022,CHILDREN AND FAMILIES,PHILIPPA PARRY-JONES,585,SFS MGMT & SUPPORT,LEGAL FEES & COURT COSTS,2103537202,1000081285
05.08.2022,CHILDREN AND FAMILIES,PHILIPPA PARRY-JONES,585,SFS MGMT & SUPPORT,LEGAL FEES & COURT COSTS,2103537203,1000081285
05.08.2022,CHILDREN AND FAMILIES,PHILIPPA PARRY-JONES,585,SFS MGMT & SUPPORT,LEGAL FEES & COURT COSTS,2103537204,1000081285
05.08.2022,CHILDREN AND FAMILIES,PHILIPPA PARRY-JONES,585,SFS MGMT & SUPPORT,LEGAL FEES & COURT COSTS,2103537205,1000081285
05.08.2022,CHILDREN AND FAMILIES,PHILIPPA PARRY-JONES,"1,450.00",SFS MGMT & SUPPORT,LEGAL FEES & COURT COSTS,2103537201,1000081285
05.08.2022,CHILDREN AND FAMILIES,PHILIPPA PARRY-JONES,"3,300.00",SFS MGMT & SUPPORT,LEGAL FEES & COURT COSTS,2103537193,1000081285
05.08.2022,CHILDREN AND FAMILIES,THEODORE BUNCE,600,SFS MGMT & SUPPORT,LEGAL FEES & COURT COSTS,2103537211,1000085585
05.08.2022,CHILDREN AND FAMILIES,MARC TREGIDGO,750,SFS MGMT & SUPPORT,LEGAL FEES & COURT COSTS,2103537183,1000087496
05.08.2022,CHILDREN AND FAMILIES,MARC TREGIDGO,950,SFS MGMT & SUPPORT,LEGAL FEES & COURT COSTS,2103537180,1000087496
05.08.2022,CHILDREN AND FAMILIES,MARC TREGIDGO,950,SFS MGMT & SUPPORT,LEGAL FEES & COURT COSTS,2103537182,1000087496
05.08.2022,CHILDREN AND FAMILIES,MARC TREGIDGO,"1,500.00",SFS MGMT & SUPPORT,LEGAL FEES & COURT COSTS,2103537184,1000087496
05.08.2022,CHILDREN AND FAMILIES,SAVANNAH BULLEN-MANSON,"2,430.00",SFS MGMT & SUPPORT,LEGAL FEES & COURT COSTS,2103537206,1000088671
05.08.2022,CHILDREN AND FAMILIES,ARC COMMUNITY TRUSTEES,650,SPECIAL GUARDIANSHIP,PAYMENTS TO CARERS,5902536711,1000046206
05.08.2022,CHILDREN'S,MITIE FM LTD,958.69,CAPITAL PS (EDUCATION),CONSTRUCTION FEES - INTERNAL,2103536991,3000000166
05.08.2022,COMMUNITIES,K3 PROPERTY MANAGEMENT LTD,"7,812.00",NO RECOURSE TO PUBLIC FUNDS,ACCOMMODATION CHARGES,5902536753,1000068219
05.08.2022,COMMUNITIES,STENFORD PROPERTY LTD,"4,700.00",NO RECOURSE TO PUBLIC FUNDS,ACCOMMODATION CHARGES,5902536729,1000074759
05.08.2022,COMMUNITIES,NORBURY PROPERTY SERVICES (LONDON) LTD,"1,658.00",NO RECOURSE TO PUBLIC FUNDS,ACCOMMODATION CHARGES,5902536539,1000075566
05.08.2022,COMMUNITIES,GOLDSTONE ESTATES LTD,"4,590.00",NO RECOURSE TO PUBLIC FUNDS,ACCOMMODATION CHARGES,5902536537,1000076548
05.08.2022,COMMUNITIES,THAMES HOMECARE SERVICE LTD,431.78,NO RECOURSE TO PUBLIC FUNDS,HOMECARE - C&V,2103537053,1000079295
05.08.2022,COMMUNITIES,HOMELY HOUSING LETS LTD,530.1,NO RECOURSE TO PUBLIC FUNDS,OTHER PAYMENTS FOR CLIENTS,5902536534,1000050013
05.08.2022,COMMUNITIES HRA,FAIR COMMUNITY HSG SERVICES LTD,"4,067.07",FAIR CHS TMO,M&M ALLOWANCE CO-OPS,5902536735,1000039650
05.08.2022,COMMUNITIES HRA,VIKING DIRECT LIMITED,"1,862.36",RESIDENTS PARTICIPATION FUND,GRANTS,5902535851,1000001715
05.08.2022,CUSTOMER EXPERIENCE HGF,KENT COUNTY COUNCIL - LASER,632.65,CORONER'S,ELECTRICITY,5902536792,1000012926
05.08.2022,CUSTOMER EXPERIENCE HGF,TUNSTALL HEALTHCARE (UK) LTD,"1,750.00",LAMBETH RESPONSE,EQUIPMENT PURCHASE & REPAIR,5902536802,1012297
05.08.2022,CUSTOMER EXPERIENCE HGF,CORDELIA TURNER,"1,819.72",REGISTRARS,OFFICE EXPENSES,5902536790,1000079784
05.08.2022,EDUCATION,LEARNING UNLIMITED,750,ALC COMMUNITY LEARNING,GRANTS,5902536797,1000068095
05.08.2022,EDUCATION,DAVID LAWSON,700,CENTRAL COSTS - SEN,LEGAL FEES & COURT COSTS,2103537167,1000074102
05.08.2022,EDUCATION,EVOLUTION INTERNET MARKETING LLP,332.3,L&A SALARIES,SOFTWARE,5902536682,1000062062
05.08.2022,EDUCATION,ACCESS MOBILITY TRANSPORT LTD,"2,313.00",SCH TRANS � TRAVEL,CAB FARES,5902536718,1000074637
05.08.2022,EDUCATION,ACCESS MOBILITY TRANSPORT LTD,"9,123.00",SCH TRANS � TRAVEL,CAB FARES,5902536718,1000074637
05.08.2022,ENVIRONMENT DIRECTORATE,FIVEWAYS MUNICIPAL VEHICLE HIRE LTD,764.85,COMMERCIAL VEH CTRL A/C,HIRED VEHICLES,5902536569,1000023985
05.08.2022,ENVIRONMENT DIRECTORATE,FIVEWAYS MUNICIPAL VEHICLE HIRE LTD,"1,813.72",COMMERCIAL VEH CTRL A/C,HIRED VEHICLES,5902536564,1000023985
05.08.2022,ENVIRONMENT DIRECTORATE,FIVEWAYS MUNICIPAL VEHICLE HIRE LTD,"2,174.84",COMMERCIAL VEH CTRL A/C,HIRED VEHICLES,5902536559,1000023985
05.08.2022,ENVIRONMENT DIRECTORATE,PACE ACCIDENT REPAIRS CENTRE LTD,380,COMMERCIAL VEH CTRL A/C,HIRED VEHICLES,5902536726,1000069899
05.08.2022,ENVIRONMENT DIRECTORATE,UNIVERSAL TYRE & AUTOCENTRES,301.5,COMMERCIAL VEH CTRL A/C,OTHER VEHICLE RUNNING COSTS,5902536562,1000072475
05.08.2022,ENVIRONMENT DIRECTORATE,UNIVERSAL TYRE & AUTOCENTRES,327.88,COMMERCIAL VEH CTRL A/C,OTHER VEHICLE RUNNING COSTS,5902536592,1000072475
05.08.2022,ENVIRONMENT DIRECTORATE,UNIVERSAL TYRE & AUTOCENTRES,415.07,COMMERCIAL VEH CTRL A/C,OTHER VEHICLE RUNNING COSTS,5902536575,1000072475
05.08.2022,ENVIRONMENT DIRECTORATE,SHELL UK OIL PRODUCTS LTD,273.46,COMMERCIAL VEH CTRL A/C,VEHICLE FUEL,5902536622,1000081254
05.08.2022,ENVIRONMENT DIRECTORATE,SHELL UK OIL PRODUCTS LTD,278.54,COMMERCIAL VEH CTRL A/C,VEHICLE FUEL,5902536615,1000081254
05.08.2022,ENVIRONMENT DIRECTORATE,SHELL UK OIL PRODUCTS LTD,280.07,COMMERCIAL VEH CTRL A/C,VEHICLE FUEL,5902536625,1000081254
05.08.2022,ENVIRONMENT DIRECTORATE,SHELL UK OIL PRODUCTS LTD,481.75,COMMERCIAL VEH CTRL A/C,VEHICLE FUEL,5902536599,1000081254
05.08.2022,ENVIRONMENT DIRECTORATE,SHELL UK OIL PRODUCTS LTD,931.84,COMMERCIAL VEH CTRL A/C,VEHICLE FUEL,5902536604,1000081254
05.08.2022,ENVIRONMENT DIRECTORATE,SHELL UK OIL PRODUCTS LTD,"5,413.14",COMMERCIAL VEH CTRL A/C,VEHICLE FUEL,5902536603,1000081254
05.08.2022,ENVIRONMENT DIRECTORATE,M H COACHWORKS & SONS LTD,331.53,COMMERCIAL VEH CTRL A/C,VEHICLE REPAIRS & MAINTENANCE,5902536549,1000033495
05.08.2022,ENVIRONMENT DIRECTORATE,M H COACHWORKS & SONS LTD,347.5,COMMERCIAL VEH CTRL A/C,VEHICLE REPAIRS & MAINTENANCE,5902536553,1000033495
05.08.2022,ENVIRONMENT DIRECTORATE,RIGHTON & BLACKBURNS LTD,"11,963.00",ENGINEERING CRAFTS,MATERIALS,5902536813,1000041264
05.08.2022,ENVIRONMENT DIRECTORATE,PURPOSE POWDER COATINGS LTD,749.68,GRANGE DOORS,GROUNDS MAINTENANCE,5902536833,1000059450
05.08.2022,ENVIRONMENT DIRECTORATE,F H BRUNDLE,"1,850.00",GRANGE DOORS,MATERIALS,5902536821,1082714
05.08.2022,ENVIRONMENT DIRECTORATE,CHARLES HOLLAND,"1,000.00",LICENSING,LEGAL FEES & COURT COSTS,2103537165,1000082198
05.08.2022,ENVIRONMENT DIRECTORATE,TRAVIS PERKINS TRADING COMPANY LTD,647.18,PARKS TECH UNIT (PREMISES),BUILDING R&M,5902536696,1514319
05.08.2022,ENVIRONMENT DIRECTORATE,CITY ELECTRICAL FACTORS LTD,278.78,PUBLIC LIGHTING,MATERIALS,5902536814,1003485
05.08.2022,ENVIRONMENT DIRECTORATE,EDWARDES BROS (DULWICH) LTD,325,PUBLIC LIGHTING,MATERIALS,5902536816,1004945
05.08.2022,ENVIRONMENT DIRECTORATE,EDWARDES BROS (DULWICH) LTD,"1,015.00",PUBLIC LIGHTING,MATERIALS,5902536817,1004945
05.08.2022,ENVIRONMENT DIRECTORATE,EDWARDES BROS (DULWICH) LTD,"2,225.00",PUBLIC LIGHTING,MATERIALS,5902536820,1004945
05.08.2022,ENVIRONMENT DIRECTORATE,ALL PRINT SUPPLIES LTD,324.5,SIGN SHOP,MATERIALS,5902536823,1927973
05.08.2022,ENVIRONMENT DIRECTORATE,ALL PRINT SUPPLIES LTD,500.5,SIGN SHOP,MATERIALS,5902536823,1927973
05.08.2022,F & C S EXCLUDING CORPORATE BUDGETS,AUDITEL RENTAL & SERVICE LTD,"3,395.00",CONSTITUTIONAL TEAM,OP LEASE/HIRE CHARGES:PLANT/EQUIP/FURNIT,5902536779,1000026622
05.08.2022,F & C S EXCLUDING CORPORATE BUDGETS,EMS EVENTS LTD,"3,985.08",CONSTITUTIONAL TEAM,OP LEASE/HIRE CHARGES:PLANT/EQUIP/FURNIT,5902536685,1000057494
05.08.2022,F & C S EXCLUDING CORPORATE BUDGETS,CONNEXIONS CUISINE LTD T/A MASONS CATERING,901.9,CONSTITUTIONAL TEAM,REFRESHMENTS FOR MEETINGS,5902536774,11317153
05.08.2022,HOUSING,SILK & MACKMAN SERVICES LTD,"62,678.71",ENG CONTRACTS (NORTH),I-WORLD CONTRACTORS HOLDING ACCOUNT,5902536806,1000035282
05.08.2022,HOUSING HRA,ENERGY ASSETS,270.6,CAPITAL PS (HRA),CONSTRUCTION,5902536796,1000082461
05.08.2022,HOUSING HRA,M10 FIRE CONSULTANCY LTD,"4,870.00",CAPITAL PS (HRA),CONSTRUCTION,5902536798,1000086944
05.08.2022,HOUSING HRA,CALFORD SEADEN LLP,"1,087.80",CAPITAL PS (HRA),CONSTRUCTION FEES  - EXTERNAL,5902535886,1061592
05.08.2022,HOUSING HRA,CALFORD SEADEN LLP,"4,056.06",CAPITAL PS (HRA),CONSTRUCTION FEES  - EXTERNAL,5902536130,1061592
05.08.2022,HOUSING HRA,OPEN COMMUNITIES LTD,340,CAPITAL PS (HRA),CONSTRUCTION FEES  - EXTERNAL,5902536523,1000065800
05.08.2022,HOUSING HRA,OPEN COMMUNITIES LTD,765,CAPITAL PS (HRA),CONSTRUCTION FEES  - EXTERNAL,5902536526,1000065800
05.08.2022,HOUSING HRA,OPEN COMMUNITIES LTD,807.5,CAPITAL PS (HRA),CONSTRUCTION FEES  - EXTERNAL,5902536530,1000065800
05.08.2022,HOUSING HRA,OPEN COMMUNITIES LTD,"1,020.00",CAPITAL PS (HRA),CONSTRUCTION FEES  - EXTERNAL,5902536523,1000065800
05.08.2022,HOUSING HRA,OPEN COMMUNITIES LTD,"1,020.00",CAPITAL PS (HRA),CONSTRUCTION FEES  - EXTERNAL,5902536535,1000065800
05.08.2022,HOUSING HRA,MARTIN ARNOLD LTD,"12,784.63",CAPITAL PS (HRA),CONSTRUCTION FEES  - EXTERNAL,5902535492,1000076993
05.08.2022,HOUSING HRA,SILVER DCC LTD,507.58,CAPITAL PS (HRA),CONSTRUCTION FEES  - EXTERNAL,5902536389,1000087546
05.08.2022,HOUSING HRA,SILVER DCC LTD,542.69,CAPITAL PS (HRA),CONSTRUCTION FEES  - EXTERNAL,5902536387,1000087546
05.08.2022,HOUSING HRA,AIREY MILLER LIMITED,"3,575.00",CAPITAL PS (HRA),CONSTRUCTION FEES - EMPLOYERS AGENT,5902536487,1000085476
05.08.2022,HOUSING HRA,BUILDING ASSOCIATES LTD,"59,083.78",CAPITAL PS (HRA),CONSTRUCTION MAIN CONTRACT,2103536992,3000002218
05.08.2022,HOUSING HRA,EQUANS REGENERATION LTD,"97,211.82",CAPITAL PS (HRA),CONSTRUCTION MAIN CONTRACT -CERTIFICATED,2103536994,3000002035
05.08.2022,LEISURE,CONWAY AECOM LTD,"91,267.42",CAPITAL PS (LEISURE),CONSTR'N SUB CONTRACT - NON CERTIFICATED,5902536518,1000071205
05.08.2022,LEISURE,GLASDON UK LIMITED,506.24,CAPITAL PS (LEISURE),CONSTRUCTION,5902535706,1024073
05.08.2022,LEISURE,STREET TREE LTD,"6,797.30",CAPITAL PS (LEISURE),CONSTRUCTION FEES,5902536540,1000055901
05.08.2022,LEISURE,STREET TREE LTD,"15,637.22",CAPITAL PS (LEISURE),CONSTRUCTION FEES,5902536542,1000055901
05.08.2022,LEISURE,STEER DAVIES & GLEAVE LIMITED,"4,575.00",CAPITAL PS (LEISURE),CONSTRUCTION FEES  - EXTERNAL,5902535806,1823348
05.08.2022,LEISURE,SPOKEMEAD MAINTENANCE LTD,"1,657.93",CAPITAL PS (LEISURE),CONSTRUCTION FEES  - EXTERNAL,2103536989,4002791
05.08.2022,LEISURE,SPOKEMEAD MAINTENANCE LTD,"6,179.38",CAPITAL PS (LEISURE),CONSTRUCTION FEES  - EXTERNAL,2103536989,4002791
05.08.2022,LEISURE,FITZPATRICK WOOLMER DESIGN & PUBLISHING LTD,"1,458.50",CAPITAL PS (LEISURE),CONSTRUCTION FEES  - EXTERNAL,5902536627,1000044126
05.08.2022,LEISURE,TRACSIS TRAFFIC DATA LTD,"3,300.00",CAPITAL PS (LEISURE),CONSTRUCTION FEES  - EXTERNAL,5902535357,1000079382
05.08.2022,LEISURE,TRACSIS TRAFFIC DATA LTD,"3,520.00",CAPITAL PS (LEISURE),CONSTRUCTION FEES  - EXTERNAL,5902535474,1000079382
05.08.2022,LEISURE,WSP UK LTD,"7,700.00",CAPITAL PS (LEISURE),"PLANT, MACHINERY & EQUIPMENT ACQUISITION",5902535578,1000054214
05.08.2022,LEISURE DIRECTORATE,KENT COUNTY COUNCIL - LASER,"8,095.88",CANADA WATER LIBRARY,ELECTRICITY,5902536722,1000012926
05.08.2022,LEISURE DIRECTORATE,KENT COUNTY COUNCIL - LASER,"2,211.31",DULWICH AREA TEAM,ELECTRICITY,5902536829,1000012926
05.08.2022,LEISURE DIRECTORATE,KENT COUNTY COUNCIL - LASER,"2,290.67",DULWICH AREA TEAM,ELECTRICITY,5902536830,1000012926
05.08.2022,LEISURE DIRECTORATE,LONDON WILDLIFE TRUST,"7,620.00",ENVIRONMENT & LEISURE GRANTS,OTHER CONTRACTORS,5902535430,1832374
05.08.2022,LEISURE DIRECTORATE,THE CHELSEA FOOD AND WINE COMPANY LTD,326,LIBRARIES DEVELOPMENT,BOOKS & PUBLICATIONS,5902536744,1000088548
05.08.2022,LEISURE DIRECTORATE,OPEN CITY ARCHITECTURE,"4,500.00",LIBRARIES DEVELOPMENT,FREELANCE SPECIALISTS,5902536776,1831831
05.08.2022,LEISURE DIRECTORATE,CONSTELLIA PUBLIC LIMITED,"8,625.64",TREES PRINCIPAL ROADS,TREE MAINTENANCE,5902536784,1000088137
05.08.2022,LEISURE DIRECTORATE,CONSTELLIA PUBLIC LIMITED,"12,375.38",TREES PRINCIPAL ROADS,TREE MAINTENANCE,5902536786,1000088137
05.08.2022,LEISURE DIRECTORATE,CONSTELLIA PUBLIC LIMITED,"34,266.00",TREES PRINCIPAL ROADS,TREE MAINTENANCE,5902536782,1000088137
05.08.2022,PLANNING AND TRANSPORT,FRAME PROJECTS LTD,"2,500.00",OKR MASTER PLANNING,PROFESSIONAL FEES,5902536528,1000085978
05.08.2022,REGENERATION,SOUTHERN ELECTRIC,283.7,CAPITAL PS (REGEN),CONSTRUCTION FEES  - EXTERNAL,5902536374,1000050721
05.08.2022,REGENERATION,LAMBERT SMITH HAMPTON GROUP LTD,300,CPHA  MANAGED PROPERTIES,PROFESSIONAL FEES,5902536811,1000060045
05.08.2022,RESIDENT SERVICES,CASTLE WATER LTD,445.94,BOROUGH & BANKSIDE,WATER,5902536228,1000078867
05.08.2022,RESIDENT SERVICES,STUDIO ONB LTD,"2,050.00",GREAT ESTATES,FREELANCE SPECIALISTS,5902536824,1000087190
05.08.2022,RESIDENT SERVICES,STUDIO ONB LTD,"2,400.00",GREAT ESTATES,FREELANCE SPECIALISTS,5902536825,1000087190
05.08.2022,RESIDENT SERVICES,CASTLE WATER LTD,290.92,NORTHCOTT HOUSE,WATER,5902536381,1000078867
05.08.2022,RESIDENT SERVICES,HARROW GREEN LTD,884.78,OPERATIONS/OFFICES ACCOMMODATION,REMOVAL EXPENSES,5902536595,1000076673
05.08.2022,RESIDENT SERVICES,HARROW GREEN LTD,946.06,OPERATIONS/OFFICES ACCOMMODATION,REMOVAL EXPENSES,5902536573,1000076673
05.08.2022,RESIDENT SERVICES,HARROW GREEN LTD,"1,188.72",OPERATIONS/OFFICES ACCOMMODATION,REMOVAL EXPENSES,5902536583,1000076673
05.08.2022,RESIDENT SERVICES,HARROW GREEN LTD,"1,311.81",OPERATIONS/OFFICES ACCOMMODATION,REMOVAL EXPENSES,5902536596,1000076673
05.08.2022,RESIDENT SERVICES,HARROW GREEN LTD,"1,389.55",OPERATIONS/OFFICES ACCOMMODATION,REMOVAL EXPENSES,5902536587,1000076673
05.08.2022,RESIDENT SERVICES,HARROW GREEN LTD,"1,674.41",OPERATIONS/OFFICES ACCOMMODATION,REMOVAL EXPENSES,5902536596,1000076673
05.08.2022,RESIDENT SERVICES,HARROW GREEN LTD,"1,767.35",OPERATIONS/OFFICES ACCOMMODATION,REMOVAL EXPENSES,5902536594,1000076673
05.08.2022,RESIDENT SERVICES,HARROW GREEN LTD,"2,191.83",OPERATIONS/OFFICES ACCOMMODATION,REMOVAL EXPENSES,5902536578,1000076673
05.08.2022,RESIDENT SERVICES,HARROW GREEN LTD,"2,347.20",OPERATIONS/OFFICES ACCOMMODATION,REMOVAL EXPENSES,5902536778,1000076673
05.08.2022,RESIDENT SERVICES,HARROW GREEN LTD,"2,369.12",OPERATIONS/OFFICES ACCOMMODATION,REMOVAL EXPENSES,5902536781,1000076673
05.08.2022,RESIDENT SERVICES,HARROW GREEN LTD,"13,024.80",OPERATIONS/OFFICES ACCOMMODATION,REMOVAL EXPENSES,5902536591,1000076673
05.08.2022,RESIDENT SERVICES HGF,FRESHVIEW ESTATES LTD,"2,381.94",HOMELESS PROJECTS,GRANTS,2103536987,1000081189
05.08.2022,RESIDENT SERVICES HGF,TERRY GALLIVAN,"1,110.00",HOMELESS PROJECTS,LEGAL FEES & COURT COSTS,2103537210,1000044794
05.08.2022,RESIDENT SERVICES HGF,CROWN HOUSING LTD,"5,363.00",NIGHTLY TA (NSC),EXTERNAL AGENCIES AND BODIES,5902536545,1000075070
05.08.2022,RESIDENT SERVICES HGF,EASYMOVE EA LIMITED,"31,595.11",PSL PLACEMENTS,EXTERNAL AGENCIES AND BODIES,5902536519,1000066859
05.08.2022,RESIDENT SERVICES HGF,HOMES 2 LET UK LTD,"41,087.38",PSL PLACEMENTS,EXTERNAL AGENCIES AND BODIES,5902536527,1000079868
05.08.2022,RESIDENT SERVICES HGF,CIRCA HOMES LTD,"2,780.93",PSL PLACEMENTS,EXTERNAL AGENCIES AND BODIES,5902536761,1000083021
05.08.2022,RESIDENT SERVICES HGF,RELIANCE RESIDENTIAL,"16,156.27",PSL PLACEMENTS,EXTERNAL AGENCIES AND BODIES,5902536775,1000084814
05.08.2022,SBS OPERATIONS,HOWDENS JOINERY CO,288.68,BOROUGH & BANKSIDE DD,MATERIALS,5902536724,1000027491
05.08.2022,SBS OPERATIONS,HOWDENS JOINERY CO,625.08,BOROUGH & BANKSIDE DD,MATERIALS,5902536719,1000027491
05.08.2022,SBS OPERATIONS,TRAVIS PERKINS TRADING COMPANY LTD,333.77,ELECTRICIANS - DAY TO DAY,MATERIALS,5902536691,1514319
05.08.2022,SBS OPERATIONS,TRAVIS PERKINS TRADING COMPANY LTD,303.66,ELECTRICIANS - SUPPORTED HOUSING,MATERIALS,5902536691,1514319
05.08.2022,SBS OPERATIONS,TRAVIS PERKINS TRADING COMPANY LTD,253.63,ROTHERHITHE DD,MATERIALS,5902536696,1514319
05.08.2022,SBS OPERATIONS,TRAVIS PERKINS TRADING COMPANY LTD,285.8,ROTHERHITHE DD,MATERIALS,5902536691,1514319
05.08.2022,SBS OPERATIONS,TRAVIS PERKINS TRADING COMPANY LTD,286.88,SBS AIDS AND ADAPTATIONS,MATERIALS,5902536669,1514319
05.08.2022,SBS OPERATIONS,TRAVIS PERKINS TRADING COMPANY LTD,"1,705.88",SBS AIDS AND ADAPTATIONS,MATERIALS,5902536671,1514319
05.08.2022,SBS OPERATIONS,AKW MEDI-CARE LTD,561.05,SBS AIDS AND ADAPTATIONS,MATERIALS,5902536606,1000047103
05.08.2022,SBS OPERATIONS,TRAVIS PERKINS TRADING COMPANY LTD,258.3,SBS COMMUNAL REPAIRS,MATERIALS,5902536691,1514319
05.08.2022,SBS OPERATIONS,TRAVIS PERKINS TRADING COMPANY LTD,685.5,SBS COMMUNAL REPAIRS,MATERIALS,5902536687,1514319
05.08.2022,SBS OPERATIONS,PEARSON GLAZING LIMITED,410,SBS COMMUNAL REPAIRS,MATERIALS,5902536643,1891977
05.08.2022,SBS OPERATIONS,TRAVIS PERKINS TRADING COMPANY LTD,305.88,SBS LEAKS FROM ABOVE,MATERIALS,5902536696,1514319
05.08.2022,SBS OPERATIONS,TRAVIS PERKINS TRADING COMPANY LTD,"1,051.04",SBS LEAKS FROM ABOVE,MATERIALS,5902536696,1514319
05.08.2022,SBS OPERATIONS,TRAVIS PERKINS TRADING COMPANY LTD,"1,125.00",SBS LEAKS FROM ABOVE,MATERIALS,5902536691,1514319
05.08.2022,SBS OPERATIONS,TRAVIS PERKINS TRADING COMPANY LTD,363.66,WALWORTH DD,MATERIALS,5902536691,1514319
05.08.2022,SBS SUPPORT,TRAVIS PERKINS TRADING COMPANY LTD,756,R & M OVERHEADS,EQUIPMENT PURCHASE & REPAIR,5902536696,1514319
05.08.2022,SBS SUPPORT,TRAVIS PERKINS TRADING COMPANY LTD,"5,599.54",R & M OVERHEADS,EQUIPMENT PURCHASE & REPAIR,5902536696,1514319
05.08.2022,SBS SUPPORT,TRAVIS PERKINS TRADING COMPANY LTD,250.35,R & M OVERHEADS,MATERIALS,5902536696,1514319
05.08.2022,SBS SUPPORT,TRAVIS PERKINS TRADING COMPANY LTD,457.08,R & M OVERHEADS,MATERIALS,5902536696,1514319
05.08.2022,SBS SUPPORT,T M SERVICES & SPARES LTD,376,STORES / LOGISTICS,EQUIPMENT PURCHASE & REPAIR,5902536656,1000070497
05.08.2022,SOUTHWARK BUILDING SERVICES,"BROWNING, JONES & MORRIS LTD",779.4,STORES/LOGISTICS,CREDITORS -GR/IR CLEARING ACCOUNT,5902536602,1027429
05.08.2022,SOUTHWARK BUILDING SERVICES,"BROWNING, JONES & MORRIS LTD",806.4,STORES/LOGISTICS,CREDITORS -GR/IR CLEARING ACCOUNT,5902536629,1027429
05.08.2022,SOUTHWARK BUILDING SERVICES,"BROWNING, JONES & MORRIS LTD",890,STORES/LOGISTICS,CREDITORS -GR/IR CLEARING ACCOUNT,5902536602,1027429
05.08.2022,SOUTHWARK BUILDING SERVICES,"BROWNING, JONES & MORRIS LTD",900,STORES/LOGISTICS,CREDITORS -GR/IR CLEARING ACCOUNT,5902536600,1027429
05.08.2022,SOUTHWARK BUILDING SERVICES,"BROWNING, JONES & MORRIS LTD","1,248.00",STORES/LOGISTICS,CREDITORS -GR/IR CLEARING ACCOUNT,5902536602,1027429
05.08.2022,SOUTHWARK BUILDING SERVICES,"BROWNING, JONES & MORRIS LTD","2,733.72",STORES/LOGISTICS,CREDITORS -GR/IR CLEARING ACCOUNT,5902536605,1027429
05.08.2022,SOUTHWARK BUILDING SERVICES,"BROWNING, JONES & MORRIS LTD","3,591.60",STORES/LOGISTICS,CREDITORS -GR/IR CLEARING ACCOUNT,5902536602,1027429
05.08.2022,SOUTHWARK BUILDING SERVICES,"BROWNING, JONES & MORRIS LTD","5,802.72",STORES/LOGISTICS,CREDITORS -GR/IR CLEARING ACCOUNT,5902536605,1027429
05.08.2022,SOUTHWARK BUILDING SERVICES,TRAVIS PERKINS TRADING COMPANY LTD,525.48,STORES/LOGISTICS,CREDITORS -GR/IR CLEARING ACCOUNT,5902536696,1514319
05.08.2022,SOUTHWARK BUILDING SERVICES,TRAVIS PERKINS TRADING COMPANY LTD,958,STORES/LOGISTICS,CREDITORS -GR/IR CLEARING ACCOUNT,5902536691,1514319
05.08.2022,SOUTHWARK BUILDING SERVICES,CALLOW LOCKSMITHS LTD,733.26,STORES/LOGISTICS,CREDITORS -GR/IR CLEARING ACCOUNT,5902536832,11179552
05.08.2022,SOUTHWARK BUILDING SERVICES,KEMICO LIMITED,"2,167.20",STORES/LOGISTICS,CREDITORS -GR/IR CLEARING ACCOUNT,5902536655,1000030226
05.08.2022,SOUTHWARK BUILDING SERVICES,KEMICO LIMITED,"4,797.00",STORES/LOGISTICS,CREDITORS -GR/IR CLEARING ACCOUNT,5902536655,1000030226
05.08.2022,SOUTHWARK BUILDING SERVICES,KEMICO LIMITED,"5,292.00",STORES/LOGISTICS,CREDITORS -GR/IR CLEARING ACCOUNT,5902536654,1000030226
05.08.2022,SOUTHWARK BUILDING SERVICES,ONSITE SUPPORT LTD,849,STORES/LOGISTICS,CREDITORS -GR/IR CLEARING ACCOUNT,5902536590,1000043198
05.08.2022,SOUTHWARK BUILDING SERVICES,ONSITE SUPPORT LTD,"1,100.00",STORES/LOGISTICS,CREDITORS -GR/IR CLEARING ACCOUNT,5902536586,1000043198
05.08.2022,SOUTHWARK BUILDING SERVICES,CORBYS & CO,720,STORES/LOGISTICS,CREDITORS -GR/IR CLEARING ACCOUNT,5902536623,1000055320
05.08.2022,SOUTHWARK BUILDING SERVICES,CORBYS & CO,"1,560.00",STORES/LOGISTICS,CREDITORS -GR/IR CLEARING ACCOUNT,5902536623,1000055320
06.08.2022,ADULT SOCIAL CARE,REALITY FAMILY SUPPORT SERVICES LTD,970.2,PHY LTS 18-64,OTHER PAYMENTS FOR CLIENTS,5902535596,1000087878
06.08.2022,ASSET MANAGEMENT,ASHFORDS LLP OFFICE ACCOUNT,"1,750.00",DISREPAIR,PAYMENTS FOR LEGAL SERVICES,5902535750,1000082695
06.08.2022,CENTRAL FUNCTIONS,4-5 GRAYS INN SQUARE LTD,600,HOME OWNERSHIP,LEGAL FEES & COURT COSTS,5902536298,1000046636
06.08.2022,CHIEF EXECUTIVE'S OFFICE,PECKHAM PLATFORM LTD,"4,000.00",BUSINESS SUPPORT,GRANTS,5902535880,1000075417
06.08.2022,CHILDREN AND FAMILIES,REALITY FAMILY SUPPORT SERVICES LTD,415.8,EDGE OF CARE DECIS�S,OTHER PAYMENTS FOR CLIENTS,5902535596,1000087878
06.08.2022,CHILDREN AND FAMILIES,REVIVE THERAPY LTD,700,NEW ASF,EXTERNAL AGENCIES AND BODIES,5902536021,1000086960
06.08.2022,CHILDREN AND FAMILIES,GM TREE TRAINING LTD,285,NEW ASF,EXTERNAL AGENCIES AND BODIES,5902536019,1000087797
06.08.2022,CHILDREN'S,FARRANS CONSTRUCTION,"391,769.10",CAPITAL PS (EDUCATION),CONSTRUCTION MAIN CONTRACT -CERTIFICATED,2103535134,3000002159
06.08.2022,EDUCATION,HEALTH EDUCATION PARTNERSHIP LTD,500,IMHARS,TRAINING,5902536332,1000063531
06.08.2022,ENV & LEIS,CROWN OIL LTD,"3,227.00",SANDGATE STREET,VEHICLE FUEL,5902535570,1000081749
06.08.2022,HOUSING HRA,NETWORK RAIL INFRASTRUCTURE LTD,"27,500.00",CAPITAL PS (HRA),CONSTRUCTION,5902535704,1000053596
06.08.2022,HOUSING HRA,POTTER RAPER LTD,"2,650.00",CAPITAL PS (HRA),CONSTRUCTION FEES  - EXTERNAL,5902536172,1009369
06.08.2022,HOUSING HRA,CALFORD SEADEN LLP,"20,798.01",CAPITAL PS (HRA),CONSTRUCTION FEES  - EXTERNAL,5902536132,1061592
06.08.2022,HOUSING HRA,ARCHIO LTD,"1,261.00",CAPITAL PS (HRA),CONSTRUCTION FEES  - EXTERNAL,5902536186,1000086130
06.08.2022,HOUSING HRA,POTTER RAPER LTD,"2,550.00",CAPITAL PS (HRA),CONSTRUCTION FEES - EMPLOYERS AGENT,5902536054,1009369
06.08.2022,HOUSING HRA,POTTER RAPER LTD,"10,077.80",CAPITAL PS (HRA),CONSTRUCTION FEES - EMPLOYERS AGENT,5902536259,1009369
06.08.2022,LEISURE,P D CONSTRUCTION LTD,"12,400.00",CAPITAL PS (LEISURE),CONSTRUCTION,2103533259,4001883
06.08.2022,LEISURE DIRECTORATE,TEAMSPORT INDOOR KARTING,525,DAMILOLA TAYLOR CENTRE,EQUIPMENT PURCHASE & REPAIR,5902536800,1000075438
06.08.2022,LEISURE DIRECTORATE,TEAMSPORT INDOOR KARTING,525,DAMILOLA TAYLOR CENTRE,EQUIPMENT PURCHASE & REPAIR,5902536803,1000075438
06.08.2022,LEISURE DIRECTORATE,WIFI SPARK LTD,743.4,DULWICH LIBRARY,EQUIPMENT PURCHASE & REPAIR,5902536193,1000069461
06.08.2022,LEISURE DIRECTORATE,THE STOCKROOM ARCHIVE MANAGEMENT LTD,"8,810.65",HERITAGE,OTHER CONTRACTORS,5902536171,1000079579
06.08.2022,LEISURE DIRECTORATE,P D CONSTRUCTION LTD,"1,050.00",SOUTHWARK AREA TEAM,OTHER R&M,5902535843,1000000390
06.08.2022,LEISURE DIRECTORATE,P D CONSTRUCTION LTD,"1,250.00",SOUTHWARK AREA TEAM,OTHER R&M,5902535845,1000000390
06.08.2022,NEW BUILD,BEACON PARTNERSHIP LLP,"6,500.00",DEVELOPMENT DELIVERY,PROFESSIONAL FEES,5902535975,1000082300
06.08.2022,NEW BUILD,RICS,663,DEVELOPMENT DELIVERY,TRAINING,5902535856,1000078821
06.08.2022,RESIDENT SERVICES,WILLIAM MARTIN PROPERTY CONSULTANTS,950,CAMBERWELL,PROFESSIONAL FEES,5902536799,1000062171
06.08.2022,RESIDENT SERVICES,EXTREME ENVIRONMENTAL SERVICES LTD,895,TA ESTATE VOIDS,PREMISES CLEANING,5902535986,1000023922
06.08.2022,RESIDENT SERVICES,EXTREME ENVIRONMENTAL SERVICES LTD,895,TA ESTATE VOIDS,PREMISES CLEANING,5902535987,1000023922
06.08.2022,RESIDENT SERVICES HGF,LONDON HOUSE AGENT LTD,"2,385.00",HOMELESS PROJECTS,GRANTS,5902536151,1000085301
06.08.2022,RESIDENT SERVICES HGF,DOCUMENT OPTIONS LIMITED,268.02,HOUSING OPTIONS,OFFICE EXPENSES,5902535728,1000051744
06.08.2022,SBS OPERATIONS,AKW MEDI-CARE LTD,291.85,SBS AIDS AND ADAPTATIONS,MATERIALS,5902536609,1000047103
06.08.2022,SBS OPERATIONS,LONDON TOOLS LIMITED,805.75,SBS IN-HOUR EMERGENCIES,MATERIALS,5902536670,1000003017
07.08.2022,ASSET MANAGEMENT,ARMINA LTD,"2,209.20",DISREPAIR,BUILDING R&M,2103534923,3000002121
07.08.2022,ASSET MANAGEMENT,AVONLINE NETWORK SERVICES LTD,"1,922.75",ENG CONTRACTS (NORTH),TV AERIALS R&M,5902536397,1000068672
07.08.2022,ASSET MANAGEMENT,CALFORD SEADEN LLP,"1,600.00",MAJOR REPAIRS,BUILDING R&M,5902536153,1061592
07.08.2022,CENTRAL FUNCTIONS,DSI BILLING SERVICES LTD,305.17,OPERATIONAL TEAM,POSTAGES,5902536366,1000058640
07.08.2022,CHILDREN AND FAMILIES,REDACTED PERSONAL DATA,"1,500.00",ADOPTION SUPP FUND,EXTERNAL AGENCIES AND BODIES,REDACTED,REDACTED
07.08.2022,CHILDREN AND FAMILIES,INTERCOUNTRY ADOPTION CENTRE,"19,500.00",ALS INTER AGENCY,CENTRAL GOVERNMENT,5902536026,1000035796
07.08.2022,CHILDREN AND FAMILIES,FAMILY FUTURES CIC,800,NEW ASF,EXTERNAL AGENCIES AND BODIES,5902536020,1000027893
07.08.2022,CHILDREN AND FAMILIES,CHROMA THERAPIES LTD,663,NEW ASF,EXTERNAL AGENCIES AND BODIES,5902535817,1000085537
07.08.2022,CHILDREN AND FAMILIES,REDACTED PERSONAL DATA,300,NEW ASF,EXTERNAL AGENCIES AND BODIES,REDACTED,REDACTED
07.08.2022,CHILDREN AND FAMILIES,REDACTED PERSONAL DATA,"1,050.00",NEW ASF,EXTERNAL AGENCIES AND BODIES,REDACTED,REDACTED
07.08.2022,COMMUNITIES HRA,FALCON POINT MANAGEMENT GROUP LTD,"1,300.00",RESIDENTS PARTICIPATION FUND,GRANTS,5902536333,11117573
07.08.2022,ENVIRONMENT DIRECTORATE,F M CONWAY LTD,"160,546.26",HIGHWAY MAINTENANCE OVERHEADS,HIGHWAYS TERM CONTRACT,2103535138,4001384
07.08.2022,F & C S EXCLUDING CORPORATE BUDGETS,DSI BILLING SERVICES LTD,"6,229.92",ADMINISTRATIVE SUPPORT,POSTAGES,5902536367,1000058640
07.08.2022,F & C S EXCLUDING CORPORATE BUDGETS,NEC SOFTWARE SOLUTIONS UK LTD,275.51,ADMINISTRATIVE SUPPORT,POSTAGES,5902536353,1000087043
07.08.2022,HOUSING HRA,BAILY  GARNER LLP,"1,219.25",CAPITAL PS (HRA),CONSTRUCTION FEES - EMPLOYERS AGENT,5902536098,1000663
07.08.2022,HOUSING HRA,NIBLOCK (BUILDERS) LTD,"175,242.59",CAPITAL PS (HRA),CONSTRUCTION MAIN CONTRACT -CERTIFICATED,2103536981,3000000235
07.08.2022,LEISURE DIRECTORATE,YOUTH FUTURES,"3,500.00",GRANTS COMMISSIONING,GRANTS,5902536550,1000068524
07.08.2022,NEW BUILD,BAILY  GARNER LLP,"2,250.00",DEVELOPMENT DELIVERY,CONSULTANTS SERVICES,5902536328,1000663
07.08.2022,NEW BUILD,BAILY  GARNER LLP,"2,750.00",DEVELOPMENT DELIVERY,CONSULTANTS SERVICES,5902536327,1000663
07.08.2022,REGENERATION,SHERGROUP LTD,"3,360.00",CAPITAL PS (REGEN),CONSTRUCTION SITE COSTS,5902535870,1000087977
07.08.2022,RESIDENT SERVICES,F M CONWAY LTD,"100,000.00",GREAT ESTATES,OTHER R&M,2103533448,4001384
08.08.2022,ADULT SOCIAL CARE,CARE MANAGEMENT GROUP,396,LD LTS 18-64,SUPPORTED LIVING,2103542581,1000040475
08.08.2022,ADULT SOCIAL CARE,CARE DIRECT UK LTD,486,LD LTS 18-64,SUPPORTED LIVING,2103542535,1000066322
08.08.2022,ADULT SOCIAL CARE,HARRADINES REMOVALS,360,MH LTS 18-64,OTHER PAYMENTS FOR CLIENTS,2103542577,1006511
08.08.2022,ADULT SOCIAL CARE,INSPIRE SUPPORT WORKERS LTD,"2,072.00",MH LTS 65+,SUPPORTED LIVING,2103542579,1000080725
08.08.2022,ADULT SOCIAL CARE,BRITISH GAS,964.23,MH PREMISES COSTS,ELECTRICITY,5902537092,1000054825
08.08.2022,ADULT SOCIAL CARE,CARE DIRECT UK LTD,381.44,PHY LTS 18-64,HOMECARE - SPOT,2103542540,1000066322
08.08.2022,ADULT SOCIAL CARE,CARE DIRECT UK LTD,646.2,PHY LTS 18-64,HOMECARE - SPOT,2103542529,1000066322
08.08.2022,ADULT SOCIAL CARE,CARE DIRECT UK LTD,251.3,PHY LTS 65+,HOMECARE - SPOT,2103542544,1000066322
08.08.2022,ADULT SOCIAL CARE,CARE DIRECT UK LTD,280,PHY LTS 65+,HOMECARE - SPOT,2103542545,1000066322
08.08.2022,ADULT SOCIAL CARE,CARE DIRECT UK LTD,314.13,PHY LTS 65+,HOMECARE - SPOT,2103542537,1000066322
08.08.2022,ADULT SOCIAL CARE,CARE DIRECT UK LTD,439.78,PHY LTS 65+,HOMECARE - SPOT,2103542538,1000066322
08.08.2022,ADULT SOCIAL CARE,CARE DIRECT UK LTD,484.65,PHY LTS 65+,HOMECARE - SPOT,2103542558,1000066322
08.08.2022,ADULT SOCIAL CARE,CARE DIRECT UK LTD,502.6,PHY LTS 65+,HOMECARE - SPOT,2103542527,1000066322
08.08.2022,ADULT SOCIAL CARE,CARE DIRECT UK LTD,511.58,PHY LTS 65+,HOMECARE - SPOT,2103542559,1000066322
08.08.2022,ADULT SOCIAL CARE,CARE DIRECT UK LTD,520.55,PHY LTS 65+,HOMECARE - SPOT,2103542546,1000066322
08.08.2022,ADULT SOCIAL CARE,CARE DIRECT UK LTD,559.13,PHY LTS 65+,HOMECARE - SPOT,2103542543,1000066322
08.08.2022,ADULT SOCIAL CARE,CARE DIRECT UK LTD,621.25,PHY LTS 65+,HOMECARE - SPOT,2103542539,1000066322
08.08.2022,ADULT SOCIAL CARE,CARE DIRECT UK LTD,"1,059.05",PHY LTS 65+,HOMECARE - SPOT,2103542548,1000066322
08.08.2022,ADULT SOCIAL CARE,INSPIRE SUPPORT WORKERS LTD,980.52,PHY LTS 65+,HOMECARE - SPOT,2103542575,1000080725
08.08.2022,ADULT SOCIAL CARE,SNOWBALL CARE UK LTD,912,PHY LTS 65+,HOMECARE - SPOT,2103542566,1000081483
08.08.2022,ADULT SOCIAL CARE,SNOWBALL CARE UK LTD,912,PHY LTS 65+,HOMECARE - SPOT,2103542567,1000081483
08.08.2022,ADULT SOCIAL CARE,SNOWBALL CARE UK LTD,912,PHY LTS 65+,HOMECARE - SPOT,2103542570,1000081483
08.08.2022,ADULT SOCIAL CARE,SNOWBALL CARE UK LTD,912,PHY LTS 65+,HOMECARE - SPOT,2103542572,1000081483
08.08.2022,ADULT SOCIAL CARE,SNOWBALL CARE UK LTD,"1,696.00",PHY LTS 65+,HOMECARE - SPOT,2103542565,1000081483
08.08.2022,ADULT SOCIAL CARE,SNOWBALL CARE UK LTD,"1,696.00",PHY LTS 65+,HOMECARE - SPOT,2103542568,1000081483
08.08.2022,ADULT SOCIAL CARE,SNOWBALL CARE UK LTD,"1,696.00",PHY LTS 65+,HOMECARE - SPOT,2103542569,1000081483
08.08.2022,ADULT SOCIAL CARE,SNOWBALL CARE UK LTD,"1,696.00",PHY LTS 65+,HOMECARE - SPOT,2103542571,1000081483
08.08.2022,ADULT SOCIAL CARE,CARE RESOLUTION LTD,820.93,PHY LTS 65+,HOMECARE - SPOT,2103542578,1000087826
08.08.2022,ADULT SOCIAL CARE,CARE RESOLUTION LTD,"2,224.88",PHY LTS 65+,HOMECARE - SPOT,2103542576,1000087826
08.08.2022,ADULT SOCIAL CARE,CARE DIRECT UK LTD,691.08,PHY STS 65+,HOMECARE - IC,2103542532,1000066322
08.08.2022,ASSET MANAGEMENT,ARMINA LTD,"1,076.41",DISREPAIR,BUILDING R&M,2103537213,3000002121
08.08.2022,ASSET MANAGEMENT,TRAVIS PERKINS TRADING COMPANY LTD,262.04,REPAIRS OPERATIONS,BUILDING R&M,5902536862,1514319
08.08.2022,ASSET MANAGEMENT,LONDON TOOLS LIMITED,"2,844.00",REPAIRS OPERATIONS,TELEPHONES (MOBILES),5902536941,1000003017
08.08.2022,CENTRAL FUNCTIONS,BRESLIN CONSTRUCTION LTD,285,COMMERCIAL PROPERTIES,BUILDING R&M,5902536919,1000078031
08.08.2022,CENTRAL FUNCTIONS,BRESLIN CONSTRUCTION LTD,"2,350.00",COMMERCIAL PROPERTIES,BUILDING R&M,2103542584,3000001948
08.08.2022,CENTRAL FUNCTIONS,WILLIAM MARTIN PROPERTY CONSULTANTS,750,COMMERCIAL PROPERTIES,PROFESSIONAL FEES,5902536914,1000062171
08.08.2022,CENTRAL FUNCTIONS,SAFER BUSINESS NETWORK,810,LEDBURY ESTATE,SECURITY SERVICES,5902536926,1000076641
08.08.2022,CHILDREN AND FAMILIES,C E RICHARDSON CONSULTANTS LTD,572,ADOPTION SUPP FUND,EXTERNAL AGENCIES AND BODIES,5902536123,1000085808
08.08.2022,CHILDREN AND FAMILIES,REDACTED PERSONAL DATA,350,ADOPTION SUPP FUND,EXTERNAL AGENCIES AND BODIES,REDACTED,REDACTED
08.08.2022,CHILDREN AND FAMILIES,CITY MISSION CHILD CONTACT CENTRE,380,CONTACT SERVICE,EXTERNAL AGENCIES AND BODIES,5902536065,1000088578
08.08.2022,CHILDREN AND FAMILIES,CONTACT PROFESSIONALS,258,CONTACT SERVICE,OTHER PAYMENTS FOR CLIENTS,2103542454,1000057263
08.08.2022,CHILDREN AND FAMILIES,CONTACT PROFESSIONALS,387,CONTACT SERVICE,OTHER PAYMENTS FOR CLIENTS,2103542460,1000057263
08.08.2022,CHILDREN AND FAMILIES,CONTACT PROFESSIONALS,430,CONTACT SERVICE,OTHER PAYMENTS FOR CLIENTS,2103542480,1000057263
08.08.2022,CHILDREN AND FAMILIES,CONTACT PROFESSIONALS,441,CONTACT SERVICE,OTHER PAYMENTS FOR CLIENTS,2103542449,1000057263
08.08.2022,CHILDREN AND FAMILIES,CONTACT PROFESSIONALS,675,CONTACT SERVICE,OTHER PAYMENTS FOR CLIENTS,2103542462,1000057263
08.08.2022,CHILDREN AND FAMILIES,CONTACT PROFESSIONALS,728,CONTACT SERVICE,OTHER PAYMENTS FOR CLIENTS,2103542448,1000057263
08.08.2022,CHILDREN AND FAMILIES,CONTACT PROFESSIONALS,728,CONTACT SERVICE,OTHER PAYMENTS FOR CLIENTS,2103542467,1000057263
08.08.2022,CHILDREN AND FAMILIES,CONTACT PROFESSIONALS,728,CONTACT SERVICE,OTHER PAYMENTS FOR CLIENTS,2103542476,1000057263
08.08.2022,CHILDREN AND FAMILIES,CONTACT PROFESSIONALS,728,CONTACT SERVICE,OTHER PAYMENTS FOR CLIENTS,2103542479,1000057263
08.08.2022,CHILDREN AND FAMILIES,CONTACT PROFESSIONALS,903,CONTACT SERVICE,OTHER PAYMENTS FOR CLIENTS,2103542464,1000057263
08.08.2022,CHILDREN AND FAMILIES,CONTACT PROFESSIONALS,903,CONTACT SERVICE,OTHER PAYMENTS FOR CLIENTS,2103542472,1000057263
08.08.2022,CHILDREN AND FAMILIES,CONTACT PROFESSIONALS,903,CONTACT SERVICE,OTHER PAYMENTS FOR CLIENTS,2103542474,1000057263
08.08.2022,CHILDREN AND FAMILIES,BANYA FAMILY PLACEMENT AGENCY LTD,"3,427.10",FRIENDS & FAMILY FOSTERING,EXTERNAL AGENCIES AND BODIES,2103542490,11328315
08.08.2022,CHILDREN AND FAMILIES,BANYA FAMILY PLACEMENT AGENCY LTD,"3,536.89",FRIENDS & FAMILY FOSTERING,EXTERNAL AGENCIES AND BODIES,2103542484,11328315
08.08.2022,CHILDREN AND FAMILIES,BANYA FAMILY PLACEMENT AGENCY LTD,"3,563.45",FRIENDS & FAMILY FOSTERING,EXTERNAL AGENCIES AND BODIES,2103542486,11328315
08.08.2022,CHILDREN AND FAMILIES,BANYA FAMILY PLACEMENT AGENCY LTD,"3,563.45",FRIENDS & FAMILY FOSTERING,EXTERNAL AGENCIES AND BODIES,2103542489,11328315
08.08.2022,CHILDREN AND FAMILIES,BANYA FAMILY PLACEMENT AGENCY LTD,"3,733.38",FRIENDS & FAMILY FOSTERING,EXTERNAL AGENCIES AND BODIES,2103542491,11328315
08.08.2022,CHILDREN AND FAMILIES,BANYA FAMILY PLACEMENT AGENCY LTD,"4,479.93",FRIENDS & FAMILY FOSTERING,EXTERNAL AGENCIES AND BODIES,2103542485,11328315
08.08.2022,CHILDREN AND FAMILIES,TACT,"3,998.72",FRIENDS & FAMILY FOSTERING,EXTERNAL AGENCIES AND BODIES,2103542488,1000012941
08.08.2022,CHILDREN AND FAMILIES,TACT,"4,956.14",FRIENDS & FAMILY FOSTERING,EXTERNAL AGENCIES AND BODIES,2103542492,1000012941
08.08.2022,CHILDREN AND FAMILIES,DIVERSITY FOSTER CARE LTD,"4,108.69",FRIENDS & FAMILY FOSTERING,EXTERNAL AGENCIES AND BODIES,2103542483,1000081399
08.08.2022,CHILDREN AND FAMILIES,DIVERSITY FOSTER CARE LTD,"4,108.69",FRIENDS & FAMILY FOSTERING,EXTERNAL AGENCIES AND BODIES,2103542493,1000081399
08.08.2022,CHILDREN AND FAMILIES,FAMILY ACTION,"1,603.95",NEW ASF,EXTERNAL AGENCIES AND BODIES,5902537028,1013739
08.08.2022,CHILDREN AND FAMILIES,CHROMA THERAPIES LTD,468,NEW ASF,EXTERNAL AGENCIES AND BODIES,5902536024,1000085537
08.08.2022,CHILDREN AND FAMILIES,CHROMA THERAPIES LTD,468,NEW ASF,EXTERNAL AGENCIES AND BODIES,5902536028,1000085537
08.08.2022,CHILDREN AND FAMILIES,PLAY THERAPY SERVICES LTD,600,NEW ASF,EXTERNAL AGENCIES AND BODIES,5902536807,1000085546
08.08.2022,CHILDREN AND FAMILIES,PLAY THERAPY SERVICES LTD,"1,350.00",NEW ASF,EXTERNAL AGENCIES AND BODIES,5902536842,1000085546
08.08.2022,CHILDREN AND FAMILIES,WHOLE CHILD THERAPY LTD,575,NEW ASF,EXTERNAL AGENCIES AND BODIES,5902537039,1000086004
08.08.2022,CHILDREN AND FAMILIES,WHOLE CHILD THERAPY LTD,690,NEW ASF,EXTERNAL AGENCIES AND BODIES,5902537043,1000086004
08.08.2022,CHILDREN AND FAMILIES,WHOLE CHILD THERAPY LTD,"1,490.00",NEW ASF,EXTERNAL AGENCIES AND BODIES,5902537034,1000086004
08.08.2022,CHILDREN AND FAMILIES,WHOLE CHILD THERAPY LTD,"1,725.00",NEW ASF,EXTERNAL AGENCIES AND BODIES,5902537041,1000086004
08.08.2022,CHILDREN AND FAMILIES,WHOLE CHILD THERAPY LTD,"1,945.00",NEW ASF,EXTERNAL AGENCIES AND BODIES,5902537036,1000086004
08.08.2022,CHILDREN AND FAMILIES,REDACTED PERSONAL DATA,499.2,NEW ASF,EXTERNAL AGENCIES AND BODIES,REDACTED,REDACTED
08.08.2022,CHILDREN AND FAMILIES,REDACTED PERSONAL DATA,499.2,NEW ASF,EXTERNAL AGENCIES AND BODIES,REDACTED,REDACTED
08.08.2022,CHILDREN AND FAMILIES,NEXT STEP CARE MANAGEMENT LTD,"3,432.14",SEMI-IND CARELEAVERS,EXTERNAL AGENCIES AND BODIES,2103542518,1825556
08.08.2022,CHILDREN AND FAMILIES,THE SALVATION ARMY,"1,526.44",SEMI-IND CARELEAVERS,EXTERNAL AGENCIES AND BODIES,2103542523,1000016253
08.08.2022,CHILDREN AND FAMILIES,THE SALVATION ARMY,"1,581.31",SEMI-IND CARELEAVERS,EXTERNAL AGENCIES AND BODIES,2103542516,1000016253
08.08.2022,CHILDREN AND FAMILIES,THE SALVATION ARMY,"1,581.31",SEMI-IND CARELEAVERS,EXTERNAL AGENCIES AND BODIES,2103542522,1000016253
08.08.2022,CHILDREN AND FAMILIES,SANCTUARY CARE SERVICES LTD,"2,037.14",SEMI-IND CARELEAVERS,EXTERNAL AGENCIES AND BODIES,2103542510,1000078444
08.08.2022,CHILDREN AND FAMILIES,THE SALVATION ARMY,689.36,SEMI-IND LAC 16-17,EXTERNAL AGENCIES AND BODIES,2103542505,1000016253
08.08.2022,CHILDREN AND FAMILIES,THE SALVATION ARMY,"1,526.44",SEMI-IND LAC 16-17,EXTERNAL AGENCIES AND BODIES,2103542494,1000016253
08.08.2022,CHILDREN AND FAMILIES,THE SALVATION ARMY,"1,526.44",SEMI-IND LAC 16-17,EXTERNAL AGENCIES AND BODIES,2103542497,1000016253
08.08.2022,CHILDREN AND FAMILIES,THE SALVATION ARMY,"1,526.44",SEMI-IND LAC 16-17,EXTERNAL AGENCIES AND BODIES,2103542499,1000016253
08.08.2022,CHILDREN AND FAMILIES,MY LIFE SEMI-INDEPENDENT PROJECT LTD,"3,940.00",SEMI-IND LAC 16-17,EXTERNAL AGENCIES AND BODIES,2103542506,1000075301
08.08.2022,CHILDREN AND FAMILIES,THE SALVATION ARMY,"1,330.96",UASC CARELEAVERS,EXTERNAL AGENCIES AND BODIES,2103542507,1000016253
08.08.2022,CHILDREN AND FAMILIES,THE SALVATION ARMY,"1,369.62",UASC CARELEAVERS,EXTERNAL AGENCIES AND BODIES,2103542511,1000016253
08.08.2022,CHILDREN AND FAMILIES,THE SALVATION ARMY,"1,378.72",UASC CARELEAVERS,EXTERNAL AGENCIES AND BODIES,2103542508,1000016253
08.08.2022,CHILDREN AND FAMILIES,THE SALVATION ARMY,"1,435.26",UASC CARELEAVERS,EXTERNAL AGENCIES AND BODIES,2103542520,1000016253
08.08.2022,CHILDREN AND FAMILIES,THE SALVATION ARMY,"1,435.26",UASC CARELEAVERS,EXTERNAL AGENCIES AND BODIES,2103542521,1000016253
08.08.2022,CHILDREN AND FAMILIES,THE SALVATION ARMY,"1,526.44",UASC CARELEAVERS,EXTERNAL AGENCIES AND BODIES,2103542512,1000016253
08.08.2022,CHILDREN AND FAMILIES,THE SALVATION ARMY,"1,526.44",UASC CARELEAVERS,EXTERNAL AGENCIES AND BODIES,2103542524,1000016253
08.08.2022,CHILDREN AND FAMILIES,THE SALVATION ARMY,"1,581.31",UASC CARELEAVERS,EXTERNAL AGENCIES AND BODIES,2103542509,1000016253
08.08.2022,CHILDREN AND FAMILIES,THE SALVATION ARMY,"1,581.31",UASC CARELEAVERS,EXTERNAL AGENCIES AND BODIES,2103542513,1000016253
08.08.2022,CHILDREN AND FAMILIES,STEP AHEAD SERVICES LTD,"2,125.71",UASC CARELEAVERS,EXTERNAL AGENCIES AND BODIES,2103542519,1000036544
08.08.2022,CHILDREN AND FAMILIES,SANCTUARY CARE SERVICES LTD,"2,037.14",UASC CARELEAVERS,EXTERNAL AGENCIES AND BODIES,2103542515,1000078444
08.08.2022,CHILDREN AND FAMILIES,ZED SW LTD,600,UASC CARELEAVERS,EXTERNAL AGENCIES AND BODIES,5902536066,1000087466
08.08.2022,CHILDREN AND FAMILIES,THE SALVATION ARMY,"1,526.44",UASC LAC 16-17,EXTERNAL AGENCIES AND BODIES,2103542496,1000016253
08.08.2022,CHILDREN AND FAMILIES,THE SALVATION ARMY,"1,526.44",UASC LAC 16-17,EXTERNAL AGENCIES AND BODIES,2103542498,1000016253
08.08.2022,CHILDREN AND FAMILIES,THE SALVATION ARMY,"1,526.44",UASC LAC 16-17,EXTERNAL AGENCIES AND BODIES,2103542502,1000016253
08.08.2022,CHILDREN AND FAMILIES,THE SALVATION ARMY,"1,526.44",UASC LAC 16-17,EXTERNAL AGENCIES AND BODIES,2103542503,1000016253
08.08.2022,CHILDREN AND FAMILIES,THE SALVATION ARMY,"1,526.44",UASC LAC 16-17,EXTERNAL AGENCIES AND BODIES,2103542504,1000016253
08.08.2022,COMMUNITIES,POHWER,"3,507.00",NHS COMPLAINTS ADVOCACY,EXTERNAL AGENCIES AND BODIES,5902536751,1000070508
08.08.2022,COMMUNITIES,CARE OUTLOOK LTD,834.88,NO RECOURSE TO PUBLIC FUNDS,HOMECARE - C&V,2103542574,1000064508
08.08.2022,COMMUNITIES,CARE RESOLUTION LTD,476.64,NO RECOURSE TO PUBLIC FUNDS,HOMECARE - C&V,2103542580,1000087826
08.08.2022,COMMUNITIES,JOYMAC CARE LTD,434.3,NO RECOURSE TO PUBLIC FUNDS,HOMECARE - C&V,2103542563,1000088577
08.08.2022,COMMUNITIES,JOYMAC CARE LTD,"1,279.88",NO RECOURSE TO PUBLIC FUNDS,HOMECARE - C&V,2103542564,1000088577
08.08.2022,COMMUNITIES,WILSON SOLICITORS LLP,"7,526.00",NO RECOURSE TO PUBLIC FUNDS,LEGAL FEES & COURT COSTS,5902536354,1000084191
08.08.2022,COMMUNITIES,REDACTED PERSONAL DATA,"1,050.00",UKRAINIAN PROGRAMME,GRANTS,REDACTED,REDACTED
08.08.2022,COMMUNITIES,SITTARA LTD,"1,581.00",UKRAINIAN REFUGEES,ACCOMMODATION CHARGES,5902536925,1000080857
08.08.2022,COMMUNITIES,CULTURE TREE CENTRE LTD,500,VCS GRANTS,OTHER CONTRACTORS,5902536007,1000083118
08.08.2022,COMMUNITIES,THE SAPPHIRE COMMUNITY GROUP,"1,300.00",VCS GRANTS,OTHER CONTRACTORS,5902536853,1000084307
08.08.2022,COMMUNITIES,THE BOWER BRUNSWICK PARK COMMUNITY INTEREST COMPANY,"5,000.00",WEST CENTRAL,GRANTS,5902536843,1000084083
08.08.2022,CORPORATE & DEMOCRATIC CORE,POTTERS FIELDS PARK MANAGEMENT TRUST,"16,445.48",POTTERS FIELD PROJECT COSTS,SERVICE CHARGES,2103542444,1000053530
08.08.2022,CUSTOMER EXPERIENCE,THE BOWLES ORGANISATION LTD,"3,251.00",ESR TEAM,ALLOWANCES,5902536529,1000088169
08.08.2022,CUSTOMER EXPERIENCE,THE BOWLES ORGANISATION LTD,"3,251.00",ESR TEAM,ALLOWANCES,5902536531,1000088169
08.08.2022,CUSTOMER EXPERIENCE,THE BOWLES ORGANISATION LTD,"3,251.00",ESR TEAM,ALLOWANCES,5902536532,1000088169
08.08.2022,CUSTOMER EXPERIENCE,THE BOWLES ORGANISATION LTD,"3,251.00",ESR TEAM,ALLOWANCES,5902536533,1000088169
08.08.2022,CUSTOMER EXPERIENCE HGF,CAPITA SECURE INFORMATION,"-16,007.21",SHARED SERVICES,COMMS & COMPUTING CONTRACT CHARGES,5902536850,1000070739
08.08.2022,CUSTOMER EXPERIENCE HGF,CAPITA SECURE INFORMATION,"16,007.21",SHARED SERVICES,COMMS & COMPUTING CONTRACT CHARGES,5902536849,1000070739
08.08.2022,CUSTOMER EXPERIENCE HGF,CAPITA SECURE INFORMATION,"16,007.21",SHARED SERVICES,COMMS & COMPUTING CONTRACT CHARGES,5902536851,1000070739
08.08.2022,CUSTOMER EXPERIENCE HGF,CAPITA SECURE INFORMATION,"19,885.14",SHARED SERVICES,COMMS & COMPUTING CONTRACT CHARGES,5902536852,1000070739
08.08.2022,CUSTOMER EXPERIENCE HGF,SMI INT GROUP LTD,277.92,SMART MOBILE RESPONSE TEAM,"CLOTHING, UNIFORMS & LAUNDRY",5902536847,1000076606
08.08.2022,DSG,RG SOUND SOLUTIONS LTD,"1,600.00",HEARING AND VISUAL IMPAIRMENT TEAM,OP LEASE/HIRE CHARGES:PLANT/EQUIP/FURNIT,5902536844,1000081824
08.08.2022,EDUCATION,MEDWAY COUNCIL,"10,345.97",SCH TRANS � TRAVEL,RECOUPMENT,5902537086,1000021704
08.08.2022,ENV & LEIS,BELL BRUSH COMPANY,"2,399.45",MANAGEMENT TEAM,MATERIALS,5902536085,1259776
08.08.2022,ENVIRONMENT DIRECTORATE,BRITISH TELECOM PLC,987.54,CCTV,TELEPHONES (LAND LINES),5902536971,1756938
08.08.2022,ENVIRONMENT DIRECTORATE,DAWSON RENTALS BUS & COACH LTD,"1,455.65",COMMERCIAL VEH CTRL A/C,HIRED VEHICLES,5902536947,1000042174
08.08.2022,ENVIRONMENT DIRECTORATE,ACCESS HIRE NATIONWIDE LTD,"1,598.71",COMMERCIAL VEH CTRL A/C,HIRED VEHICLES,5902537074,1000048527
08.08.2022,ENVIRONMENT DIRECTORATE,ACCESS HIRE NATIONWIDE LTD,"1,598.71",COMMERCIAL VEH CTRL A/C,HIRED VEHICLES,5902537076,1000048527
08.08.2022,ENVIRONMENT DIRECTORATE,ACCESS HIRE NATIONWIDE LTD,"1,598.71",COMMERCIAL VEH CTRL A/C,HIRED VEHICLES,5902537077,1000048527
08.08.2022,ENVIRONMENT DIRECTORATE,LEX AUTOLEASE,"19,188.35",COMMERCIAL VEH CTRL A/C,HIRED VEHICLES,5902537044,1000069462
08.08.2022,ENVIRONMENT DIRECTORATE,ENTERPRISE FLEX E RENT,692.35,COMMERCIAL VEH CTRL A/C,HIRED VEHICLES,5902537082,1000069585
08.08.2022,ENVIRONMENT DIRECTORATE,DAWSONGROUP VANS LTD,258.85,COMMERCIAL VEH CTRL A/C,HIRED VEHICLES,5902537079,1000082230
08.08.2022,ENVIRONMENT DIRECTORATE,DAWSONGROUP VANS LTD,258.85,COMMERCIAL VEH CTRL A/C,HIRED VEHICLES,5902537080,1000082230
08.08.2022,ENVIRONMENT DIRECTORATE,DAWSONGROUP VANS LTD,258.85,COMMERCIAL VEH CTRL A/C,HIRED VEHICLES,5902537081,1000082230
08.08.2022,ENVIRONMENT DIRECTORATE,DAWSONGROUP VANS LTD,275.9,COMMERCIAL VEH CTRL A/C,HIRED VEHICLES,5902536974,1000082230
08.08.2022,ENVIRONMENT DIRECTORATE,DAWSONGROUP VANS LTD,275.9,COMMERCIAL VEH CTRL A/C,HIRED VEHICLES,5902537004,1000082230
08.08.2022,ENVIRONMENT DIRECTORATE,DAWSONGROUP VANS LTD,275.9,COMMERCIAL VEH CTRL A/C,HIRED VEHICLES,5902537008,1000082230
08.08.2022,ENVIRONMENT DIRECTORATE,DAWSONGROUP VANS LTD,275.9,COMMERCIAL VEH CTRL A/C,HIRED VEHICLES,5902537014,1000082230
08.08.2022,ENVIRONMENT DIRECTORATE,DAWSONGROUP VANS LTD,275.9,COMMERCIAL VEH CTRL A/C,HIRED VEHICLES,5902537100,1000082230
08.08.2022,ENVIRONMENT DIRECTORATE,DAWSONGROUP VANS LTD,300.08,COMMERCIAL VEH CTRL A/C,HIRED VEHICLES,5902536964,1000082230
08.08.2022,ENVIRONMENT DIRECTORATE,DAWSONGROUP VANS LTD,300.08,COMMERCIAL VEH CTRL A/C,HIRED VEHICLES,5902536966,1000082230
08.08.2022,ENVIRONMENT DIRECTORATE,DAWSONGROUP VANS LTD,300.08,COMMERCIAL VEH CTRL A/C,HIRED VEHICLES,5902536969,1000082230
08.08.2022,ENVIRONMENT DIRECTORATE,DAWSONGROUP VANS LTD,300.08,COMMERCIAL VEH CTRL A/C,HIRED VEHICLES,5902536972,1000082230
08.08.2022,ENVIRONMENT DIRECTORATE,DAWSONGROUP VANS LTD,300.08,COMMERCIAL VEH CTRL A/C,HIRED VEHICLES,5902536988,1000082230
08.08.2022,ENVIRONMENT DIRECTORATE,DAWSONGROUP VANS LTD,300.08,COMMERCIAL VEH CTRL A/C,HIRED VEHICLES,5902536990,1000082230
08.08.2022,ENVIRONMENT DIRECTORATE,DAWSONGROUP VANS LTD,300.08,COMMERCIAL VEH CTRL A/C,HIRED VEHICLES,5902536993,1000082230
08.08.2022,ENVIRONMENT DIRECTORATE,DAWSONGROUP VANS LTD,300.08,COMMERCIAL VEH CTRL A/C,HIRED VEHICLES,5902536995,1000082230
08.08.2022,ENVIRONMENT DIRECTORATE,DAWSONGROUP VANS LTD,300.08,COMMERCIAL VEH CTRL A/C,HIRED VEHICLES,5902537012,1000082230
08.08.2022,ENVIRONMENT DIRECTORATE,DAWSONGROUP VANS LTD,300.08,COMMERCIAL VEH CTRL A/C,HIRED VEHICLES,5902537083,1000082230
08.08.2022,ENVIRONMENT DIRECTORATE,DAWSONGROUP VANS LTD,300.08,COMMERCIAL VEH CTRL A/C,HIRED VEHICLES,5902537087,1000082230
08.08.2022,ENVIRONMENT DIRECTORATE,DAWSONGROUP VANS LTD,300.08,COMMERCIAL VEH CTRL A/C,HIRED VEHICLES,5902537091,1000082230
08.08.2022,ENVIRONMENT DIRECTORATE,DAWSONGROUP VANS LTD,300.08,COMMERCIAL VEH CTRL A/C,HIRED VEHICLES,5902537093,1000082230
08.08.2022,ENVIRONMENT DIRECTORATE,DAWSONGROUP VANS LTD,300.08,COMMERCIAL VEH CTRL A/C,HIRED VEHICLES,5902537094,1000082230
08.08.2022,ENVIRONMENT DIRECTORATE,DAWSONGROUP VANS LTD,324.08,COMMERCIAL VEH CTRL A/C,HIRED VEHICLES,5902537017,1000082230
08.08.2022,ENVIRONMENT DIRECTORATE,DAWSONGROUP VANS LTD,403.71,COMMERCIAL VEH CTRL A/C,HIRED VEHICLES,5902537106,1000082230
08.08.2022,ENVIRONMENT DIRECTORATE,DAWSONGROUP VANS LTD,425.32,COMMERCIAL VEH CTRL A/C,HIRED VEHICLES,5902537105,1000082230
08.08.2022,ENVIRONMENT DIRECTORATE,DAWSONGROUP VANS LTD,449.5,COMMERCIAL VEH CTRL A/C,HIRED VEHICLES,5902537089,1000082230
08.08.2022,ENVIRONMENT DIRECTORATE,DAWSONGROUP VANS LTD,452.6,COMMERCIAL VEH CTRL A/C,HIRED VEHICLES,5902536985,1000082230
08.08.2022,ENVIRONMENT DIRECTORATE,HELIARC TECHNOLOGY LTD,350,GRANGE DOORS,GROUNDS MAINTENANCE,5902536836,1000068644
08.08.2022,ENVIRONMENT DIRECTORATE,I.S & G STEEL STOCKHOLDER LTD,517.5,GRANGE DOORS,MATERIALS,5902536867,1028293
08.08.2022,ENVIRONMENT DIRECTORATE,I.S & G STEEL STOCKHOLDER LTD,578,GRANGE DOORS,MATERIALS,5902536867,1028293
08.08.2022,ENVIRONMENT DIRECTORATE,JENPRO GWER LTD,294,GRANGE DOORS,MATERIALS,5902536837,1000086598
08.08.2022,ENVIRONMENT DIRECTORATE,LONDON TOOLS LIMITED,669.84,PARKS TECH UNIT (PREMISES),BUILDING R&M,5902536996,1000003017
08.08.2022,F & C S EXCLUDING CORPORATE BUDGETS,CORPORATE DOCUMENT SERVICES LTD,950,INCOME MANAGEMENT,OFFICE EXPENSES,5902536468,11324274
08.08.2022,F & C S EXCLUDING CORPORATE BUDGETS,SOCITM ADVISORY LTD,"10,450.00",PROJECTS,OTHER CONTRACTORS,5902536856,1000088507
08.08.2022,HOUSING,SPOKEMEAD MAINTENANCE LTD,"32,876.73",PAYMENTS CONTROL ACCOUNT - SPOKEMEAD,I-WORLD CONTRACTORS HOLDING ACCOUNT,2103542592,4002791
08.08.2022,HOUSING HRA,CRS DRAWING AND DESIGN LTD,"30,240.00",CAPITAL PS (HRA),CONSTRUCTION,5902536260,1000085835
08.08.2022,HOUSING HRA,PRB ESTATES LTD,"4,496.00",CAPITAL PS (HRA),CONSTRUCTION,2103538113,3000001691
08.08.2022,HOUSING HRA,CALFORD SEADEN LLP,"2,003.84",CAPITAL PS (HRA),CONSTRUCTION FEES  - EXTERNAL,5902536892,1061592
08.08.2022,HOUSING HRA,COTTRELL AND VERMEULEN ARCH LTD,"1,540.80",CAPITAL PS (HRA),CONSTRUCTION FEES  - EXTERNAL,5902536173,1000012119
08.08.2022,HOUSING HRA,COTTRELL AND VERMEULEN ARCH LTD,"1,540.80",CAPITAL PS (HRA),CONSTRUCTION FEES  - EXTERNAL,5902536177,1000012119
08.08.2022,HOUSING HRA,COTTRELL AND VERMEULEN ARCH LTD,"4,950.00",CAPITAL PS (HRA),CONSTRUCTION FEES  - EXTERNAL,5902536278,1000012119
08.08.2022,HOUSING HRA,COTTRELL AND VERMEULEN ARCH LTD,"5,500.00",CAPITAL PS (HRA),CONSTRUCTION FEES  - EXTERNAL,5902536170,1000012119
08.08.2022,HOUSING HRA,XC02 ENERGY LTD,"2,350.00",CAPITAL PS (HRA),CONSTRUCTION FEES  - EXTERNAL,5902536902,1000050094
08.08.2022,HOUSING HRA,HTA DESIGN LLP,"12,000.00",CAPITAL PS (HRA),CONSTRUCTION FEES  - EXTERNAL,5902536244,1000074662
